Trans No.,Service Area Categorisation,Service Division Categorisation,Responsible Unit,Unit Code,Expenses Type,Expenses Sub Type,Expense Code,Narrative,Amount,Invoice Date,Cap/Rev,Supplier Name
1,Central Services,SupS Chief Execs,Local Involvement Network,A01039,Third Party Payments          ,Private Contractors           ,EH10,Contract Payments                       ,"10,423.75",09/04/2015,R,MERTON VOLUNTARY SERV COUNCIL 
2,Central Services,SupS Chief Execs,Local Involvement Network,A01039,Third Party Payments          ,Private Contractors           ,EH10,Contract Payments                       ,"10,423.75",08/05/2015,R,MERTON VOLUNTARY SERV COUNCIL 
3,Cultural Env Reg&Plan Services,Comm Safety (Crime Reduction),CCTV,A01200,Supplies & Services           ,Equip Furniture/Materials     ,DA01,Equipment - R & M                       ,793.94,14/05/2015,R,EUROVIA INFRASTRUCTURE LTD    
4,Cultural Env Reg&Plan Services,Comm Safety (Crime Reduction),CCTV,A01200,Supplies & Services           ,Equip Furniture/Materials     ,DA01,Equipment - R & M                       ,"3,448.84",17/06/2015,R,EUROVIA INFRASTRUCTURE LTD    
5,Cultural Env Reg&Plan Services,Comm Safety (Crime Reduction),CCTV,A01200,Supplies & Services           ,Equip Furniture/Materials     ,DA01,Equipment - R & M                       ,"3,448.84",22/05/2015,R,EUROVIA INFRASTRUCTURE LTD    
6,Cultural Env Reg&Plan Services,Comm Safety (Crime Reduction),CCTV,A01200,Supplies & Services           ,Equip Furniture/Materials     ,DA01,Equipment - R & M                       ,"1,347.06",15/05/2015,R,EUROVIA INFRASTRUCTURE LTD    
7,Cultural Env Reg&Plan Services,Comm Safety (Crime Reduction),CCTV,A01200,Supplies & Services           ,Equip Furniture/Materials     ,DA01,Equipment - R & M                       ,515.71,27/05/2015,R,EUROVIA INFRASTRUCTURE LTD    
8,Cultural Env Reg&Plan Services,Comm Safety (Crime Reduction),CCTV,A01200,Supplies & Services           ,Equip Furniture/Materials     ,DA01,Equipment - R & M                       ,669.67,27/05/2015,R,EUROVIA INFRASTRUCTURE LTD    
9,Cultural Env Reg&Plan Services,Comm Safety (Crime Reduction),CCTV,A01200,Supplies & Services           ,Equip Furniture/Materials     ,DA01,Equipment - R & M                       ,"1,497.85",27/05/2015,R,EUROVIA INFRASTRUCTURE LTD    
10,Cultural Env Reg&Plan Services,Comm Safety (Crime Reduction),CCTV,A01200,Supplies & Services           ,Services                      ,DF57,Consulting Engineers Fees               ,"2,500.00",03/06/2015,R,GLOBAL MSC SECURITY LTD       
11,Cultural Env Reg&Plan Services,Comm Safety (Crime Reduction),CCTV,A01200,Supplies & Services           ,Services                      ,DF57,Consulting Engineers Fees               ,"1,260.38",03/06/2015,R,GLOBAL MSC SECURITY LTD       
12,Cultural Env Reg&Plan Services,Comm Safety (Crime Reduction),CCTV,A01200,Supplies & Services           ,Comms and Computing           ,DG15,Network Maintenance                     ,782.14,01/05/2015,R,BT REDCARE                    
13,Central Services,SupS Chief Execs,NON-STATUTORY MARKETING & COMM,A02019,Supplies & Services           ,Prntng Stnry Gen Off Exp      ,DE22,Marketing                               ,"3,500.00",27/05/2015,R,REDACTED     
14,Central Services,SupS Chief Execs,NON-STATUTORY MARKETING & COMM,A02019,Supplies & Services           ,Services                      ,DF02,Misc Advertising/Publicity              ,"1,008.00",13/05/2015,R,BAAF REGISTERED CHARITY       
15,Central Services,SupS Chief Execs,NON-STATUTORY MARKETING & COMM,A02019,Supplies & Services           ,Grants and Subscriptions      ,DJ04,Subscriptions                           ,"11,671.00",09/04/2015,R,PANACEA SOFTWARE LTD          
16,Central Services,SupS Chief Execs,Press and Public Relations.,A02026,Supplies & Services           ,Prntng Stnry Gen Off Exp      ,DE20,Council Magazine                        ,600,07/05/2015,R,REDACTED     
17,Central Services,SupS Chief Execs,Press and Public Relations.,A02026,Supplies & Services           ,Comms and Computing           ,DG07,Computer Software                       ,580.99,20/04/2015,R,SOFTCAT LTD                   
18,CS -Oth Operating Inc & Expend,T/A Corporate Services,Prtng Jobs - Ext Agncy,A03041,Supplies & Services           ,Prntng Stnry Gen Off Exp      ,DE01,External Printing                       ,"1,674.50",09/06/2015,R,TAURUS PRINT & DESIGN LTD     
19,CS -Oth Operating Inc & Expend,T/A Corporate Services,Prtng Jobs - Ext Agncy,A03041,Supplies & Services           ,Prntng Stnry Gen Off Exp      ,DE01,External Printing                       ,757,31/05/2015,R,IMPRESS PRINT SERVICES LTD    
20,CS -Oth Operating Inc & Expend,T/A Corporate Services,Prtng Jobs - Ext Agncy,A03041,Supplies & Services           ,Prntng Stnry Gen Off Exp      ,DE01,External Printing                       ,677,22/06/2015,R,LIMETREE OFFSET LTD           
21,CS -Oth Operating Inc & Expend,T/A Corporate Services,PrintUnit-HighVolPhtcopying,A03042,Supplies & Services           ,Prntng Stnry Gen Off Exp      ,DE01,External Printing                       ,596,12/06/2015,R,IMPRESS PRINT SERVICES LTD    
22,CS -Oth Operating Inc & Expend,T/A Corporate Services,Translation Services,A04060,Supplies & Services           ,Services                      ,DF45,Payment of Sessional Workers            ,875,31/05/2015,R,COSMIC EUROPE LIMTED          
23,CS -Oth Operating Inc & Expend,T/A Corporate Services,Translation Services,A04060,Supplies & Services           ,Services                      ,DF45,Payment of Sessional Workers            ,"2,555.00",31/05/2015,R,COSMIC EUROPE LIMTED          
24,CS -Oth Operating Inc & Expend,T/A Corporate Services,Translation Services,A04060,Supplies & Services           ,Services                      ,DF45,Payment of Sessional Workers            ,549,31/05/2015,R,REDACTED     
25,Central Services,Grants - Voluntary Groups,VOLUNTARY SECTOR COORDINATION,A04082,Supplies & Services           ,Grants and Subscriptions      ,DJ04,Subscriptions                           ,"54,319.00",13/04/2015,R,LONDON COUNCILS               
26,Central Services,SupS Comm and Member Services,COMMERICIAL SERVICES,A04085,Employees                     ,Direct Employee Expenses      ,AA17,Agency Staff & Casual Paymts            ,"1,580.00",28/05/2015,R,HAYS RECRUITING EXPERTS       
27,Central Services,SupS Comm and Member Services,COMMERICIAL SERVICES,A04085,Employees                     ,Direct Employee Expenses      ,AA17,Agency Staff & Casual Paymts            ,"2,475.00",28/05/2015,R,HAYS RECRUITING EXPERTS       
28,Central Services,SupS Comm and Member Services,COMMERICIAL SERVICES,A04085,Employees                     ,Direct Employee Expenses      ,AA17,Agency Staff & Casual Paymts            ,"2,227.50",28/05/2015,R,HAYS RECRUITING EXPERTS       
29,Central Services,SupS Comm and Member Services,COMMERICIAL SERVICES,A04085,Employees                     ,Direct Employee Expenses      ,AA17,Agency Staff & Casual Paymts            ,"3,390.00",27/05/2015,R,HAYS RECRUITING EXPERTS       
30,Central Services,SupS Comm and Member Services,COMMERICIAL SERVICES,A04085,Employees                     ,Direct Employee Expenses      ,AA17,Agency Staff & Casual Paymts            ,"2,180.00",02/06/2015,R,HAYS RECRUITING EXPERTS       
31,Central Services,SupS Comm and Member Services,COMMERICIAL SERVICES,A04085,Employees                     ,Direct Employee Expenses      ,AA17,Agency Staff & Casual Paymts            ,790,28/05/2015,R,HAYS RECRUITING EXPERTS       
32,Central Services,SupS Comm and Member Services,COMMERICIAL SERVICES,A04085,Employees                     ,Direct Employee Expenses      ,AA17,Agency Staff & Casual Paymts            ,"2,512.00",20/05/2015,R,HAYS RECRUITING EXPERTS       
33,Central Services,SupS Comm and Member Services,COMMERICIAL SERVICES,A04085,Employees                     ,Direct Employee Expenses      ,AA17,Agency Staff & Casual Paymts            ,691.25,28/05/2015,R,HAYS RECRUITING EXPERTS       
34,Central Services,SupS Comm and Member Services,COMMERICIAL SERVICES,A04085,Employees                     ,Direct Employee Expenses      ,AA17,Agency Staff & Casual Paymts            ,790,29/05/2015,R,HAYS RECRUITING EXPERTS       
35,Central Services,SupS Comm and Member Services,COMMERICIAL SERVICES,A04085,Employees                     ,Direct Employee Expenses      ,AA17,Agency Staff & Casual Paymts            ,"2,475.00",28/05/2015,R,HAYS RECRUITING EXPERTS       
36,Central Services,SupS Comm and Member Services,COMMERICIAL SERVICES,A04085,Employees                     ,Direct Employee Expenses      ,AA17,Agency Staff & Casual Paymts            ,"2,725.00",08/06/2015,R,HAYS RECRUITING EXPERTS       
37,Central Services,SupS Comm and Member Services,COMMERICIAL SERVICES,A04085,Employees                     ,Direct Employee Expenses      ,AA17,Agency Staff & Casual Paymts            ,"1,382.50",28/05/2015,R,HAYS RECRUITING EXPERTS       
38,Central Services,SupS Comm and Member Services,COMMERICIAL SERVICES,A04085,Employees                     ,Direct Employee Expenses      ,AA17,Agency Staff & Casual Paymts            ,"3,390.00",19/06/2015,R,HAYS RECRUITING EXPERTS       
39,Central Services,SupS Comm and Member Services,COMMERICIAL SERVICES,A04085,Employees                     ,Direct Employee Expenses      ,AA17,Agency Staff & Casual Paymts            ,"1,980.00",16/06/2015,R,HAYS RECRUITING EXPERTS       
40,Central Services,SupS Comm and Member Services,COMMERICIAL SERVICES,A04085,Employees                     ,Direct Employee Expenses      ,AA17,Agency Staff & Casual Paymts            ,"3,390.00",10/06/2015,R,HAYS RECRUITING EXPERTS       
41,Central Services,SupS Comm and Member Services,COMMERICIAL SERVICES,A04085,Employees                     ,Direct Employee Expenses      ,AA17,Agency Staff & Casual Paymts            ,"2,180.00",28/05/2015,R,HAYS RECRUITING EXPERTS       
42,Central Services,SupS Comm and Member Services,COMMERICIAL SERVICES,A04085,Employees                     ,Direct Employee Expenses      ,AA17,Agency Staff & Casual Paymts            ,"1,856.25",28/05/2015,R,HAYS RECRUITING EXPERTS       
43,Central Services,SupS Comm and Member Services,COMMERICIAL SERVICES,A04085,Employees                     ,Direct Employee Expenses      ,AA17,Agency Staff & Casual Paymts            ,"2,725.00",29/05/2015,R,HAYS RECRUITING EXPERTS       
44,Central Services,SupS Comm and Member Services,COMMERICIAL SERVICES,A04085,Employees                     ,Direct Employee Expenses      ,AA17,Agency Staff & Casual Paymts            ,878,20/05/2015,R,HAYS RECRUITING EXPERTS       
45,Central Services,SupS Comm and Member Services,COMMERICIAL SERVICES,A04085,Employees                     ,Direct Employee Expenses      ,AA17,Agency Staff & Casual Paymts            ,545,28/05/2015,R,HAYS RECRUITING EXPERTS       
46,Central Services,SupS Comm and Member Services,COMMERICIAL SERVICES,A04085,Employees                     ,Direct Employee Expenses      ,AA17,Agency Staff & Casual Paymts            ,"2,034.00",03/06/2015,R,HAYS RECRUITING EXPERTS       
47,Central Services,SupS Comm and Member Services,COMMERICIAL SERVICES,A04085,Employees                     ,Direct Employee Expenses      ,AA17,Agency Staff & Casual Paymts            ,"1,907.50",28/05/2015,R,HAYS RECRUITING EXPERTS       
48,Central Services,SupS Comm and Member Services,COMMERICIAL SERVICES,A04085,Employees                     ,Direct Employee Expenses      ,AA17,Agency Staff & Casual Paymts            ,"1,980.00",28/05/2015,R,HAYS RECRUITING EXPERTS       
49,Central Services,SupS Comm and Member Services,COMMERICIAL SERVICES,A04085,Employees                     ,Direct Employee Expenses      ,AA17,Agency Staff & Casual Paymts            ,"2,725.00",16/06/2015,R,HAYS RECRUITING EXPERTS       
50,Highways & Transport Services,On-street parking,Blue Badge Service,A04088,Supplies & Services           ,Services                      ,DF14,Doctors and Other Fees                  ,600,16/04/2015,R,LLOYDS TSB COMMERCIAL FINANCE 
51,Highways & Transport Services,On-street parking,Blue Badge Service,A04088,Supplies & Services           ,Comms and Computing           ,DG15,Network Maintenance                     ,973.3,01/06/2015,R,NORTHGATE INFORMATION SOLUTION
52,Central Services,SupS Health & Safety,Learning and Development,B06146,Employees                     ,Indirect Employee Expenses    ,AB57,EXTERNAL TRAINING COSTS                 ,"3,060.00",29/05/2015,R,FGI LIMITED                   
53,Central Services,SupS Health & Safety,Learning and Development,B06146,Employees                     ,Indirect Employee Expenses    ,AB57,EXTERNAL TRAINING COSTS                 ,830,27/05/2015,R,MAYBO                         
54,Central Services,SupS Health & Safety,Learning and Development,B06146,Employees                     ,Indirect Employee Expenses    ,AB57,EXTERNAL TRAINING COSTS                 ,650,16/06/2015,R,SENSE - SUPPORT SERVICES      
55,Central Services,SupS Health & Safety,Learning and Development,B06146,Employees                     ,Indirect Employee Expenses    ,AB57,EXTERNAL TRAINING COSTS                 ,595,24/02/2015,R,LONDON SCHOOL OF FIRST AID    
56,Central Services,SupS Health & Safety,Learning and Development,B06146,Employees                     ,Indirect Employee Expenses    ,AB57,EXTERNAL TRAINING COSTS                 ,"2,975.00",07/04/2015,R,CIPFA BUSINESS LTD            
57,Central Services,SupS Health & Safety,Learning and Development,B06146,Employees                     ,Indirect Employee Expenses    ,AB57,EXTERNAL TRAINING COSTS                 ,835,04/06/2015,R,ACAS                          
58,Central Services,SupS Health & Safety,Learning and Development,B06146,Employees                     ,Indirect Employee Expenses    ,AB57,EXTERNAL TRAINING COSTS                 ,648,04/06/2015,R,THE BAIKIE-WOOD CONSULT'CY LTD
59,Central Services,SupS Health & Safety,Learning and Development,B06146,Employees                     ,Indirect Employee Expenses    ,AB57,EXTERNAL TRAINING COSTS                 ,830,05/05/2015,R,MAYBO                         
60,Central Services,SupS Health & Safety,Learning and Development,B06146,Employees                     ,Indirect Employee Expenses    ,AB57,EXTERNAL TRAINING COSTS                 ,830,29/04/2015,R,MAYBO                         
61,Central Services,SupS Health & Safety,Learning and Development,B06146,Employees                     ,Indirect Employee Expenses    ,AB57,EXTERNAL TRAINING COSTS                 ,625,24/03/2015,R,LONDON SCHOOL OF FIRST AID    
62,Central Services,SupS Health & Safety,Learning and Development,B06146,Employees                     ,Indirect Employee Expenses    ,AB57,EXTERNAL TRAINING COSTS                 ,600,15/06/2015,R,CIPFA                         
63,Central Services,SupS Health & Safety,Learning and Development,B06146,Employees                     ,Indirect Employee Expenses    ,AB57,EXTERNAL TRAINING COSTS                 ,500,31/05/2015,R,ARVATO LTD                    
64,Central Services,SupS Health & Safety,Learning and Development,B06146,Employees                     ,Indirect Employee Expenses    ,AB57,EXTERNAL TRAINING COSTS                 ,"1,475.00",10/06/2015,R,CAMDEN&ISLINGTON NHS FDN TRUST
65,Central Services,SupS Health & Safety,Learning and Development,B06146,Employees                     ,Indirect Employee Expenses    ,AB57,EXTERNAL TRAINING COSTS                 ,"1,500.00",03/03/2015,R,CORNWALL COLLEGE              
66,Central Services,SupS Health & Safety,Learning and Development,B06146,Employees                     ,Indirect Employee Expenses    ,AB57,EXTERNAL TRAINING COSTS                 ,780,19/05/2015,R,NATIONAL DRIVING CENTRE       
67,Central Services,SupS Health & Safety,Learning and Development,B06146,Employees                     ,Indirect Employee Expenses    ,AB57,EXTERNAL TRAINING COSTS                 ,500,31/03/2015,R,HAPPY                         
166,,,Parks Bin Finance Lease                 ,CE003EA,Vehicles Plant Equipment and Machinery,,D3,Equipment                               ,"6,552.00",21/05/2015,C,MACQUARIE EQUIPMENT FINANCE   
167,,,Disabled Facilities Grant DCLG          ,CE004RA,Other Capital Expenditure,,E1,Grants                                  ,"5,393.00",12/06/2015,C,W C EVANS LTD                 
168,,,Disabled Facilities Grant DCLG          ,CE004RA,Other Capital Expenditure,,E1,Grants                                  ,"1,247.76",12/06/2015,C,R E SHELLEY                   
169,,,Disabled Facilities Grant DCLG          ,CE004RA,Other Capital Expenditure,,E1,Grants                                  ,"10,543.90",27/06/2015,C,T BROWN LTD                   
170,,,Disabled Facilities Grant DCLG          ,CE004RA,Other Capital Expenditure,,E1,Grants                                  ,"2,462.77",25/06/2015,C,CBS ADAPTATION                
171,,,Disabled Facilities Grant DCLG          ,CE004RA,Other Capital Expenditure,,E1,Grants                                  ,"2,269.00",12/06/2015,C,THE LIFECARE CENTRE           
172,,,Disabled Facilities Grant DCLG          ,CE004RA,Other Capital Expenditure,,E1,Grants                                  ,"2,065.50",25/06/2015,C,STAYING FIRST                 
173,,,Disabled Facilities Grant DCLG          ,CE004RA,Other Capital Expenditure,,E1,Grants                                  ,513.36,12/06/2015,C,R E SHELLEY                   
174,,,Disabled Facilities Grant DCLG          ,CE004RA,Other Capital Expenditure,,E1,Grants                                  ,"9,355.50",09/06/2015,C,WEIR BUILDING SERVICES        
175,,,Disabled Facilities Grant DCLG          ,CE004RA,Other Capital Expenditure,,E1,Grants                                  ,"10,398.00",12/06/2015,C,REDACTED     
176,,,Disabled Facilities Grant DCLG          ,CE004RA,Other Capital Expenditure,,E1,Grants                                  ,813.9,12/06/2015,C,SUTTON STAYING PUT            
177,,,Disabled Facilities Grant DCLG          ,CE004RA,Other Capital Expenditure,,E1,Grants                                  ,"1,123.90",12/06/2015,C,SUTTON STAYING PUT            
178,,,Disabled Facilities Grant DCLG          ,CE004RA,Other Capital Expenditure,,E1,Grants                                  ,"8,125.00",25/06/2015,C,EXCEL INTERIOR REFURBISHMENT  
179,,,Disabled Facilities Grant DCLG          ,CE004RA,Other Capital Expenditure,,E1,Grants                                  ,"9,355.50",25/06/2015,C,WEIR BUILDING SERVICES        
180,,,Disabled Facilities Grant DCLG          ,CE004RA,Other Capital Expenditure,,E1,Grants                                  ,"2,553.89",25/06/2015,C,CBS ADAPTATION                
181,,,Disabled Facilities Grant DCLG          ,CE004RA,Other Capital Expenditure,,E1,Grants                                  ,"4,278.00",12/06/2015,C,T BROWN LTD                   
182,,,Disabled Facilities Grant DCLG          ,CE004RA,Other Capital Expenditure,,E1,Grants                                  ,"10,944.00",27/06/2015,C,TLC STAIRLIFTS                
183,,,Disabled Facilities Grant DCLG          ,CE004RA,Other Capital Expenditure,,E1,Grants                                  ,544.07,25/06/2015,C,STAYING FIRST                 
184,,,Disabled Facilities Grant DCLG          ,CE004RA,Other Capital Expenditure,,E1,Grants                                  ,"1,674.74",12/06/2015,C,CBS ADAPTATION                
185,,,Disabled Facilities Grant DCLG          ,CE004RA,Other Capital Expenditure,,E1,Grants                                  ,"8,053.00",25/06/2015,C,JJ MANSION LTD                
186,,,B674a-d Phase 1 Lambton rd              ,CE007CC,New Construction Conversion and Renovation,,B4,Contractor - Site works                 ,682.89,29/05/2015,C,MAY GURNEY LTD T/A CARTLEDGE  
187,,,Parks Investment                        ,CE013SA,New Construction Conversion and Renovation,,B4,Contractor - Site works                 ,"5,375.00",22/05/2015,C,REDDINGTON & SONS             
188,,,Parks Investment                        ,CE013SA,New Construction Conversion and Renovation,,B4,Contractor - Site works                 ,"1,550.00",22/05/2015,C,REDDINGTON & SONS             
189,,,Parks Investment                        ,CE013SA,New Construction Conversion and Renovation,,B4,Contractor - Site works                 ,"8,978.00",20/05/2015,C,REDACTED     
190,,,Parks Investment                        ,CE013SA,New Construction Conversion and Renovation,,B4,Contractor - Site works                 ,"3,660.00",12/06/2015,C,TAYLOR BUILDING COMPANY LTD   
191,,,Parks Investment                        ,CE013SA,New Construction Conversion and Renovation,,B4,Contractor - Site works                 ,"6,925.00",22/05/2015,C,REDDINGTON & SONS             
192,,,Parks Investment                        ,CE013SA,New Construction Conversion and Renovation,,B4,Contractor - Site works                 ,"1,965.00",11/06/2015,C,TAYLOR BUILDING COMPANY LTD   
193,,,Surface Water Drainage                  ,CE024FA,New Construction Conversion and Renovation,,B4,Contractor - Site works                 ,"2,199.98",08/06/2015,C,FM CONWAY LTD                 
194,,,Borough Roads Maintenance               ,CE026FA,New Construction Conversion and Renovation,,B4,Contractor - Site works                 ,"9,307.40",08/06/2015,C,FM CONWAY LTD                 
195,,,Borough Roads Maintenance               ,CE026FA,New Construction Conversion and Renovation,,B4,Contractor - Site works                 ,"2,842.72",08/06/2015,C,FM CONWAY LTD                 
196,,,TFL Projected Slippage                  ,CE026SA,New Construction Conversion and Renovation,,B4,Contractor - Site works                 ,"3,616.29",08/06/2015,C,FM CONWAY LTD                 
197,,,TFL Projected Slippage                  ,CE026SA,New Construction Conversion and Renovation,,B4,Contractor - Site works                 ,"1,709.94",15/06/2015,C,MAY GURNEY LTD T/A CARTLEDGE  
198,,,TFL Projected Slippage                  ,CE026SA,New Construction Conversion and Renovation,,B4,Contractor - Site works                 ,"3,757.46",08/06/2015,C,FM CONWAY LTD                 
199,,,TFL Projected Slippage                  ,CE026SA,New Construction Conversion and Renovation,,B4,Contractor - Site works                 ,"50,000.00",08/06/2015,C,FM CONWAY LTD                 
200,,,Maintain AntiSkid and Coloured          ,CE027FA,New Construction Conversion and Renovation,,B4,Contractor - Site works                 ,664.89,18/06/2015,C,FM CONWAY LTD                 
201,,,Repairs to Footways                     ,CE029FA,New Construction Conversion and Renovation,,B4,Contractor - Site works                 ,"4,958.67",08/06/2015,C,FM CONWAY LTD                 
202,,,Repairs to Footways                     ,CE029FA,New Construction Conversion and Renovation,,B4,Contractor - Site works                 ,"25,000.00",08/06/2015,C,FM CONWAY LTD                 
203,,,Repairs to Footways                     ,CE029FA,New Construction Conversion and Renovation,,B4,Contractor - Site works                 ,"25,000.00",08/06/2015,C,FM CONWAY LTD                 
204,,,Morden Leisure Centre                   ,CE045AA,New Construction Conversion and Renovation,,B1,Consultants Fees D&S Structure          ,"4,600.00",31/05/2015,C,SWEETT (UK) LIMITED           
205,,,Morden Leisure Centre                   ,CE045AA,New Construction Conversion and Renovation,,B2,Site Surveys D&S Structure              ,645,24/06/2015,C,GPM ECOLOGY                   
206,,,B672a-f Connecting Colliers Wd          ,CE049CA,New Construction Conversion and Renovation,,B1,Consultants Fees D&S Structure          ,"2,500.00",04/06/2015,C,BARKER LANGHAM LTD            
207,,,Mitcham Town Centre Imprvmnt            ,CE061FE,New Construction Conversion and Renovation,,B4,Contractor - Site works                 ,"1,994.43",21/04/2015,C,MAY GURNEY LTD T/A CARTLEDGE  
208,,,Mitcham Town Centre Imprvmnt            ,CE061FE,New Construction Conversion and Renovation,,B4,Contractor - Site works                 ,632.98,21/04/2015,C,MAY GURNEY LTD T/A CARTLEDGE  
209,,,Street Tree Programme                   ,CE067FA,New Construction Conversion and Renovation,,B4,Contractor - Site works                 ,"18,334.60",01/06/2015,C,FM CONWAY LTD                 
210,,,Alley Gating Scheme - Fly Tip           ,CE087FA,Other Capital Expenditure,,E1,Grants                                  ,"1,323.00",19/06/2015,C,MALVERN MANOR ALLEYGATE ASSOC 
211,,,Mitcham Town Centre                     ,CE104FP,New Construction Conversion and Renovation,,B4,Contractor - Site works                 ,599.54,11/06/2015,C,EUROVIA INFRASTRUCTURE LTD    
212,,,Mitcham Town Centre                     ,CE104FP,New Construction Conversion and Renovation,,B4,Contractor - Site works                 ,"42,612.45",16/06/2015,C,FM CONWAY LTD                 
213,,,Mitcham Town Centre                     ,CE104FP,New Construction Conversion and Renovation,,B6,Other Costs - Site works                ,786,17/06/2015,C,UK POWER NETWORKS (OPERATIONS)
214,,,A298/A238 Strategic Corridor            ,CE104FQ,New Construction Conversion and Renovation,,B4,Contractor - Site works                 ,"1,291.08",15/06/2015,C,MAY GURNEY LTD T/A CARTLEDGE  
215,,,A298/A238 Strategic Corridor            ,CE104FQ,New Construction Conversion and Renovation,,B4,Contractor - Site works                 ,"6,921.60",15/06/2015,C,MAY GURNEY LTD T/A CARTLEDGE  
216,,,A298/A238 Strategic Corridor            ,CE104FQ,New Construction Conversion and Renovation,,B4,Contractor - Site works                 ,"17,136.00",15/06/2015,C,MAY GURNEY LTD T/A CARTLEDGE  
217,,,Cycle Improvements                      ,CE104RM,New Construction Conversion and Renovation,,B2,Site Surveys D&S Structure              ,"1,100.00",28/05/2015,C,TRAFFICWATCH (UK) LTD.        
218,,,Cycle Improvements                      ,CE104RM,New Construction Conversion and Renovation,,B2,Site Surveys D&S Structure              ,"1,100.00",28/05/2015,C,TRAFFICWATCH (UK) LTD.        
219,,,Cycle Improvements                      ,CE104RM,New Construction Conversion and Renovation,,B6,Other Costs - Site works                ,"9,919.35",02/06/2015,C,UK POWER NETWORKS (OPERATIONS)
220,,,BELVEDERES & RIDGWAY PLACE TRA    ,CE142FB,New Construction Conversion and Renovation,,B4,Contractor - Site works                 ,"3,911.93",08/06/2015,C,FM CONWAY LTD                 
221,,,BELVEDERES & RIDGWAY PLACE TRA    ,CE142FB,New Construction Conversion and Renovation,,B4,Contractor - Site works                 ,"3,730.84",15/06/2015,C,MAY GURNEY LTD T/A CARTLEDGE  
222,,,BELVEDERES & RIDGWAY PLACE TRA    ,CE142FB,New Construction Conversion and Renovation,,B4,Contractor - Site works                 ,"15,000.00",08/06/2015,C,FM CONWAY LTD                 
223,,,19th Wimbledon Scouts                   ,CE147RA,Other Capital Expenditure,,E1,Grants                                  ,"25,000.00",04/05/2015,C,19TH WIMBLEDON SCOUT GROUP    
224,,,Civic Centre refurbishment              ,CF001AB,Vehicles Plant Equipment and Machinery,,D5,Software                                ,"12,410.94",30/04/2015,C,AUDITEL RENTAL & SERVICE LTD  
225,,,Civic Centre- Upgrading lifts           ,CF001AL,Other Capital Expenditure,,E3,Miscellaneous Capital Expendit          ,865,23/06/2015,C,SYNETRIX LIMITED              
226,,,Gorringe Park expansion                 ,CS018AB,New Construction Conversion and Renovation,,B4,Contractor - Site works                 ,"22,645.88",19/06/2015,C,GEE CONSTRUCTION LTD          
227,,,Hillcross School Expansion              ,CS020AC,New Construction Conversion and Renovation,,B4,Contractor - Site works                 ,"227,592.02",01/06/2015,C,MANSELL CONSTRUCTION SERVICES 
228,,,Merton Abbey Temp Accomodation          ,CS022AC,New Construction Conversion and Renovation,,B1,Consultants Fees D&S Structure          ,"2,938.87",28/05/2015,C,PELLINGS LLP                  
229,,,Merton Abbey Temp Accomodation          ,CS022AC,New Construction Conversion and Renovation,,B4,Contractor - Site works                 ,"129,037.64",02/06/2015,C,MANSELL CONSTRUCTION SERVICES 
230,,,Pelham School Expansion                 ,CS023AC,New Construction Conversion and Renovation,,B1,Consultants Fees D&S Structure          ,"7,215.00",29/05/2015,C,HAVERSTOCK ASSOCIATES LLP     
231,,,Pelham School Expansion                 ,CS023AC,New Construction Conversion and Renovation,,B4,Contractor - Site works                 ,"554,969.80",01/06/2015,C,MANSELL CONSTRUCTION SERVICES 
232,,,Cricket Green Site                      ,CS027AE,New Construction Conversion and Renovation,,B1,Consultants Fees D&S Structure          ,"1,500.00",05/06/2015,C,NPS PROPERTY CONSULTANTS LTD  
233,,,Dundonald expansion                     ,CS031AC,New Construction Conversion and Renovation,,B1,Consultants Fees D&S Structure          ,"1,570.00",31/05/2015,C,SYNERGY CPC LLP               
234,,,Dundonald expansion                     ,CS031AC,New Construction Conversion and Renovation,,B1,Consultants Fees D&S Structure          ,"18,943.00",29/05/2015,C,HAVERSTOCK ASSOCIATES LLP     
235,,,Dundonald expansion                     ,CS031AC,New Construction Conversion and Renovation,,B4,Contractor - Site works                 ,"167,000.00",26/05/2015,C,KIND & COMPANY (BUILDERS) LTD 
236,,,Dundonald expansion                     ,CS031AC,New Construction Conversion and Renovation,,B4,Contractor - Site works                 ,"37,912.60",05/06/2015,C,MOY CONSTRUCTION CO LTD       
237,,,Poplar Permanent Expansion              ,CS034AB,New Construction Conversion and Renovation,,B1,Consultants Fees D&S Structure          ,"5,047.03",28/05/2015,C,PELLINGS LLP                  
238,,,Poplar Permanent Expansion              ,CS034AB,New Construction Conversion and Renovation,,B4,Contractor - Site works                 ,"71,113.61",22/05/2015,C,MANSELL CONSTRUCTION SERVICES 
239,,,Singlegate expansion                    ,CS049AA,New Construction Conversion and Renovation,,B4,Contractor - Site works                 ,"32,770.95",29/05/2015,C,MANSELL CONSTRUCTION SERVICES 
240,,,Wimbledon Park expansion                ,CS050AA,New Construction Conversion and Renovation,,B4,Contractor - Site works                 ,"44,721.29",26/05/2015,C,MANSELL CONSTRUCTION SERVICES 
241,,,Perseid                                 ,CS092AA,New Construction Conversion and Renovation,,B1,Consultants Fees D&S Structure          ,"2,165.53",05/06/2015,C,NPS PROPERTY CONSULTANTS LTD  
242,,,Disaster recovery                       ,CT003EA,Other Capital Expenditure,,E3,Miscellaneous Capital Expendit          ,"6,920.00",23/06/2015,C,SYNETRIX LIMITED              
243,,,Disaster recovery                       ,CT003EA,Other Capital Expenditure,,E3,Miscellaneous Capital Expendit          ,"3,685.00",21/05/2015,C,CIVICA UK LIMITED             
244,,,Disaster recovery                       ,CT003EA,Other Capital Expenditure,,E3,Miscellaneous Capital Expendit          ,"14,219.00",21/05/2015,C,CIVICA UK LIMITED             
245,,,IT Equipment                            ,CT006EA,Vehicles Plant Equipment and Machinery,,D3,Equipment                               ,"2,075.00",18/06/2015,C,TOTAL COMPUTER NETWORKS       
246,,,IT Equipment                            ,CT006EA,Vehicles Plant Equipment and Machinery,,D3,Equipment                               ,"16,835.00",23/06/2015,C,TOTAL COMPUTER NETWORKS       
247,,,Data Labling                            ,CT023NA,Vehicles Plant Equipment and Machinery,,D5,Software                                ,"2,400.00",09/06/2015,C,APPERCEPTION                  
248,,,Data Labling                            ,CT023NA,Vehicles Plant Equipment and Machinery,,D5,Software                                ,"7,600.00",02/06/2015,C,PITNEY BOWES SOFTWARE LTD     
249,,,Data Labling                            ,CT023NA,Vehicles Plant Equipment and Machinery,,D5,Software                                ,"38,000.00",02/06/2015,C,PITNEY BOWES SOFTWARE LTD     
250,Central Services,Council tax collection,Local Taxation Services,E02100,Supplies & Services           ,Services                      ,DF11,Counsel's Fees                          ,900,26/05/2015,R,HL SOLICITORS                 
251,Central Services,Council tax collection,Local Taxation Services,E02100,Supplies & Services           ,Services                      ,DF11,Counsel's Fees                          ,"1,032.00",27/05/2015,R,WELBECK LAW LLP               
252,Central Services,Council tax collection,Local Taxation Services,E02100,Supplies & Services           ,Services                      ,DF11,Counsel's Fees                          ,"1,032.00",03/06/2015,R,WELBECK LAW LLP               
253,Central Services,Council tax collection,Local Taxation Services,E02100,Supplies & Services           ,Comms and Computing           ,DG09,Computer Purchases - Misc               ,"21,337.00",29/05/2015,R,CIVICA UK LIMITED             
254,Central Services,Council tax collection,Local Taxation Services,E02100,Supplies & Services           ,Comms and Computing           ,DG09,Computer Purchases - Misc               ,649.92,10/03/2015,R,CIVICA UK LIMITED             
255,Central Services,Council tax collection,Local Taxation Services,E02100,Supplies & Services           ,Comms and Computing           ,DG09,Computer Purchases - Misc               ,"2,823.79",29/05/2015,R,CIVICA UK LIMITED             
256,Central Services,Council tax collection,Local Taxation Services,E02100,Third Party Payments          ,Private Contractors           ,EH01,Miscellaneous Agency Services           ,694.52,01/04/2015,R,COMMERCIAL COLLECTION SERVICES
257,Central Services,Council tax collection,Local Taxation Bailiffs,E02101,Supplies & Services           ,Services                      ,DF18,Bailiffs' fees                          ,877.5,03/06/2015,R,QUARTIX                       
258,Housing Services,HB Administration,Local Welfare Support,E02123,Transfer Payments             ,Housing Benefits              ,FA95,Other Payments                          ,"4,500.00",18/06/2015,R,MERTON & LAMBETH CAB LTD      
259,Central Services,SupS Corporate Finance,TRANSACTIONS,E02139,Employees                     ,Direct Employee Expenses      ,AA04,Shared Services Salaries                ,"1,556.96",20/05/2015,R,LONDON BOROUGH OF SUTTON      
260,Central Services,SupS Payroll,Payroll,E02140,Third Party Payments          ,Private Contractors           ,EH10,Contract Payments                       ,"5,333.50",02/06/2015,R,LONDON BOROUGH OF SUTTON      
261,Central Services,SupS Payroll,Payroll,E02140,Third Party Payments          ,Private Contractors           ,EH10,Contract Payments                       ,"5,766.87",01/05/2015,R,LONDON BOROUGH OF SUTTON      
262,Central Services,SupS Payroll,Payroll,E02140,Third Party Payments          ,Private Contractors           ,EH10,Contract Payments                       ,"13,637.89",01/05/2015,R,LONDON BOROUGH OF SUTTON      
263,Central Services,SupS Payroll,Payroll,E02140,Third Party Payments          ,Private Contractors           ,EH10,Contract Payments                       ,"8,525.14",16/06/2015,R,LONDON BOROUGH OF SUTTON      
264,Central Services,SupS Payroll,Payroll,E02140,Third Party Payments          ,Private Contractors           ,EH10,Contract Payments                       ,"2,750.00",12/06/2015,R,LONDON BOROUGH OF SUTTON      
265,Central Services,SupS Payroll,Payroll,E02140,Third Party Payments          ,Private Contractors           ,EH10,Contract Payments                       ,"19,483.32",16/06/2015,R,LONDON BOROUGH OF SUTTON      
266,Central Services,SupS Payroll,Payroll,E02140,Third Party Payments          ,Private Contractors           ,EH10,Contract Payments                       ,"13,151.18",02/06/2015,R,LONDON BOROUGH OF SUTTON      
267,Central Services,SupS Payroll,Trinity Project,E02141,Supplies & Services           ,Services                      ,DF03,Consultants                             ,"1,230.00",19/05/2015,R,LONDON BOROUGH OF SUTTON      
268,Central Services,SupS Payroll,Trinity Project,E02141,Supplies & Services           ,Services                      ,DF03,Consultants                             ,"1,435.00",22/06/2015,R,LONDON BOROUGH OF SUTTON      
269,Central Services,SupS Facilities,Post Room,E02220,Supplies & Services           ,Prntng Stnry Gen Off Exp      ,DE30,General Office Expense                  ,"1,460.00",30/03/2015,R,PITNEY BOWES LTD              
270,Central Services,SupS Facilities,Post Room,E02220,Supplies & Services           ,Prntng Stnry Gen Off Exp      ,DE30,General Office Expense                  ,"1,575.00",24/03/2015,R,PITNEY BOWES LTD              
271,Central Services,SupS Facilities,Post Room,E02220,Supplies & Services           ,Comms and Computing           ,DG04,Postage - General                       ,650.54,15/06/2015,R,STREETWISE COURIERS           
272,Central Services,SupS Facilities,Post Room,E02220,Supplies & Services           ,Comms and Computing           ,DG04,Postage - General                       ,700.38,08/06/2015,R,STREETWISE COURIERS           
273,Central Services,SupS Facilities,Post Room,E02220,Supplies & Services           ,Comms and Computing           ,DG04,Postage - General                       ,672.27,26/05/2015,R,NEOPOST FINANCE LIMITED       
274,Central Services,SupS Facilities,Post Room,E02220,Supplies & Services           ,Comms and Computing           ,DG04,Postage - General                       ,501.5,31/05/2015,R,STREETWISE COURIERS           
275,Central Services,SupS Facilities,Post Room,E02220,Supplies & Services           ,Comms and Computing           ,DG04,Postage - General                       ,731.97,26/05/2015,R,STREETWISE COURIERS           
276,Central Services,SupS Facilities,Post Room,E02220,Supplies & Services           ,Comms and Computing           ,DG04,Postage - General                       ,"2,091.64",31/05/2015,R,ADDISON LEE LTD               
277,Central Services,SupS Facilities,Security Services,E02221,Employees                     ,Direct Employee Expenses      ,AA17,Agency Staff & Casual Paymts            ,"1,603.68",01/06/2015,R,SIGHT & SOUND                 
278,Central Services,SupS Facilities,Security Services,E02221,Employees                     ,Direct Employee Expenses      ,AA17,Agency Staff & Casual Paymts            ,"1,069.12",01/06/2015,R,SIGHT & SOUND                 
279,Central Services,SupS Facilities,Security Services,E02221,Employees                     ,Direct Employee Expenses      ,AA17,Agency Staff & Casual Paymts            ,"1,562.56",01/06/2015,R,SIGHT & SOUND                 
280,Central Services,SupS Facilities,Security Services,E02221,Employees                     ,Direct Employee Expenses      ,AA17,Agency Staff & Casual Paymts            ,"2,306.11",01/06/2015,R,SIGHT & SOUND                 
281,Central Services,SupS Facilities,Security Services,E02221,Employees                     ,Direct Employee Expenses      ,AA17,Agency Staff & Casual Paymts            ,647.64,01/06/2015,R,SIGHT & SOUND                 
282,Central Services,SupS Facilities,Civic Centre,E02222,Premises Related Expenditure  ,RepairsAlterations&MtceOfBldgs,BA29,BUILD MAINT MGT FEES                    ,"26,704.45",31/03/2015,R,EUROPA NATIONWIDE TECH.SER.LTD
283,Central Services,SupS Facilities,Civic Centre,E02222,Premises Related Expenditure  ,RepairsAlterations&MtceOfBldgs,BA29,BUILD MAINT MGT FEES                    ,"4,112.10",28/05/2015,R,UNIQUE OFFICE SOLUTIONS LTD   
284,Central Services,SupS Facilities,Civic Centre,E02222,Premises Related Expenditure  ,RepairsAlterations&MtceOfBldgs,BA29,BUILD MAINT MGT FEES                    ,"1,667.97",04/06/2015,R,LOVELL PARTNERSHIPS LTD
285,Central Services,SupS Facilities,Civic Centre,E02222,Supplies & Services           ,Equip Furniture/Materials     ,DA01,Equipment - R & M                       ,"1,146.00",16/06/2015,R,SSD LIMITED                   
286,Central Services,SupS Facilities,Civic Centre,E02222,Supplies & Services           ,Equip Furniture/Materials     ,DA01,Equipment - R & M                       ,"1,093.00",16/06/2015,R,SSD LIMITED                   
287,Central Services,SupS Facilities,Civic Centre,E02222,Supplies & Services           ,Equip Furniture/Materials     ,DA01,Equipment - R & M                       ,"1,671.00",16/06/2015,R,SSD LIMITED                   
288,Central Services,SupS Facilities,Civic Centre,E02222,Supplies & Services           ,Equip Furniture/Materials     ,DA01,Equipment - R & M                       ,"7,382.00",16/06/2015,R,SSD LIMITED                   
289,Central Services,SupS Facilities,Civic Centre,E02222,Supplies & Services           ,Equip Furniture/Materials     ,DA09,Equip-Purchases                         ,"1,067.50",01/06/2015,R,AVELEC SOLUTIONS              
290,Central Services,SupS Facilities,Facilities,E02231,Premises Related Expenditure  ,RepairsAlterations&MtceOfBldgs,BA02,ENERGY CONSERVATION                     ,"1,917.00",18/06/2015,R,BERGEN ENERGI                 
291,Central Services,SupS Facilities,Facilities,E02231,Premises Related Expenditure  ,RepairsAlterations&MtceOfBldgs,BA02,ENERGY CONSERVATION                     ,"4,133.70",25/03/2015,R,ENERGY SAVING LIGHTING (UK) LT
292,Central Services,SupS Facilities,Facilities,E02231,Premises Related Expenditure  ,RepairsAlterations&MtceOfBldgs,BA02,ENERGY CONSERVATION                     ,"4,000.00",21/05/2015,R,BRIAR ASSOCIATES              
293,Central Services,SupS Facilities,Facilities,E02231,Premises Related Expenditure  ,RepairsAlterations&MtceOfBldgs,BA02,ENERGY CONSERVATION                     ,"5,536.57",17/06/2015,R,STARK SOFTWARE INTERNATIONAL  
294,Central Services,SupS Facilities,Facilities,E02231,Premises Related Expenditure  ,RepairsAlterations&MtceOfBldgs,BA02,ENERGY CONSERVATION                     ,"1,419.59",17/06/2015,R,STARK SOFTWARE INTERNATIONAL  
295,Central Services,SupS Facilities,Facilities,E02231,Premises Related Expenditure  ,Energy Costs                  ,BB02,Electricity                             ,"2,916.48",05/03/2015,R,NPOWER                        
296,Central Services,SupS Facilities,Facilities,E02231,Premises Related Expenditure  ,Energy Costs                  ,BB02,Electricity                             ,"-1,911.73",11/06/2015,R,NPOWER                        
297,Central Services,SupS Facilities,Facilities,E02231,Supplies & Services           ,Equip Furniture/Materials     ,DA09,Equip-Purchases                         ,"1,340.53",01/06/2015,R,REDACTED     
298,Central Services,SupS Facilities,Facilities,E02231,Supplies & Services           ,Services                      ,DF09,Miscellaneous Fees                      ,"43,831.82",12/05/2015,R,REDACTED     
299,Central Services,SupS Facilities,Facilities,E02231,Supplies & Services           ,Services                      ,DF09,Miscellaneous Fees                      ,825,28/05/2015,R,REDACTED     
300,Central Services,SupS Facilities,Facilities,E02231,Supplies & Services           ,Services                      ,DF09,Miscellaneous Fees                      ,"3,300.01",01/06/2015,R,REDACTED     
301,Central Services,SupS Facilities,Facilities,E02231,Supplies & Services           ,Services                      ,DF09,Miscellaneous Fees                      ,"5,164.50",12/05/2015,R,REDACTED     
302,Central Services,SupS Facilities,FM External Fees,E02239,Premises Related Expenditure  ,RepairsAlterations&MtceOfBldgs,BA29,Build Maint Mgt Fees                    ,"14,677.95",06/05/2015,R,COMPLEMENT CONSULTING LIMITED 
303,Central Services,SupS Facilities,FM External Fees,E02239,Premises Related Expenditure  ,RepairsAlterations&MtceOfBldgs,BA29,Build Maint Mgt Fees                    ,"1,547.25",06/05/2015,R,COMPLEMENT CONSULTING LIMITED 
304,Central Services,SupS Facilities,FM External Fees,E02239,Premises Related Expenditure  ,RepairsAlterations&MtceOfBldgs,BA29,Build Maint Mgt Fees                    ,841.95,06/05/2015,R,COMPLEMENT CONSULTING LIMITED 
305,Central Services,SupS Facilities,Corporate Services Buildings,E02240,Premises Related Expenditure  ,RepairsAlterations&MtceOfBldgs,BA03,DDM - Mechanical                        ,"1,966.50",21/05/2015,R,AXIS ELEVATORS LTD            
306,Central Services,SupS Facilities,Corporate Services Buildings,E02240,Premises Related Expenditure  ,RepairsAlterations&MtceOfBldgs,BA05,DDM - Electrical                        ,"2,550.00",19/05/2015,R,EDMUNDSON ELECTRICAL LTD      
307,Central Services,SupS Facilities,Corporate Services Buildings,E02240,Premises Related Expenditure  ,RepairsAlterations&MtceOfBldgs,BA05,DDM - Electrical                        ,"1,082.40",01/04/2015,R,EUROPA NATIONWIDE TECH.SER.LTD
308,Central Services,SupS Facilities,Corporate Services Buildings,E02240,Premises Related Expenditure  ,RepairsAlterations&MtceOfBldgs,BA05,DDM - Electrical                        ,569.8,01/06/2015,R,EUROPA NATIONWIDE TECH.SER.LTD
309,Central Services,SupS Facilities,Corporate Services Buildings,E02240,Premises Related Expenditure  ,RepairsAlterations&MtceOfBldgs,BA05,DDM - Electrical                        ,609.39,28/05/2015,R,AXIS ELEVATORS LTD            
310,Central Services,SupS Facilities,Corporate Services Buildings,E02240,Premises Related Expenditure  ,RepairsAlterations&MtceOfBldgs,BA05,DDM - Electrical                        ,"2,444.00",28/05/2015,R,EDMUNDSON ELECTRICAL LTD      
311,Central Services,SupS Facilities,Corporate Services Buildings,E02240,Premises Related Expenditure  ,RepairsAlterations&MtceOfBldgs,BA05,DDM - Electrical                        ,525,08/05/2015,R,AXIS ELEVATORS LTD            
312,Central Services,SupS Facilities,Corporate Services Buildings,E02240,Premises Related Expenditure  ,Energy Costs                  ,BB03,Gas (incl. Butane)                      ,"2,829.89",14/05/2015,R,GAZPROM MARKETING&TRADING LTD 
313,Central Services,SupS Facilities,Corporate Services Buildings,E02240,Premises Related Expenditure  ,Energy Costs                  ,BB03,Gas (incl. Butane)                      ,"1,694.71",04/06/2015,R,GAZPROM MARKETING&TRADING LTD 
314,Central Services,SupS Facilities,Corporate Services Buildings,E02240,Premises Related Expenditure  ,Water Services                ,BE01,Use of Water (Metered)                  ,"1,281.07",29/05/2015,R,SUTTON AND EAST SURREY WATER  
315,Childrens & Education Services,Strategic Management,PDC,E02254,Premises Related Expenditure  ,Energy Costs                  ,BB02,Electricity                             ,635.29,01/06/2015,R,SCOTTISHPOWER                 
316,Childrens & Education Services,Strategic Management,PDC,E02254,Premises Related Expenditure  ,Cleaning and Domestic Supplies,BH03,Cleaning Services                       ,"2,618.81",30/05/2015,R,JULIUS RUTHERFOORD & CO LTD   
317,Childrens & Education Services,Strategic Management,PDC,E02254,Supplies & Services           ,Equip Furniture/Materials     ,DA04,Materials                               ,525,15/06/2015,R,J CARROLL & SONS              
318,Adult Social Care,OP 65 & Over Day Care,Pollards Hill Day Centre,E02270,Premises Related Expenditure  ,Cleaning and Domestic Supplies,BH01,Cleaning Materials                      ,504,09/06/2015,R,GREENHAM TRADING LTD          
319,Adult Social Care,OP 65 & Over Day Care,Pollards Hill Day Centre,E02270,Premises Related Expenditure  ,Cleaning and Domestic Supplies,BH03,Cleaning Services                       ,"1,421.80",01/06/2015,R,BIRKIN CLEANING SERVICES LTD  
320,Adult Social Care,OP 65 & Over Day Care,Pollards Hill Day Centre,E02270,Premises Related Expenditure  ,Cleaning and Domestic Supplies,BH03,Cleaning Services                       ,"3,093.61",30/04/2015,R,BIRKIN CLEANING SERVICES LTD  
321,Adult Social Care,OP 65 & Over Day Care,Pollards Hill Day Centre,E02270,Premises Related Expenditure  ,Cleaning and Domestic Supplies,BH03,Cleaning Services                       ,"1,239.08",30/04/2015,R,BIRKIN CLEANING SERVICES LTD  
322,Adult Social Care,OP 65 & Over Day Care,Pollards Hill Day Centre,E02270,Premises Related Expenditure  ,Cleaning and Domestic Supplies,BH03,Cleaning Services                       ,"1,492.52",01/06/2015,R,BIRKIN CLEANING SERVICES LTD  
323,Adult Social Care,OP 65 & Over Day Care,Pollards Hill Day Centre,E02270,Premises Related Expenditure  ,Cleaning and Domestic Supplies,BH03,Cleaning Services                       ,"3,093.61",01/06/2015,R,BIRKIN CLEANING SERVICES LTD  
324,Adult Social Care,OP 65 & Over Day Care,Pollards Hill Day Centre,E02270,Premises Related Expenditure  ,Cleaning and Domestic Supplies,BH03,Cleaning Services                       ,"1,540.02",30/04/2015,R,BIRKIN CLEANING SERVICES LTD  
325,Adult Social Care,OP 65 & Over Day Care,Pollards Hill Day Centre,E02270,Premises Related Expenditure  ,Cleaning and Domestic Supplies,BH03,Cleaning Services                       ,"1,421.80",30/04/2015,R,BIRKIN CLEANING SERVICES LTD  
326,Adult Social Care,OP 65 & Over Day Care,Pollards Hill Day Centre,E02270,Premises Related Expenditure  ,Cleaning and Domestic Supplies,BH03,Cleaning Services                       ,"6,596.17",01/06/2015,R,BIRKIN CLEANING SERVICES LTD  
327,Adult Social Care,OP 65 & Over Day Care,Pollards Hill Day Centre,E02270,Premises Related Expenditure  ,Cleaning and Domestic Supplies,BH03,Cleaning Services                       ,"1,540.02",01/06/2015,R,BIRKIN CLEANING SERVICES LTD  
328,Adult Social Care,OP 65 & Over Day Care,Pollards Hill Day Centre,E02270,Premises Related Expenditure  ,Cleaning and Domestic Supplies,BH03,Cleaning Services                       ,"6,596.17",30/04/2015,R,BIRKIN CLEANING SERVICES LTD  
329,Adult Social Care,OP 65 & Over Day Care,Pollards Hill Day Centre,E02270,Premises Related Expenditure  ,Cleaning and Domestic Supplies,BH03,Cleaning Services                       ,"1,492.52",30/04/2015,R,BIRKIN CLEANING SERVICES LTD  
330,Adult Social Care,OP 65 & Over Day Care,Pollards Hill Day Centre,E02270,Premises Related Expenditure  ,Cleaning and Domestic Supplies,BH03,Cleaning Services                       ,"1,673.61",30/04/2015,R,BIRKIN CLEANING SERVICES LTD  
331,Adult Social Care,OP 65 & Over Day Care,Pollards Hill Day Centre,E02270,Premises Related Expenditure  ,Cleaning and Domestic Supplies,BH03,Cleaning Services                       ,"1,222.20",30/04/2015,R,BIRKIN CLEANING SERVICES LTD  
332,Adult Social Care,OP 65 & Over Day Care,Pollards Hill Day Centre,E02270,Premises Related Expenditure  ,Cleaning and Domestic Supplies,BH03,Cleaning Services                       ,"1,222.20",01/06/2015,R,BIRKIN CLEANING SERVICES LTD  
333,Adult Social Care,OP 65 & Over Day Care,Pollards Hill Day Centre,E02270,Premises Related Expenditure  ,Cleaning and Domestic Supplies,BH03,Cleaning Services                       ,674.17,30/04/2015,R,BIRKIN CLEANING SERVICES LTD  
334,Adult Social Care,OP 65 & Over Day Care,Pollards Hill Day Centre,E02270,Premises Related Expenditure  ,Cleaning and Domestic Supplies,BH03,Cleaning Services                       ,835.04,30/04/2015,R,BIRKIN CLEANING SERVICES LTD  
335,Adult Social Care,OP 65 & Over Day Care,Pollards Hill Day Centre,E02270,Premises Related Expenditure  ,Cleaning and Domestic Supplies,BH03,Cleaning Services                       ,835.04,01/06/2015,R,BIRKIN CLEANING SERVICES LTD  
336,Adult Social Care,OP 65 & Over Day Care,Pollards Hill Day Centre,E02270,Premises Related Expenditure  ,Cleaning and Domestic Supplies,BH03,Cleaning Services                       ,"1,239.08",01/06/2015,R,BIRKIN CLEANING SERVICES LTD  
337,Adult Social Care,OP 65 & Over Day Care,Pollards Hill Day Centre,E02270,Premises Related Expenditure  ,Cleaning and Domestic Supplies,BH03,Cleaning Services                       ,674.17,01/06/2015,R,BIRKIN CLEANING SERVICES LTD  
338,Adult Social Care,OP 65 & Over Day Care,Pollards Hill Day Centre,E02270,Premises Related Expenditure  ,Cleaning and Domestic Supplies,BH03,Cleaning Services                       ,"1,673.61",01/06/2015,R,BIRKIN CLEANING SERVICES LTD  
339,,,CORPORATE ELECTRICITY RECHARGE,E02275,Premises Related Expenditure  ,Energy Costs                  ,BB02,Electricity                             ,"23,530.62",17/04/2015,R,SCOTTISHPOWER                 
340,,,CORPORATE ELECTRICITY RECHARGE,E02275,Premises Related Expenditure  ,Energy Costs                  ,BB02,Electricity                             ,"22,125.72",18/05/2015,R,SCOTTISHPOWER                 
341,,,CORPORATE ELECTRICITY RECHARGE,E02275,Premises Related Expenditure  ,Energy Costs                  ,BB02,Electricity                             ,"20,028.41",17/06/2015,R,SCOTTISHPOWER                 
342,Cultural Env Reg&Plan Services,Parks & Open Spaces,Leisure Buildings,E02350,Premises Related Expenditure  ,RepairsAlterations&MtceOfBldgs,BA01,DDM - General Building                  ,"2,091.35",08/05/2015,R,SALTASH ENTERPRISES LTD       
343,Central Services,Officer support time,Corporately Funded Items,E04065,Supplies & Services           ,Services                      ,DF96,LBM Legal Services                      ,787.5,27/05/2015,R,REDACTED     
344,Central Services,SupS Corporate Finance,Corporate Accountancy,E06209,Supplies & Services           ,Services                      ,DF03,Consultants                             ,"6,440.00",31/05/2015,R,PUBLIC SECTOR CONSULTANTS     
345,Central Services,SupS Corporate Finance,Corporate Accountancy,E06209,Supplies & Services           ,Grants and Subscriptions      ,DJ04,Subscriptions                           ,"3,000.00",12/05/2015,R,PRICEWATERHOUSE COOPERS       
346,Central Services,SupS Strategic Finance,Business Planning,E06221,Employees                     ,Direct Employee Expenses      ,AA17,Agency Staff & Casual Paymts            ,"1,400.00",14/05/2015,R,HAYS RECRUITING EXPERTS       
347,Central Services,SupS Strategic Finance,Business Planning,E06221,Employees                     ,Direct Employee Expenses      ,AA17,Agency Staff & Casual Paymts            ,"1,750.00",10/06/2015,R,HAYS RECRUITING EXPERTS       
348,Central Services,SupS Strategic Finance,Business Planning,E06221,Employees                     ,Direct Employee Expenses      ,AA17,Agency Staff & Casual Paymts            ,"1,400.00",03/06/2015,R,HAYS RECRUITING EXPERTS       
349,Central Services,SupS Strategic Finance,Business Planning,E06221,Employees                     ,Direct Employee Expenses      ,AA17,Agency Staff & Casual Paymts            ,"1,750.00",27/05/2015,R,HAYS RECRUITING EXPERTS       
350,Central Services,GENERATED ACCOUNT,Parking Cash Collect'n Contrct,E06225,Third Party Payments          ,Private Contractors           ,EH02,Miscellaneous Hired Services            ,528.32,31/05/2015,R,BANKING AUTOMATION LTD        
351,Central Services,GENERATED ACCOUNT,Parking Cash Collect'n Contrct,E06225,Third Party Payments          ,Private Contractors           ,EH02,Miscellaneous Hired Services            ,599.85,31/05/2015,R,BANKING AUTOMATION LTD        
352,Central Services,GENERATED ACCOUNT,Establishments' Cash Collect'n,E06226,Third Party Payments          ,Private Contractors           ,EH02,Miscellaneous Hired Services            ,"9,304.02",31/05/2015,R,BANKING AUTOMATION LTD        
353,Central Services,SupS DOF,Service Accountancy,E06227,Employees                     ,Direct Employee Expenses      ,AA17,Agency Staff & Casual Paymts            ,"1,380.00",23/06/2015,R,REDACTED
354,Central Services,SupS DOF,Service Accountancy,E06227,Employees                     ,Direct Employee Expenses      ,AA17,Agency Staff & Casual Paymts            ,"3,220.00",29/05/2015,R,REDACTED
355,Central Services,Land Charges,Land Charges,E10283,Supplies & Services           ,Prntng Stnry Gen Off Exp      ,DE30,General Office Expense                  ,800,29/05/2015,R,LIGHTSPEED BUSINESS SOLUTIONS 
356,Central Services,Land Charges,Land Charges,E10283,Supplies & Services           ,Services                      ,DF11,Counsel's fees                          ,"2,010.36",15/05/2015,R,LOCAL GOVERNMENT ASSOCIATION  
357,Central Services,Land Charges,Land Charges,E10283,Supplies & Services           ,Expenses                      ,DH16,Compensation Payments                   ,"152,802.27",02/06/2015,R,REDACTED     
358,Central Services,Land Charges,Land Charges,E10283,Supplies & Services           ,Expenses                      ,DH16,Compensation Payments                   ,"-152,802.27",02/06/2015,R,REDACTED     
359,Central Services,Conducting elections,Election Expenses,E10284,Premises Related Expenditure  ,Rents                         ,BC03,Room/venue rental hire                  ,"6,042.00",16/04/2015,R,GREENWICH LEISURE LTD         
360,Central Services,Conducting elections,Election Expenses,E10284,Supplies & Services           ,Equip Furniture/Materials     ,DA09,Equip-Purchases                         ,"5,162.00",26/02/2015,R,SHAW & SONS LTD               
361,Central Services,Conducting elections,Election Expenses,E10284,Supplies & Services           ,Prntng Stnry Gen Off Exp      ,DE03,Stationery                              ,"5,147.69",01/04/2015,R,FINANCIAL DATA MANAGEMENT PLC 
362,Central Services,Registration of electors,Electoral Registration,E10285,Employees                     ,Direct Employee Expenses      ,AA17,Agency Staff & Casual Paymts            ,"6,410.80",04/12/2014,R,REDACTED
363,Central Services,Registration of electors,Electoral Registration,E10285,Supplies & Services           ,Prntng Stnry Gen Off Exp      ,DE03,Stationery                              ,523.11,28/02/2015,R,FINANCIAL DATA MANAGEMENT PLC 
364,Central Services,Registration of electors,Electoral Registration,E10285,Supplies & Services           ,Prntng Stnry Gen Off Exp      ,DE03,Stationery                              ,587.49,01/04/2015,R,FINANCIAL DATA MANAGEMENT PLC 
365,Central Services,Registration of electors,Electoral Registration,E10285,Supplies & Services           ,Prntng Stnry Gen Off Exp      ,DE03,Stationery                              ,"4,371.38",28/02/2015,R,FINANCIAL DATA MANAGEMENT PLC 
366,Central Services,SupS Legal,Shared Legal Service,E10288,Supplies & Services           ,Equip Furniture/Materials     ,DA80,Books                                   ,"27,084.58",10/06/2015,R,LEXIS NEXIS                   
367,Central Services,SupS Legal,Shared Legal Service,E10288,Supplies & Services           ,Prntng Stnry Gen Off Exp      ,DE30,General Office Expense                  ,"1,303.62",31/05/2015,R,WINCANTON RECORDS MANAGEMENT  
368,Central Services,SupS Legal,Shared Legal Service,E10288,Supplies & Services           ,Comms and Computing           ,DG04,Postage - General                       ,500,28/05/2015,R,NEOPOST FINANCE LIMITED       
369,Central Services,SupS Legal,Shared Legal Service,E10288,Supplies & Services           ,Comms and Computing           ,DG04,Postage - General                       ,750,11/06/2015,R,DX NETWORK SERVICES LTD       
370,Central Services,SupS Legal,Shared Legal Service,E10288,Supplies & Services           ,Comms and Computing           ,DG50,Other IT Expenditure                    ,"10,000.00",09/06/2015,R,ZYLPHA LIMITED                
371,Central Services,SupS Legal,Richmond Legal,E10289,Supplies & Services           ,Services                      ,DF95,Services from Provider                  ,"1,185.00",31/05/2015,R,SHARPE PRITCHARD SOLICITORS   
372,Central Services,SupS Legal,Richmond Legal,E10289,Supplies & Services           ,Services                      ,DF95,Services from Provider                  ,"7,900.00",26/06/2015,R,DUNCAN LEWIS (SOLICITORS) LTD 
373,Central Services,SupS Legal,Richmond Legal,E10289,Supplies & Services           ,Services                      ,DF95,Services from Provider                  ,"1,877.50",28/05/2015,R,REDACTED     
374,Central Services,SupS Legal,Kingston Legal                          ,E10292,Supplies & Services           ,Services                      ,DF02,Misc Advertising/Publicity              ,744.96,22/05/2015,R,NEWSQUEST (LONDON)LTD         
375,Central Services,SupS Legal,Kingston Legal                          ,E10292,Supplies & Services           ,Services                      ,DF11,Counsel's Fees                          ,"3,910.00",24/03/2015,R,REDACTED     
376,Central Services,SupS Legal,Kingston Legal                          ,E10292,Supplies & Services           ,Services                      ,DF11,Counsel's Fees                          ,"2,000.00",18/05/2015,R,REDACTED     
377,Central Services,SupS Legal,Kingston Legal                          ,E10292,Supplies & Services           ,Services                      ,DF11,Counsel's Fees                          ,875,19/05/2015,R,REDACTED     
378,Central Services,SupS Legal,Kingston Legal                          ,E10292,Supplies & Services           ,Services                      ,DF11,Counsel's Fees                          ,"5,250.00",19/05/2015,R,REDACTED     
379,Central Services,SupS Legal,Kingston Legal                          ,E10292,Supplies & Services           ,Services                      ,DF95,Services from Provider                  ,750,16/06/2015,R,REDACTED     
380,Central Services,SupS Legal,Sutton Legal                            ,E10293,Supplies & Services           ,Services                      ,DF11,Counsel's Fees                          ,"1,310.00",13/05/2015,R,REDACTED     
381,Central Services,SupS Legal,Sutton Legal                            ,E10293,Supplies & Services           ,Services                      ,DF11,Counsel's Fees                          ,840,13/05/2015,R,REDACTED     
382,Central Services,SupS Legal,Sutton Legal                            ,E10293,Supplies & Services           ,Services                      ,DF11,Counsel's Fees                          ,"7,676.50",09/06/2015,R,REDACTED     
383,Central Services,SupS Legal,Sutton Legal                            ,E10293,Supplies & Services           ,Services                      ,DF11,Counsel's Fees                          ,"2,010.36",15/05/2015,R,LOCAL GOVERNMENT ASSOCIATION  
384,Central Services,SupS Legal,Sutton Legal                            ,E10293,Supplies & Services           ,Services                      ,DF11,Counsel's Fees                          ,"1,000.00",06/05/2015,R,REDACTED     
385,Central Services,SupS Legal,Sutton Legal                            ,E10293,Supplies & Services           ,Services                      ,DF11,Counsel's Fees                          ,"1,933.75",03/06/2015,R,REDACTED     
386,Central Services,SupS Legal,Sutton Legal                            ,E10293,Supplies & Services           ,Services                      ,DF11,Counsel's Fees                          ,"2,000.00",09/06/2015,R,REDACTED     
387,Central Services,SupS Legal,Sutton Legal                            ,E10293,Supplies & Services           ,Services                      ,DF11,Counsel's Fees                          ,500,27/05/2015,R,REDACTED     
388,Central Services,SupS Legal,Sutton Legal                            ,E10293,Supplies & Services           ,Services                      ,DF11,Counsel's Fees                          ,"4,125.00",30/04/2015,R,REDACTED     
389,Central Services,SupS Legal,Sutton Legal                            ,E10293,Supplies & Services           ,Services                      ,DF11,Counsel's Fees                          ,570,29/04/2015,R,REDACTED     
390,Central Services,SupS Legal,Sutton Legal                            ,E10293,Supplies & Services           ,Services                      ,DF11,Counsel's Fees                          ,"1,620.00",03/06/2015,R,REDACTED     
391,Central Services,SupS Legal,Sutton Legal                            ,E10293,Supplies & Services           ,Services                      ,DF14,Doctors and Other Fees                  ,"1,111.95",08/02/2015,R,GARY TAYLOR ASSOCIATES LTD    
392,Central Services,SupS Legal,Sutton Legal                            ,E10293,Supplies & Services           ,Services                      ,DF14,Doctors and Other Fees                  ,"1,634.77",31/03/2015,R,MPA LTD                       
393,Central Services,SupS Legal,Sutton Legal                            ,E10293,Supplies & Services           ,Services                      ,DF14,Doctors and Other Fees                  ,"1,067.15",08/04/2015,R,REDACTED     
394,Central Services,SupS Legal,Sutton Legal                            ,E10293,Supplies & Services           ,Services                      ,DF14,Doctors and Other Fees                  ,"1,217.21",20/01/2015,R,BIBBY FACTORS YORKSHIRE LTD   
395,Central Services,SupS Legal,Sutton Legal                            ,E10293,Supplies & Services           ,Services                      ,DF14,Doctors and Other Fees                  ,"1,276.80",13/04/2015,R,REDACTED     
396,Central Services,SupS Legal,Sutton Legal                            ,E10293,Supplies & Services           ,Services                      ,DF95,Services from Provider                  ,580,01/06/2015,R,UBIQUS UK LTD                 
397,Central Services,SupS Legal,Sutton Legal                            ,E10293,Supplies & Services           ,Services                      ,DF95,Services from Provider                  ,750,11/05/2015,R,UBIQUS UK LTD                 
398,Central Services,SupS Legal,Sutton Legal                            ,E10293,Supplies & Services           ,Services                      ,DF95,Services from Provider                  ,"3,600.00",31/05/2015,R,SHARPE PRITCHARD SOLICITORS   
399,Central Services,SupS Legal,Sutton Legal                            ,E10293,Supplies & Services           ,Services                      ,DF95,Services from Provider                  ,"4,350.00",13/05/2015,R,CRIPPS  LLP                   
400,Central Services,SupS Legal,Achieving for Children (AFC),E10295,Supplies & Services           ,Services                      ,DF11,Counsel's Fees                          ,560,20/05/2015,R,REDACTED     
401,Central Services,SupS Legal,Achieving for Children (AFC),E10295,Supplies & Services           ,Services                      ,DF11,Counsel's Fees                          ,"1,440.00",09/06/2015,R,REDACTED     
402,Central Services,SupS Legal,Achieving for Children (AFC),E10295,Supplies & Services           ,Services                      ,DF11,Counsel's Fees                          ,602.5,22/06/2015,R,REDACTED     
403,Central Services,SupS Legal,Achieving for Children (AFC),E10295,Supplies & Services           ,Services                      ,DF11,Counsel's Fees                          ,510,09/06/2015,R,REDACTED     
404,Central Services,SupS Legal,Achieving for Children (AFC),E10295,Supplies & Services           ,Services                      ,DF11,Counsel's Fees                          ,"2,000.00",26/05/2015,R,REDACTED     
405,Central Services,SupS Legal,Achieving for Children (AFC),E10295,Supplies & Services           ,Services                      ,DF11,Counsel's Fees                          ,755.83,09/06/2015,R,REDACTED     
406,Central Services,SupS Legal,Achieving for Children (AFC),E10295,Supplies & Services           ,Services                      ,DF11,Counsel's Fees                          ,"1,640.00",13/05/2015,R,REDACTED     
407,Central Services,SupS Legal,Achieving for Children (AFC),E10295,Supplies & Services           ,Services                      ,DF11,Counsel's Fees                          ,750,01/06/2015,R,REDACTED     
408,Central Services,SupS Legal,Achieving for Children (AFC),E10295,Supplies & Services           ,Services                      ,DF11,Counsel's Fees                          ,"1,125.00",09/06/2015,R,REDACTED     
409,Central Services,SupS Legal,Achieving for Children (AFC),E10295,Supplies & Services           ,Services                      ,DF11,Counsel's Fees                          ,"1,850.00",01/06/2015,R,REDACTED     
410,Central Services,SupS Legal,Achieving for Children (AFC),E10295,Supplies & Services           ,Services                      ,DF11,Counsel's Fees                          ,"1,040.00",14/04/2015,R,REDACTED     
411,Central Services,SupS Legal,Achieving for Children (AFC),E10295,Supplies & Services           ,Services                      ,DF14,Doctors and Other Fees                  ,821,11/06/2015,R,REDACTED     
412,Central Services,SupS IT,Social Care Info System (SCI)           ,E14357,Employees                     ,Direct Employee Expenses      ,AA17,Agency Staff & Casual Paymts            ,"1,815.00",27/05/2015,R,HAYS RECRUITING EXPERTS       
413,Central Services,SupS IT,Social Care Info System (SCI)           ,E14357,Employees                     ,Direct Employee Expenses      ,AA17,Agency Staff & Casual Paymts            ,907.5,10/06/2015,R,HAYS RECRUITING EXPERTS       
414,Central Services,SupS IT,Social Care Info System (SCI)           ,E14357,Employees                     ,Direct Employee Expenses      ,AA17,Agency Staff & Casual Paymts            ,"1,815.00",20/05/2015,R,HAYS RECRUITING EXPERTS       
415,Central Services,SupS IT,Social Care Info System (SCI)           ,E14357,Employees                     ,Direct Employee Expenses      ,AA17,Agency Staff & Casual Paymts            ,"5,386.80",01/06/2015,R,REDACTED     
416,Central Services,SupS IT,Social Care Info System (SCI)           ,E14357,Employees                     ,Direct Employee Expenses      ,AA17,Agency Staff & Casual Paymts            ,"2,375.00",07/06/2015,R,REDACTED
417,Central Services,SupS IT,Social Care Info System (SCI)           ,E14357,Employees                     ,Direct Employee Expenses      ,AA17,Agency Staff & Casual Paymts            ,"1,512.50",14/05/2015,R,HAYS RECRUITING EXPERTS       
418,Central Services,SupS IT,Social Care Info System (SCI)           ,E14357,Employees                     ,Direct Employee Expenses      ,AA17,Agency Staff & Casual Paymts            ,"6,464.16",11/06/2015,R,REDACTED     
419,Central Services,SupS IT,Social Care Info System (SCI)           ,E14357,Employees                     ,Direct Employee Expenses      ,AA17,Agency Staff & Casual Paymts            ,"3,800.00",31/05/2015,R,REDACTED
420,Central Services,SupS IT,Social Care Info System (SCI)           ,E14357,Employees                     ,Direct Employee Expenses      ,AA17,Agency Staff & Casual Paymts            ,"1,210.00",17/06/2015,R,HAYS RECRUITING EXPERTS       
421,Central Services,SupS IT,Social Care Info System (SCI)           ,E14357,Employees                     ,Direct Employee Expenses      ,AA17,Agency Staff & Casual Paymts            ,"2,117.50",03/06/2015,R,HAYS RECRUITING EXPERTS       
422,Central Services,SupS IT,Corp Saving-Print Strategy,E14359,Supplies & Services           ,Equip Furniture/Materials     ,DA77,Photocopier Rental                      ,"50,977.60",31/05/2015,R,ALTODIGITAL NETWORKS LTD      
423,Central Services,SupS IT,Corp Saving-Print Strategy,E14359,Supplies & Services           ,Equip Furniture/Materials     ,DA77,Photocopier Rental                      ,"6,401.69",31/05/2015,R,ALTODIGITAL NETWORKS LTD      
424,Central Services,SupS IT,Corp Saving-Print Strategy,E14359,Supplies & Services           ,Prntng Stnry Gen Off Exp      ,DE06,MULTI-FUNCTIONAL PRINTERS               ,"39,668.12",31/05/2015,R,ALTODIGITAL NETWORKS LTD      
425,Central Services,SupS IT,BI IT Projects,E14360,Employees                     ,Direct Employee Expenses      ,AA17,Agency Staff & Casual Paymts            ,"1,900.00",16/06/2015,R,REDACTED
426,Central Services,SupS IT,BI IT Projects,E14360,Employees                     ,Direct Employee Expenses      ,AA17,Agency Staff & Casual Paymts            ,"3,800.00",27/05/2015,R,REDACTED
427,Central Services,SupS IT,BI IT Projects,E14360,Employees                     ,Direct Employee Expenses      ,AA17,Agency Staff & Casual Paymts            ,"1,354.50",11/05/2015,R,BIBBY FACTORS LEICESTER       
428,Central Services,SupS IT,BI IT Projects,E14360,Employees                     ,Direct Employee Expenses      ,AA17,Agency Staff & Casual Paymts            ,"1,739.50",19/05/2015,R,BIBBY FACTORS LEICESTER       
429,Central Services,SupS IT,BI IT Projects,E14360,Employees                     ,Direct Employee Expenses      ,AA17,Agency Staff & Casual Paymts            ,"1,680.00",27/05/2015,R,BIBBY FACTORS LEICESTER       
430,Central Services,SupS IT,BI IT Projects,E14360,Employees                     ,Direct Employee Expenses      ,AA17,Agency Staff & Casual Paymts            ,"1,340.50",01/06/2015,R,BIBBY FACTORS LEICESTER       
431,CS -Oth Operating Inc & Expend,SupS Codes No Longer Used,No longer used,E14361,Premises Related Expenditure  ,RepairsAlterations&MtceOfBldgs,BA62,Emergency Call-Out                      ,"2,000.00",05/06/2015,R,BRITISH RED CROSS SOCIETY     
432,CS -Oth Operating Inc & Expend,SupS Codes No Longer Used,No longer used,E14361,Supplies & Services           ,Comms and Computing           ,DG05,Telephones - Gen-Creditors              ,"4,048.09",27/04/2015,R,AIRWAVE SOLUTIONS LTD         
433,Central Services,SupS IT,AD I&T,E14363,Supplies & Services           ,Services                      ,DF04,Miscellaneous Expenses                  ,595,20/05/2015,R,JUST IT TRAINING LTD          
434,Central Services,SupS IT,Systems & Projects,E14366,Employees                     ,Direct Employee Expenses      ,AA17,Agency Staff & Casual Paymts            ,660,03/06/2015,R,BIBBY FACTORS LEICESTER       
435,Central Services,SupS IT,Systems & Projects,E14366,Employees                     ,Direct Employee Expenses      ,AA17,Agency Staff & Casual Paymts            ,"2,610.72",03/06/2015,R,REDACTED
436,Central Services,SupS IT,Systems & Projects,E14366,Employees                     ,Direct Employee Expenses      ,AA17,Agency Staff & Casual Paymts            ,"2,871.62",28/05/2015,R,REDACTED
437,Central Services,SupS IT,Systems & Projects,E14366,Employees                     ,Direct Employee Expenses      ,AA17,Agency Staff & Casual Paymts            ,"1,500.10",02/06/2015,R,REDACTED
438,Central Services,SupS IT,Systems & Projects,E14366,Employees                     ,Direct Employee Expenses      ,AA17,Agency Staff & Casual Paymts            ,"1,178.65",04/06/2015,R,REDACTED
439,Central Services,SupS IT,Systems & Projects,E14366,Employees                     ,Direct Employee Expenses      ,AA17,Agency Staff & Casual Paymts            ,"1,085.33",26/05/2015,R,BIBBY FACTORS LEICESTER       
440,Central Services,SupS IT,Systems & Projects,E14366,Employees                     ,Direct Employee Expenses      ,AA17,Agency Staff & Casual Paymts            ,"1,100.00",16/06/2015,R,BIBBY FACTORS LEICESTER       
441,Central Services,SupS IT,Systems & Projects,E14366,Supplies & Services           ,Services                      ,DF03,Consultants                             ,"1,120.00",03/06/2015,R,MARCUS DONALD PEOPLE LTD      
442,Central Services,SupS IT,Systems & Projects,E14366,Supplies & Services           ,Services                      ,DF03,Consultants                             ,"1,400.00",27/05/2015,R,MARCUS DONALD PEOPLE LTD      
443,Central Services,SupS IT,Systems & Projects,E14366,Supplies & Services           ,Services                      ,DF03,Consultants                             ,"1,260.00",10/06/2015,R,MARCUS DONALD PEOPLE LTD      
444,Central Services,SupS IT,Systems & Projects,E14366,Supplies & Services           ,Services                      ,DF03,Consultants                             ,"1,400.00",15/06/2015,R,MARCUS DONALD PEOPLE LTD      
445,Central Services,SupS IT,Systems & Projects,E14366,Supplies & Services           ,Comms and Computing           ,DG15,Network Maintenance                     ,"8,500.00",16/06/2015,R,CIVICA UK LIMITED             
446,Central Services,SupS IT,Systems & Projects,E14366,Supplies & Services           ,Comms and Computing           ,DG50,Other IT Expenditure                    ,750,11/06/2015,R,NORTHGATE INFORMATION SOLUTION
447,Central Services,SupS IT,Systems & Projects,E14366,Supplies & Services           ,Comms and Computing           ,DG50,Other IT Expenditure                    ,"3,746.00",31/05/2015,R,OPEN OBJECTS SOFTWARE LTD     
448,Central Services,SupS IT,Operations & Telecomms,E14367,Employees                     ,Direct Employee Expenses      ,AA17,Agency Staff & Casual Paymts            ,"3,780.00",29/05/2015,R,REDACTED
449,Central Services,SupS IT,Operations & Telecomms,E14367,Employees                     ,Direct Employee Expenses      ,AA17,Agency Staff & Casual Paymts            ,"11,305.00",29/05/2015,R,GATENBY SANDERSON             
450,Central Services,SupS IT,Operations & Telecomms,E14367,Premises Related Expenditure  ,RepairsAlterations&MtceOfBldgs,BA06,Repairs & Maintenance General           ,970,03/06/2015,R,SUNA SUPPLIES LTD.            
451,Central Services,SupS IT,Operations & Telecomms,E14367,Supplies & Services           ,Comms and Computing           ,DG54,Corporate Telephones                    ,"46,774.43",27/05/2015,R,BRITISH TELECOMMUNICATIONS PLC
452,Central Services,SupS IT,Operations & Telecomms,E14367,Supplies & Services           ,Comms and Computing           ,DG54,Corporate Telephones                    ,"1,982.07",04/06/2015,R,T MOBILE (UK)                 
453,Central Services,SupS IT,Operations & Telecomms,E14367,Supplies & Services           ,Comms and Computing           ,DG54,Corporate Telephones                    ,"1,106.07",29/05/2015,R,O2 (UK) LIMITED               
454,Central Services,SupS IT,Operations & Telecomms,E14367,Supplies & Services           ,Comms and Computing           ,DG54,Corporate Telephones                    ,"7,113.00",17/06/2015,R,ORANGE P'MENT PRO'SING AIRTIME
455,Central Services,SupS IT,Operations & Telecomms,E14367,Supplies & Services           ,Comms and Computing           ,DG54,Corporate Telephones                    ,"6,180.87",17/05/2015,R,ORANGE P'MENT PRO'SING AIRTIME
456,Central Services,SupS IT,Operations & Telecomms,E14367,Supplies & Services           ,Comms and Computing           ,DG54,Corporate Telephones                    ,"2,457.73",02/06/2015,R,COLT TELECOMMUNICATIONS       
457,Central Services,SupS IT,Corp Saving-IT Consolidation,E14370,Premises Related Expenditure  ,RepairsAlterations&MtceOfBldgs,BA03,DDM - Mechanical                        ,556.62,15/05/2015,R,EUROPA NATIONWIDE TECH.SER.LTD
458,Central Services,SupS IT,Corp Saving-IT Consolidation,E14370,Premises Related Expenditure  ,RepairsAlterations&MtceOfBldgs,BA03,DDM - Mechanical                        ,"1,800.00",15/05/2015,R,EUROPA NATIONWIDE TECH.SER.LTD
459,Central Services,SupS IT,No longer used,E14371,Employees                     ,Direct Employee Expenses      ,AA17,Agency Staff & Casual Paymts            ,"3,390.00",27/05/2015,R,HAYS RECRUITING EXPERTS       
460,Central Services,SupS IT,No longer used,E14371,Employees                     ,Direct Employee Expenses      ,AA17,Agency Staff & Casual Paymts            ,678,27/05/2015,R,HAYS RECRUITING EXPERTS       
461,Central Services,SupS IT,No longer used,E14371,Employees                     ,Direct Employee Expenses      ,AA17,Agency Staff & Casual Paymts            ,"2,034.00",27/05/2015,R,HAYS RECRUITING EXPERTS       
462,Central Services,SupS IT,No longer used,E14371,Employees                     ,Direct Employee Expenses      ,AA17,Agency Staff & Casual Paymts            ,"3,390.00",27/05/2015,R,HAYS RECRUITING EXPERTS       
463,Central Services,SupS IT,No longer used,E14371,Employees                     ,Direct Employee Expenses      ,AA17,Agency Staff & Casual Paymts            ,"10,200.00",10/06/2015,R,MILESTONES COMMUNICATIONS LTD 
464,Central Services,SupS IT,No longer used,E14371,Employees                     ,Direct Employee Expenses      ,AA17,Agency Staff & Casual Paymts            ,"3,390.00",17/06/2015,R,HAYS RECRUITING EXPERTS       
465,Central Services,SupS IT,No longer used,E14371,Supplies & Services           ,Services                      ,DF03,Consultants                             ,"2,997.50",12/05/2015,R,V4 SERVICES LIMITED           
466,Central Services,SupS IT,No longer used,E14371,Supplies & Services           ,Services                      ,DF03,Consultants                             ,"1,162.50",12/05/2015,R,V4 SERVICES LIMITED           
467,Central Services,SupS IT,Business Systems - Deptl Supt,E14377,Supplies & Services           ,Comms and Computing           ,DG50,Other IT Expenditure                    ,"43,464.00",27/03/2015,R,PITNEY BOWES LTD              
468,Central Services,SupS IT,Business Systems - Deptl Supt,E14377,Supplies & Services           ,Comms and Computing           ,DG50,Other IT Expenditure                    ,"5,215.50",06/06/2015,R,ON365.CO.UK                   
469,Central Services,SupS IT,Business Systems - Deptl Supt,E14377,Supplies & Services           ,Comms and Computing           ,DG50,Other IT Expenditure                    ,"4,961.00",30/03/2015,R,PITNEY BOWES LTD              
470,Central Services,SupS IT,Business Systems - Deptl Supt,E14377,Supplies & Services           ,Comms and Computing           ,DG57,Licences Microsoft Select               ,"16,297.98",29/05/2015,R,CIVICA SERVICES LTD           
471,Highways & Transport Services,Hwys/Rds (struct) not split,C'way & F'way Mtce,G00121,Supplies & Services           ,Services                      ,DF57,Consulting Engineers Fees               ,"2,500.00",22/05/2015,R,METIS CONSULTANTS LIMITED     
472,Highways & Transport Services,Hwys/Rds (struct) not split,Surf Water Drainage,G00123,Third Party Payments          ,Private Contractors           ,EH56,Carriageway/Fway Maint                  ,839.2,08/06/2015,R,FM CONWAY LTD                 
473,Highways & Transport Services,Hwys/Rds (struct) not split,Surf Water Drainage,G00123,Third Party Payments          ,Private Contractors           ,EH56,Carriageway/Fway Maint                  ,"1,650.00",30/04/2015,R,FM CONWAY LTD                 
474,Highways & Transport Services,Repair prin/oth rds not split,Carriageway Patching,G00125,Third Party Payments          ,Private Contractors           ,EH56,Carriageway/Fway Maint                  ,"2,042.27",18/06/2015,R,FM CONWAY LTD                 
475,Highways & Transport Services,Repair prin/oth rds not split,Walk Sheets,G00127,Third Party Payments          ,Private Contractors           ,EH56,Carriageway/Fway Maint                  ,"1,424.41",08/06/2015,R,FM CONWAY LTD                 
476,Highways & Transport Services,Repair prin/oth rds not split,Walk Sheets,G00127,Third Party Payments          ,Private Contractors           ,EH56,Carriageway/Fway Maint                  ,"3,336.42",08/06/2015,R,FM CONWAY LTD                 
477,Highways & Transport Services,Repair prin/oth rds not split,Walk Sheets,G00127,Third Party Payments          ,Private Contractors           ,EH56,Carriageway/Fway Maint                  ,"1,003.25",08/06/2015,R,FM CONWAY LTD                 
478,Highways & Transport Services,Repair prin/oth rds not split,Walk Sheets,G00127,Third Party Payments          ,Private Contractors           ,EH56,Carriageway/Fway Maint                  ,"33,212.35",01/06/2015,R,FM CONWAY LTD                 
479,Highways & Transport Services,Repair prin/oth rds not split,Walk Sheets,G00127,Third Party Payments          ,Private Contractors           ,EH56,Carriageway/Fway Maint                  ,"9,478.13",01/06/2015,R,FM CONWAY LTD                 
480,Highways & Transport Services,Repair prin/oth rds not split,Walk Sheets,G00127,Third Party Payments          ,Private Contractors           ,EH56,Carriageway/Fway Maint                  ,"2,400.00",08/06/2015,R,FM CONWAY LTD                 
481,Highways & Transport Services,Repair prin/oth rds not split,Walk Sheets,G00127,Third Party Payments          ,Private Contractors           ,EH56,Carriageway/Fway Maint                  ,"5,430.79",18/06/2015,R,FM CONWAY LTD                 
482,Highways & Transport Services,Repair prin/oth rds not split,Walk Sheets,G00127,Third Party Payments          ,Private Contractors           ,EH56,Carriageway/Fway Maint                  ,"6,412.23",01/06/2015,R,FM CONWAY LTD                 
483,Highways & Transport Services,Saf mtc prin/oth rds not split,Traffic Signs.,G00160,Third Party Payments          ,Private Contractors           ,EH01,Miscellaneous Agency Services           ,"3,175.98",29/05/2015,R,MAY GURNEY LTD T/A CARTLEDGE  
484,Highways & Transport Services,Saf mtc prin/oth rds not split,Traffic Signs.,G00160,Third Party Payments          ,Private Contractors           ,EH01,Miscellaneous Agency Services           ,"5,662.85",18/06/2015,R,FM CONWAY LTD                 
485,Highways & Transport Services,Saf mtc prin/oth rds not split,Traffic Signs.,G00160,Third Party Payments          ,Private Contractors           ,EH01,Miscellaneous Agency Services           ,752.9,08/05/2015,R,MAY GURNEY LTD T/A CARTLEDGE  
486,Highways & Transport Services,Saf mtc prin/oth rds not split,Traffic Signs.,G00160,Third Party Payments          ,Private Contractors           ,EH01,Miscellaneous Agency Services           ,"1,079.03",15/06/2015,R,MAY GURNEY LTD T/A CARTLEDGE  
487,Highways & Transport Services,Saf mtc prin/oth rds not split,Traffic Signs.,G00160,Third Party Payments          ,Private Contractors           ,EH02,Miscellaneous Hired Services            ,949.96,18/06/2015,R,FM CONWAY LTD                 
488,Highways & Transport Services,Saf mtc prin/oth rds not split,Traffic Signs.,G00160,Third Party Payments          ,Private Contractors           ,EH02,Miscellaneous Hired Services            ,"1,155.54",01/06/2015,R,FM CONWAY LTD                 
489,Highways & Transport Services,Saf mtc prin/oth rds not split,Traffic Signs.,G00160,Third Party Payments          ,Private Contractors           ,EH02,Miscellaneous Hired Services            ,"6,647.87",08/06/2015,R,FM CONWAY LTD                 
490,Highways & Transport Services,,TRAF & HWYS CAPITAL PROJECTS,G00210,Third Party Payments          ,Private Contractors           ,EH56,Carriageway/Fway Maint                  ,563.92,08/06/2015,R,FM CONWAY LTD                 
491,Highways & Transport Services,,TRAF & HWYS CAPITAL PROJECTS,G00210,Third Party Payments          ,Private Contractors           ,EH56,Carriageway/Fway Maint                  ,"1,124.00",10/06/2015,R,UK POWER NETWORKS (OPERATIONS)
492,Highways & Transport Services,,TRAF & HWYS CAPITAL PROJECTS,G00210,Third Party Payments          ,Private Contractors           ,EH56,Carriageway/Fway Maint                  ,526,10/06/2015,R,UK POWER NETWORKS (OPERATIONS)
493,Highways & Transport Services,Transport Plg/Policy/Strategy,CPZ implementation & Consultat,G00211,Third Party Payments          ,Private Contractors           ,EH56,Carriageway/Fway Maint                  ,"7,188.70",18/06/2015,R,FM CONWAY LTD                 
494,Highways & Transport Services,Transport Plg/Policy/Strategy,CPZ implementation & Consultat,G00211,Third Party Payments          ,Private Contractors           ,EH56,Carriageway/Fway Maint                  ,594.23,18/06/2015,R,FM CONWAY LTD                 
495,Highways & Transport Services,Transport Plg/Policy/Strategy,CPZ implementation & Consultat,G00211,Third Party Payments          ,Private Contractors           ,EH56,Carriageway/Fway Maint                  ,"8,000.00",18/06/2015,R,FM CONWAY LTD                 
496,Highways & Transport Services,Transport Plg/Policy/Strategy,CPZ implementation & Consultat,G00211,Third Party Payments          ,Private Contractors           ,EH56,Carriageway/Fway Maint                  ,"10,000.00",05/06/2015,R,FM CONWAY LTD                 
497,Highways & Transport Services,,Bushy/Waite/Goat Bridges TFL            ,G00215,Third Party Payments          ,Private Contractors           ,EH56,Carriageway/Fway Maint                  ,"34,109.47",29/05/2015,R,FM CONWAY LTD                 
498,Highways & Transport Services,Street Lighting.,Street Lighting .,G00260,Premises Related Expenditure  ,Energy Costs                  ,BB02,Electricity                             ,"52,669.13",04/06/2015,R,SCOTTISHPOWER                 
499,Highways & Transport Services,Street Lighting.,Street Lighting .,G00260,Third Party Payments          ,Private Contractors           ,EH01,Miscellaneous Agency Services           ,642,13/05/2015,R,UK POWER NETWORKS (OPERATIONS)
500,Highways & Transport Services,Street Lighting.,Street Lighting .,G00260,Third Party Payments          ,Private Contractors           ,EH01,Miscellaneous Agency Services           ,600,16/06/2015,R,BARKLANDS TREE SPECIALISTS    
501,Highways & Transport Services,Street Lighting.,Street Lighting .,G00260,Third Party Payments          ,Private Contractors           ,EH01,Miscellaneous Agency Services           ,"13,182.00",29/05/2015,R,MAY GURNEY LTD T/A CARTLEDGE  
502,Highways & Transport Services,Street Lighting.,Street Lighting .,G00260,Third Party Payments          ,Private Contractors           ,EH01,Miscellaneous Agency Services           ,"10,046.59",29/05/2015,R,MAY GURNEY LTD T/A CARTLEDGE  
503,Highways & Transport Services,Street Lighting.,Street Lighting .,G00260,Third Party Payments          ,Private Contractors           ,EH01,Miscellaneous Agency Services           ,"11,946.73",29/05/2015,R,MAY GURNEY LTD T/A CARTLEDGE  
504,Highways & Transport Services,Street Lighting.,Street Lighting .,G00260,Third Party Payments          ,Private Contractors           ,EH01,Miscellaneous Agency Services           ,"-1,962.93",27/02/2015,R,MAY GURNEY LTD T/A CARTLEDGE  
505,Highways & Transport Services,Street Lighting.,Street Lighting .,G00260,Third Party Payments          ,Private Contractors           ,EH01,Miscellaneous Agency Services           ,"1,063.12",08/05/2015,R,MAY GURNEY LTD T/A CARTLEDGE  
506,Highways & Transport Services,Street Lighting.,Street Lighting .,G00260,Third Party Payments          ,Private Contractors           ,EH01,Miscellaneous Agency Services           ,642,13/05/2015,R,UK POWER NETWORKS (OPERATIONS)
507,Highways & Transport Services,Street Lighting.,Street Lighting .,G00260,Third Party Payments          ,Private Contractors           ,EH01,Miscellaneous Agency Services           ,764.73,29/05/2015,R,MAY GURNEY LTD T/A CARTLEDGE  
508,Highways & Transport Services,Street Lighting.,Street Lighting .,G00260,Third Party Payments          ,Private Contractors           ,EH01,Miscellaneous Agency Services           ,"3,703.80",15/06/2015,R,MAY GURNEY LTD T/A CARTLEDGE  
509,Highways & Transport Services,Street Lighting.,Street Lighting .,G00260,Third Party Payments          ,Private Contractors           ,EH01,Miscellaneous Agency Services           ,"13,182.00",15/06/2015,R,MAY GURNEY LTD T/A CARTLEDGE  
510,Highways & Transport Services,Street Lighting.,Street Lighting .,G00260,Third Party Payments          ,Private Contractors           ,EH01,Miscellaneous Agency Services           ,"1,104.95",29/05/2015,R,MAY GURNEY LTD T/A CARTLEDGE  
511,Highways & Transport Services,Street Lighting.,Street Lighting .,G00260,Third Party Payments          ,Private Contractors           ,EH01,Miscellaneous Agency Services           ,642,10/06/2015,R,UK POWER NETWORKS (OPERATIONS)
512,Highways & Transport Services,Street Lighting.,Street Lighting .,G00260,Third Party Payments          ,Private Contractors           ,EH01,Miscellaneous Agency Services           ,"1,036.07",29/05/2015,R,MAY GURNEY LTD T/A CARTLEDGE  
513,Highways & Transport Services,Street Lighting.,Street Lighting .,G00260,Third Party Payments          ,Private Contractors           ,EH01,Miscellaneous Agency Services           ,"4,674.43",29/05/2015,R,MAY GURNEY LTD T/A CARTLEDGE  
514,Highways & Transport Services,Street Lighting.,Street Lighting .,G00260,Third Party Payments          ,Private Contractors           ,EH01,Miscellaneous Agency Services           ,742.58,15/06/2015,R,MAY GURNEY LTD T/A CARTLEDGE  
515,Highways & Transport Services,Street Lighting.,Street Lighting .,G00260,Third Party Payments          ,Private Contractors           ,EH01,Miscellaneous Agency Services           ,600,01/06/2015,R,FM CONWAY LTD                 
516,Highways & Transport Services,Off-street parking,Car Parks (Unloc),G00291,Premises Related Expenditure  ,RepairsAlterations&MtceOfBldgs,BA06,REPAIRS & MAINTENANCE GENERAL           ,"1,501.01",29/05/2015,R,MAY GURNEY LTD T/A CARTLEDGE  
517,Highways & Transport Services,Off-street parking,Car Parks (Unloc),G00291,Premises Related Expenditure  ,Energy Costs                  ,BB02,ELECTRICITY                             ,864.31,08/06/2015,R,SCOTTISHPOWER                 
518,Highways & Transport Services,Off-street parking,Car Parks (Unloc),G00291,Premises Related Expenditure  ,Energy Costs                  ,BB02,ELECTRICITY                             ,769.49,01/06/2015,R,SCOTTISHPOWER                 
519,Highways & Transport Services,Off-street parking,Car Parks (Unloc),G00291,Third Party Payments          ,Private Contractors           ,EH02,Miscellaneous Hired Services            ,"3,666.00",31/05/2015,R,COBALT TELEPHONE TECHNOLOGIES 
520,Highways & Transport Services,Off-street parking,Coombe Lane,G00292,Premises Related Expenditure  ,Rents                         ,BC01,Miscellaneous Rents                     ,"9,562.50",19/05/2015,R,CAPITA PROP'TY & INFRASTRUCT'R
521,Highways & Transport Services,Off-street parking,York Close CP,G00298,Premises Related Expenditure  ,Rents                         ,BC01,Miscellaneous Rents                     ,"30,460.50",27/05/2015,R,TRANSPORT TRADING LTD PROP A/C
522,Highways & Transport Services,Off-street parking,St. Georges Car Park EAST,G00300,Premises Related Expenditure  ,Rents                         ,BC01,Miscellaneous Rents                     ,889.4,21/05/2015,R,LLOYDS BANK SF NOMINEES LTD   
523,Highways & Transport Services,Off-street parking,Peel Hse C P - Upper,G00303,Premises Related Expenditure  ,RepairsAlterations&MtceOfBldgs,BA06,Repairs & Maintenance General           ,690,30/05/2015,R,R.J.H.WELDING                 
524,Highways & Transport Services,On-street parking,On Street Parking.,G00311,Premises Related Expenditure  ,RepairsAlterations&MtceOfBldgs,BA06,Repairs & Maintenance General           ,"5,379.28",08/06/2015,R,FM CONWAY LTD                 
525,Highways & Transport Services,Parking Enforcement not split,Civil Enforcement Officers,G00330,Supplies & Services           ,Clothing Unfrms Laundry       ,DC02,Clothing & Uniforms                     ,727.65,21/05/2015,R,KELTIC CLOTHING LTD           
526,Highways & Transport Services,Parking Enforcement not split,Civil Enforcement Officers,G00330,Supplies & Services           ,Services                      ,DF57,Consulting Engineers Fees               ,"6,000.00",27/05/2015,R,GLOBAL MSC SECURITY LTD       
527,Highways & Transport Services,Parking Enforcement not split,Operational Running Costs,G00331,Supplies & Services           ,Equip Furniture/Materials     ,DA09,Equip-Purchases                         ,"11,869.00",17/06/2015,R,PARKEON LTD                   
528,Highways & Transport Services,Parking Enforcement not split,Operational Running Costs,G00331,Supplies & Services           ,Equip Furniture/Materials     ,DA09,Equip-Purchases                         ,660,19/06/2015,R,PARKEON LTD                   
529,Highways & Transport Services,Parking Enforcement not split,Operational Running Costs,G00331,Supplies & Services           ,Equip Furniture/Materials     ,DA09,Equip-Purchases                         ,"3,810.00",19/06/2015,R,PARKEON LTD                   
530,Highways & Transport Services,Parking Enforcement not split,Operational Running Costs,G00331,Supplies & Services           ,Equip Furniture/Materials     ,DA09,Equip-Purchases                         ,"3,780.00",19/06/2015,R,PARKEON LTD                   
531,Highways & Transport Services,Parking Enforcement not split,Operational Running Costs,G00331,Supplies & Services           ,Prntng Stnry Gen Off Exp      ,DE01,External Printing                       ,"1,069.50",28/05/2015,R,ORION SECURITY PRINT LIMITED  
532,Highways & Transport Services,Parking Enforcement not split,Operational Running Costs,G00331,Supplies & Services           ,Prntng Stnry Gen Off Exp      ,DE01,External Printing                       ,"7,024.00",28/05/2015,R,LIBERTY SERVICES              
533,Highways & Transport Services,Parking Enforcement not split,Operational Running Costs,G00331,Supplies & Services           ,Comms and Computing           ,DG61,Computer Servs Special                  ,"1,750.00",27/05/2015,R,IMPERIAL CIVIL ENFORC.SOLUT.  
534,Highways & Transport Services,Parking Enforcement not split,Operational Running Costs,G00331,Third Party Payments          ,Other Agencies                ,EJ58,Parking Cttee for London                ,"1,500.00",27/05/2015,R,LONDON COUNCILS               
535,Highways & Transport Services,Hwys/Rds (struct) not split,Footpath Crossings.,G00390,Third Party Payments          ,Private Contractors           ,EH56,Carriageway/Fway Maint                  ,"1,300.72",01/06/2015,R,FM CONWAY LTD                 
536,Highways & Transport Services,Hwys/Rds (struct) not split,Footpath Crossings.,G00390,Third Party Payments          ,Private Contractors           ,EH56,Carriageway/Fway Maint                  ,"7,810.91",01/06/2015,R,FM CONWAY LTD                 
537,Highways & Transport Services,Hwys/Rds (struct) not split,Footpath Crossings.,G00390,Third Party Payments          ,Private Contractors           ,EH56,Carriageway/Fway Maint                  ,"2,134.55",01/06/2015,R,FM CONWAY LTD                 
538,Highways & Transport Services,Hwys/Rds (struct) not split,Footpath Crossings.,G00390,Third Party Payments          ,Private Contractors           ,EH56,Carriageway/Fway Maint                  ,"13,702.45",18/06/2015,R,FM CONWAY LTD                 
539,Highways & Transport Services,Hwys/Rds (struct) not split,Footpath Crossings.,G00390,Third Party Payments          ,Private Contractors           ,EH56,Carriageway/Fway Maint                  ,"2,168.84",08/06/2015,R,FM CONWAY LTD                 
540,Highways & Transport Services,Hwys/Rds (struct) not split,Footpath Crossings.,G00390,Third Party Payments          ,Private Contractors           ,EH56,Carriageway/Fway Maint                  ,642,13/05/2015,R,UK POWER NETWORKS (OPERATIONS)
541,Cultural Env Reg&Plan Services,Street Clean - Not highways,Street Cleansing (Inc. Gully),G00492,Supplies & Services           ,Equip Furniture/Materials     ,DA32,Wheeled Bins                            ,"2,581.50",05/06/2015,R,UK CONTAINER MAINTENANCE LTD  
542,Cultural Env Reg&Plan Services,Waste Disposal (not separated),Waste Disposal .,G00550,Third Party Payments          ,Private Contractors           ,EH04,C1 Viridor SLWP Landfill Contract       ,"233,656.08",28/05/2015,R,KINGSTON CORPORATION          
543,Cultural Env Reg&Plan Services,Waste Disposal (not separated),Waste Disposal .,G00550,Third Party Payments          ,Private Contractors           ,EH04,C1 Viridor SLWP Landfill Contract       ,"7,336.00",28/05/2015,R,KINGSTON CORPORATION          
544,Cultural Env Reg&Plan Services,Waste Disposal (not separated),Waste Disposal .,G00550,Third Party Payments          ,Private Contractors           ,EH04,C1 Viridor SLWP Landfill Contract       ,"4,324.00",28/05/2015,R,KINGSTON CORPORATION          
545,Cultural Env Reg&Plan Services,Waste Disposal (not separated),Waste Disposal .,G00550,Third Party Payments          ,Private Contractors           ,EH04,C1 Viridor SLWP Landfill Contract       ,"134,294.24",28/05/2015,R,KINGSTON CORPORATION          
546,Cultural Env Reg&Plan Services,Waste Disposal (not separated),Waste Disposal .,G00550,Third Party Payments          ,Private Contractors           ,EH66,Clinical Waste Disposal                 ,616.7,31/05/2015,R,S.GRUNDON (WASTE) LTD.        
547,Cultural Env Reg&Plan Services,Waste Disposal (not separated),Waste Disposal .,G00550,Third Party Payments          ,Private Contractors           ,EH96,GULLY DISPOSAL                          ,530.01,31/05/2015,R,CORY ENVIRONMENTAL LIMITED    
548,Cultural Env Reg&Plan Services,Waste Disposal (not separated),Waste Disposal .,G00550,Third Party Payments          ,Private Contractors           ,EH96,GULLY DISPOSAL                          ,"1,096.87",31/05/2015,R,CORY ENVIRONMENTAL LIMITED    
549,Cultural Env Reg&Plan Services,Waste Disposal (not separated),Waste Disposal .,G00550,Third Party Payments          ,Private Contractors           ,EH97,Waste Disposal - Tyres                  ,"3,540.00",14/06/2015,R,777 ENVIRONMENTAL LTD         
550,Cultural Env Reg&Plan Services,Civic Amenity Sites,Garth Road Site,G00580,Third Party Payments          ,Private Contractors           ,EH04,Accommodation Based Support             ,"1,100.00",28/05/2015,R,KINGSTON CORPORATION          
551,Cultural Env Reg&Plan Services,Civic Amenity Sites,Garth Road Site,G00580,Third Party Payments          ,Private Contractors           ,EH61,Green Waste Disposal                    ,"2,529.88",28/05/2015,R,KINGSTON CORPORATION          
552,Cultural Env Reg&Plan Services,Civic Amenity Sites,Garth Road Site,G00580,Third Party Payments          ,Private Contractors           ,EH61,Green Waste Disposal                    ,"4,824.34",28/05/2015,R,KINGSTON CORPORATION          
553,Cultural Env Reg&Plan Services,Public Health,Dog Control.,G00620,Third Party Payments          ,Private Contractors           ,EH02,Miscellaneous Hired Services            ,"2,309.50",09/06/2015,R,NOAH'S ARK ENVIRONMENTAL SERV.
554,Cultural Env Reg&Plan Services,Recycling (Collection),Recycling Activities,G00640,Third Party Payments          ,Private Contractors           ,EH08,SLWP C1 Haulage Dry Recyclable          ,"30,750.44",28/05/2015,R,KINGSTON CORPORATION          
555,Cultural Env Reg&Plan Services,Recycling (Collection),Recycling Activities,G00640,Third Party Payments          ,Private Contractors           ,EH94,C1 DRY RECYCLING ACCEPTANCE & BULK      ,"6,694.69",28/05/2015,R,KINGSTON CORPORATION          
556,Cultural Env Reg&Plan Services,Recycling (Collection),Recycling Collection,G00645,Supplies & Services           ,Equip Furniture/Materials     ,DA01,Equipment - R & M                       ,"1,500.00",18/06/2015,R,BELL BRUSH                    
557,Cultural Env Reg&Plan Services,Recycling (Collection),Garden Waste Service,G00647,Supplies & Services           ,Equip Furniture/Materials     ,DA32,Wheeled Bins (GARDEN BINS)              ,"13,160.00",30/03/2015,R,SSI SCHAEFER LTD              
558,Cultural Env Reg&Plan Services,Recycling (Collection),Garden Waste Service,G00647,Third Party Payments          ,Private Contractors           ,EH61,Green Waste Disposal                    ,"1,073.77",28/05/2015,R,KINGSTON CORPORATION          
559,Cultural Env Reg&Plan Services,Recycling (Collection),Garden Waste Service,G00647,Third Party Payments          ,Private Contractors           ,EH61,Green Waste Disposal                    ,"2,235.13",28/05/2015,R,KINGSTON CORPORATION          
560,Cultural Env Reg&Plan Services,Recycling (Collection),Food Waste Service,G00648,Third Party Payments          ,Private Contractors           ,EH18,SLWP C3 Food Waste Gate Fees            ,"7,836.11",28/05/2015,R,KINGSTON CORPORATION          
561,Cultural Env Reg&Plan Services,Recycling (Collection),Food Waste Service,G00648,Third Party Payments          ,Private Contractors           ,EH19,SLWP C3 FOOD WASTE HAULAGE              ,"5,555.89",28/05/2015,R,KINGSTON CORPORATION          
562,Cultural Env Reg&Plan Services,Recycling (Collection),WCSS Recycl Encourgmnt&Incentv          ,G00650,Supplies & Services           ,Equip Furniture/Materials     ,DA09,Equip-Purchases                         ,620,13/03/2015,R,MERCHANDISE LTD               
563,Cultural Env Reg&Plan Services,Household Waste Collection,Refuse Collection (Operations),G00661,Transport Related Expenditure ,Direct Transport Costs        ,CA52,Reps Vehicles Ins Claims                ,510,02/06/2015,R,S.E.T.S SERVICES              
564,Cultural Env Reg&Plan Services,Household Waste Collection,Refuse Collection (Operations),G00661,Supplies & Services           ,Equip Furniture/Materials     ,DA03,Hire of Equipment                       ,"1,390.00",01/06/2015,R,COMCIR RADIO COMMUNICATIONS LT
565,Cultural Env Reg&Plan Services,Trade Waste Collection,Commercial Waste Collection,G00665,Supplies & Services           ,Equip Furniture/Materials     ,DA32,Wheeled Bins                            ,"3,980.00",26/05/2015,R,UK CONTAINER MAINTENANCE LTD  
566,Cultural Env Reg&Plan Services,Street Clean - Not highways,Waste Enforcement,G00680,Third Party Payments          ,Private Contractors           ,EH02,Miscellaneous Hired Services            ,"21,312.03",30/04/2015,R,KINGDOM SECURITY              
567,Cultural Env Reg&Plan Services,Street Clean - Not highways,Waste Enforcement,G00680,Third Party Payments          ,Private Contractors           ,EH02,Miscellaneous Hired Services            ,"16,920.00",31/05/2015,R,KINGDOM SECURITY              
568,Cultural Env Reg&Plan Services,Food Safety,Health & Safety,G00697,Supplies & Services           ,Grants and Subscriptions      ,DJ04,Subscriptions                           ,"1,250.00",23/06/2015,R,CHARTERED INST.OF ENVIR.HEALTH
569,Cultural Env Reg&Plan Services,Mgt & Support (Env),Waste Management,G00900,Supplies & Services           ,Equip Furniture/Materials     ,DA01,Equipment - R & M                       ,900,10/06/2015,R,SAFE AIR QUALITY LTD          
570,Central Services,Grants - Voluntary Groups,Vestry Hall,G19290,Employees                     ,Direct Employee Expenses      ,AA17,Agency Staff & Casual Paymts            ,"5,347.61",10/06/2015,R,REDACTED
571,Central Services,Grants - Voluntary Groups,Vestry Hall,G19290,Employees                     ,Direct Employee Expenses      ,AA17,Agency Staff & Casual Paymts            ,"1,994.40",31/05/2015,R,REDACTED
572,Central Services,Grants - Voluntary Groups,Vestry Hall,G19290,Premises Related Expenditure  ,Energy Costs                  ,BB02,Electricity                             ,624.73,01/06/2015,R,SCOTTISHPOWER                 
573,Central Services,Grants - Voluntary Groups,Vestry Hall,G19290,Premises Related Expenditure  ,Water Services                ,BE01,Use of Water (Metered)                  ,720.38,03/06/2015,R,THAMES WATER UTILITIES LTD    
574,Central Services,Grants - Voluntary Groups,Vestry Hall,G19290,Premises Related Expenditure  ,Cleaning and Domestic Supplies,BH03,Cleaning Services                       ,"1,383.56",30/04/2015,R,BIRKIN CLEANING SERVICES LTD  
575,Central Services,Grants - Voluntary Groups,Vestry Hall,G19290,Premises Related Expenditure  ,Cleaning and Domestic Supplies,BH03,Cleaning Services                       ,"1,383.56",01/06/2015,R,BIRKIN CLEANING SERVICES LTD  
576,Cultural Env Reg&Plan Services,BC Regs & Other not split,Building Control,H01100,Supplies & Services           ,Grants and Subscriptions      ,DJ04,Subscriptions                           ,526,13/11/2014,R,RICS BUSINESS SERVICE LTD     
577,Cultural Env Reg&Plan Services,DC Advice Apps & Reg not split,Development Control,H01130,Supplies & Services           ,Services                      ,DF02,Misc Advertising/Publicity              ,744.96,29/05/2015,R,NEWSQUEST (LONDON)LTD         
578,Cultural Env Reg&Plan Services,DC Advice Apps & Reg not split,Development Control,H01130,Supplies & Services           ,Services                      ,DF04,Miscellaneous Expenses                  ,"1,251.20",08/06/2015,R,FM CONWAY LTD                 
579,Cultural Env Reg&Plan Services,DC Advice Apps & Reg not split,Development Control,H01130,Supplies & Services           ,Services                      ,DF11,Counsel's fees                          ,800,10/06/2015,R,REDACTED     
580,Cultural Env Reg&Plan Services,DC Advice Apps & Reg not split,Development Control,H01130,Supplies & Services           ,Services                      ,DF11,Counsel's fees                          ,575,08/06/2015,R,REDACTED     
581,Cultural Env Reg&Plan Services,DC Advice Apps & Reg not split,Development Control,H01130,Supplies & Services           ,Comms and Computing           ,DG09,Computer Purchases - Misc               ,"1,500.00",28/05/2015,R,NORTHGATE INFORMATION SOLUTION
582,Cultural Env Reg&Plan Services,DC Advice Apps & Reg not split,Development Control,H01130,Supplies & Services           ,Grants and Subscriptions      ,DJ04,Subscriptions                           ,"1,159.00",27/05/2015,R,HAYMARKET PUBLISHING SERV.LTD 
583,Cultural Env Reg&Plan Services,Planning Policy not split,REGENERATION & INVESTMENT,H01174,Third Party Payments          ,Private Contractors           ,EH10,Contract Payments                       ,"5,824.70",27/05/2015,R,SIGNBASE LONDON LTD           
584,Cultural Env Reg&Plan Services,Economic Dev (Not separated),Capt Ambition-Suburban Opprt Z,H01231,Supplies & Services           ,Grants and Subscriptions      ,DJ01,Grants                                  ,"11,500.00",18/06/2015,R,AP CHEMIST                    
585,Cultural Env Reg&Plan Services,Economic Dev (Not separated),Capt Ambition-Suburban Opprt Z,H01231,Third Party Payments          ,Private Contractors           ,EH01,Miscellaneous Contrct Services          ,"4,500.00",28/05/2015,R,GRENFELL HOUSING ASSOCIATION  
586,Cultural Env Reg&Plan Services,Economic Dev (Not separated),Capt Ambition-Suburban Opprt Z,H01231,Third Party Payments          ,Private Contractors           ,EH10,Contract Payments                       ,"2,350.00",04/06/2015,R,BURNS OWENS PARTNERSHIP       
587,CS -Oth Operating Inc & Expend,T/A Vehicle Maintenance etc,Transport-Contract Hire,J01374,Employees                     ,Direct Employee Expenses      ,AA17,Agency Staff & Casual Paymts            ,"8,100.00",29/05/2015,R,REDACTED
588,CS -Oth Operating Inc & Expend,T/A Vehicle Maintenance etc,Transport-Contract Hire,J01374,Premises Related Expenditure  ,RepairsAlterations&MtceOfBldgs,BA05,DDM - Electrical                        ,703.32,15/05/2015,R,EUROPA NATIONWIDE TECH.SER.LTD
589,CS -Oth Operating Inc & Expend,T/A Vehicle Maintenance etc,Transport-Contract Hire,J01374,Transport Related Expenditure ,Direct Transport Costs        ,CA01,Petrol Derv & Oil                       ,"33,408.70",01/06/2015,R,HARVEST ENERGY LIMITED        
590,CS -Oth Operating Inc & Expend,T/A Vehicle Maintenance etc,Transport-Contract Hire,J01374,Transport Related Expenditure ,Direct Transport Costs        ,CA52,Reps Vehicles Ins Claims                ,500,30/05/2015,R,FLEETSPEED COACHWORKS LTD.    
591,CS -Oth Operating Inc & Expend,T/A Vehicle Maintenance etc,Transport-Contract Hire,J01374,Transport Related Expenditure ,Contract Hire and Op Leasing  ,CC53,Plant Hire for MRCS                     ,693,31/05/2015,R,REDACTED     
592,CS -Oth Operating Inc & Expend,T/A Vehicle Maintenance etc,Transport-Contract Hire,J01374,Transport Related Expenditure ,Contract Hire and Op Leasing  ,CC53,Plant Hire for MRCS                     ,"1,995.00",26/05/2015,R,MUNIHIRE LIMITED              
593,CS -Oth Operating Inc & Expend,T/A Vehicle Maintenance etc,Transport-Contract Hire,J01374,Transport Related Expenditure ,Contract Hire and Op Leasing  ,CC53,Plant Hire for MRCS                     ,610,02/06/2015,R,PFB HIRE LTD                  
594,CS -Oth Operating Inc & Expend,T/A Vehicle Maintenance etc,Transport-Contract Hire,J01374,Transport Related Expenditure ,Contract Hire and Op Leasing  ,CC53,Plant Hire for MRCS                     ,950,31/03/2015,R,PFB HIRE LTD                  
595,CS -Oth Operating Inc & Expend,T/A Vehicle Maintenance etc,Transport-Contract Hire,J01374,Transport Related Expenditure ,Contract Hire and Op Leasing  ,CC53,Plant Hire for MRCS                     ,530,17/06/2015,R,MUNIHIRE LIMITED              
596,CS -Oth Operating Inc & Expend,T/A Vehicle Maintenance etc,Transport-Contract Hire,J01374,Transport Related Expenditure ,Contract Hire and Op Leasing  ,CC53,Plant Hire for MRCS                     ,889,31/05/2015,R,M6 VEHICLE HIRE               
597,CS -Oth Operating Inc & Expend,T/A Vehicle Maintenance etc,Transport-Contract Hire,J01374,Transport Related Expenditure ,Contract Hire and Op Leasing  ,CC53,Plant Hire for MRCS                     ,875,18/06/2015,R,GULLIVER'S TRUCK HIRE LTD.    
598,CS -Oth Operating Inc & Expend,T/A Vehicle Maintenance etc,Transport-Contract Hire,J01374,Transport Related Expenditure ,Contract Hire and Op Leasing  ,CC53,Plant Hire for MRCS                     ,950,31/03/2015,R,PFB HIRE LTD                  
599,CS -Oth Operating Inc & Expend,T/A Vehicle Maintenance etc,Transport-Contract Hire,J01374,Transport Related Expenditure ,Contract Hire and Op Leasing  ,CC53,Plant Hire for MRCS                     ,875,26/05/2015,R,GULLIVER'S TRUCK HIRE LTD.    
600,CS -Oth Operating Inc & Expend,T/A Vehicle Maintenance etc,Transport-Contract Hire,J01374,Transport Related Expenditure ,Contract Hire and Op Leasing  ,CC53,Plant Hire for MRCS                     ,693,31/05/2015,R,REDACTED     
601,CS -Oth Operating Inc & Expend,T/A Vehicle Maintenance etc,Transport-Contract Hire,J01374,Transport Related Expenditure ,Contract Hire and Op Leasing  ,CC53,Plant Hire for MRCS                     ,610,09/06/2015,R,PFB HIRE LTD                  
602,CS -Oth Operating Inc & Expend,T/A Vehicle Maintenance etc,Transport-Contract Hire,J01374,Transport Related Expenditure ,Contract Hire and Op Leasing  ,CC53,Plant Hire for MRCS                     ,610,31/03/2015,R,PFB HIRE LTD                  
603,CS -Oth Operating Inc & Expend,T/A Vehicle Maintenance etc,Transport-Contract Hire,J01374,Transport Related Expenditure ,Contract Hire and Op Leasing  ,CC53,Plant Hire for MRCS                     ,610,26/05/2015,R,PFB HIRE LTD                  
604,CS -Oth Operating Inc & Expend,T/A Vehicle Maintenance etc,Transport-Contract Hire,J01374,Transport Related Expenditure ,Contract Hire and Op Leasing  ,CC53,Plant Hire for MRCS                     ,525,13/04/2015,R,GULLIVER'S TRUCK HIRE LTD.    
605,CS -Oth Operating Inc & Expend,T/A Vehicle Maintenance etc,Transport-Contract Hire,J01374,Transport Related Expenditure ,Contract Hire and Op Leasing  ,CC53,Plant Hire for MRCS                     ,610,19/05/2015,R,PFB HIRE LTD                  
606,CS -Oth Operating Inc & Expend,T/A Vehicle Maintenance etc,Transport-Contract Hire,J01374,Transport Related Expenditure ,Contract Hire and Op Leasing  ,CC53,Plant Hire for MRCS                     ,875,15/06/2015,R,GULLIVER'S TRUCK HIRE LTD.    
607,CS -Oth Operating Inc & Expend,T/A Vehicle Maintenance etc,Transport-Contract Hire,J01374,Transport Related Expenditure ,Contract Hire and Op Leasing  ,CC53,Plant Hire for MRCS                     ,875,31/05/2015,R,GULLIVER'S TRUCK HIRE LTD.    
608,CS -Oth Operating Inc & Expend,T/A Vehicle Maintenance etc,Transport-Contract Hire,J01374,Transport Related Expenditure ,Contract Hire and Op Leasing  ,CC56,Plant Hire for Leisure                  ,650,31/05/2015,R,REDACTED     
609,CS -Oth Operating Inc & Expend,T/A Vehicle Maintenance etc,Transport-Contract Hire,J01374,Transport Related Expenditure ,Contract Hire and Op Leasing  ,CC56,Plant Hire for Leisure                  ,"1,755.00",31/05/2015,R,REDACTED     
610,CS -Oth Operating Inc & Expend,T/A Vehicle Maintenance etc,Transport-Contract Hire,J01374,Transport Related Expenditure ,Contract Hire and Op Leasing  ,CC57,Pland Hire for Housing                  ,940,31/05/2015,R,REDACTED     
611,CS -Oth Operating Inc & Expend,T/A Vehicle Maintenance etc,Transport-Contract Hire,J01374,Transport Related Expenditure ,Contract Hire and Op Leasing  ,CC59,HIRING TRANSPORT OPERATIONS             ,"1,386.00",29/05/2015,R,BURNT TREE VEHICLE RENTAL     
612,CS -Oth Operating Inc & Expend,T/A Vehicle Maintenance etc,Transport-Contract Hire,J01374,Transport Related Expenditure ,Contract Hire and Op Leasing  ,CC59,HIRING TRANSPORT OPERATIONS             ,"2,238.32",31/05/2015,R,REDACTED     
613,CS -Oth Operating Inc & Expend,T/A Vehicle Maintenance etc,Transport-Contract Hire,J01374,Transport Related Expenditure ,Contract Hire and Op Leasing  ,CC59,HIRING TRANSPORT OPERATIONS             ,"1,386.00",29/05/2015,R,BURNT TREE VEHICLE RENTAL     
614,CS -Oth Operating Inc & Expend,T/A Vehicle Maintenance etc,Transport-Contract Hire,J01374,Transport Related Expenditure ,Contract Hire and Op Leasing  ,CC59,HIRING TRANSPORT OPERATIONS             ,"1,386.00",29/05/2015,R,BURNT TREE VEHICLE RENTAL     
615,CS -Oth Operating Inc & Expend,T/A Vehicle Maintenance etc,Transport-Contract Hire,J01374,Transport Related Expenditure ,Contract Hire and Op Leasing  ,CC60,Vehicle Hire for LB Sutton              ,530,26/05/2015,R,SILVERBURN FINANCE (UK) LTD   
616,CS -Oth Operating Inc & Expend,T/A Vehicle Maintenance etc,Transport-Contract Hire,J01374,Transport Related Expenditure ,Contract Hire and Op Leasing  ,CC64,HIRING TRANSPORT SEN CABS               ,"1,421.00",31/05/2015,R,NVCAR HIRE LTD                
617,CS -Oth Operating Inc & Expend,T/A Vehicle Maintenance etc,Transport-Contract Hire,J01374,Transport Related Expenditure ,Contract Hire and Op Leasing  ,CC64,HIRING TRANSPORT SEN CABS               ,"2,850.00",31/05/2015,R,SHERWOOD TRANSPORT GROUP      
618,CS -Oth Operating Inc & Expend,T/A Vehicle Maintenance etc,Transport-Contract Hire,J01374,Transport Related Expenditure ,Contract Hire and Op Leasing  ,CC64,HIRING TRANSPORT SEN CABS               ,"1,170.00",31/05/2015,R,KINGSTON ACCESSIBILITY TRAN LT
619,CS -Oth Operating Inc & Expend,T/A Vehicle Maintenance etc,Transport-Contract Hire,J01374,Transport Related Expenditure ,Contract Hire and Op Leasing  ,CC64,HIRING TRANSPORT SEN CABS               ,840,31/05/2015,R,NVCAR HIRE LTD                
620,CS -Oth Operating Inc & Expend,T/A Vehicle Maintenance etc,Transport-Contract Hire,J01374,Transport Related Expenditure ,Contract Hire and Op Leasing  ,CC64,HIRING TRANSPORT SEN CABS               ,"1,305.00",31/05/2015,R,SHERWOOD TRANSPORT GROUP      
621,CS -Oth Operating Inc & Expend,T/A Vehicle Maintenance etc,Transport-Contract Hire,J01374,Transport Related Expenditure ,Contract Hire and Op Leasing  ,CC64,HIRING TRANSPORT SEN CABS               ,"1,094.70",31/05/2015,R,KINGSTON ACCESSIBILITY TRAN LT
622,CS -Oth Operating Inc & Expend,T/A Vehicle Maintenance etc,Transport-Contract Hire,J01374,Transport Related Expenditure ,Contract Hire and Op Leasing  ,CC64,HIRING TRANSPORT SEN CABS               ,"2,248.50",31/05/2015,R,KINGSTON ACCESSIBILITY TRAN LT
623,CS -Oth Operating Inc & Expend,T/A Vehicle Maintenance etc,Transport-Contract Hire,J01374,Transport Related Expenditure ,Contract Hire and Op Leasing  ,CC64,HIRING TRANSPORT SEN CABS               ,980,31/05/2015,R,NVCAR HIRE LTD                
624,CS -Oth Operating Inc & Expend,T/A Vehicle Maintenance etc,Transport-Contract Hire,J01374,Transport Related Expenditure ,Contract Hire and Op Leasing  ,CC64,HIRING TRANSPORT SEN CABS               ,"1,485.00",31/05/2015,R,SHERWOOD TRANSPORT GROUP      
625,CS -Oth Operating Inc & Expend,T/A Vehicle Maintenance etc,Transport-Contract Hire,J01374,Transport Related Expenditure ,Contract Hire and Op Leasing  ,CC64,HIRING TRANSPORT SEN CABS               ,"1,560.00",31/05/2015,R,CAPITAL CARS                  
626,CS -Oth Operating Inc & Expend,T/A Vehicle Maintenance etc,Transport-Contract Hire,J01374,Transport Related Expenditure ,Contract Hire and Op Leasing  ,CC64,HIRING TRANSPORT SEN CABS               ,"1,706.70",31/05/2015,R,KINGSTON ACCESSIBILITY TRAN LT
627,CS -Oth Operating Inc & Expend,T/A Vehicle Maintenance etc,Transport-Contract Hire,J01374,Transport Related Expenditure ,Contract Hire and Op Leasing  ,CC64,HIRING TRANSPORT SEN CABS               ,870,26/05/2015,R,SILVERBURN FINANCE (UK) LTD   
628,CS -Oth Operating Inc & Expend,T/A Vehicle Maintenance etc,Transport-Contract Hire,J01374,Transport Related Expenditure ,Contract Hire and Op Leasing  ,CC64,HIRING TRANSPORT SEN CABS               ,"2,955.00",31/05/2015,R,BRUNSWICK CARS LTD            
629,CS -Oth Operating Inc & Expend,T/A Vehicle Maintenance etc,Transport-Contract Hire,J01374,Transport Related Expenditure ,Contract Hire and Op Leasing  ,CC64,HIRING TRANSPORT SEN CABS               ,"1,050.00",31/05/2015,R,NVCAR HIRE LTD                
630,CS -Oth Operating Inc & Expend,T/A Vehicle Maintenance etc,Transport-Contract Hire,J01374,Transport Related Expenditure ,Contract Hire and Op Leasing  ,CC64,HIRING TRANSPORT SEN CABS               ,"1,015.00",31/05/2015,R,PREMIER CARS                  
631,CS -Oth Operating Inc & Expend,T/A Vehicle Maintenance etc,Transport-Contract Hire,J01374,Transport Related Expenditure ,Contract Hire and Op Leasing  ,CC64,HIRING TRANSPORT SEN CABS               ,810,31/05/2015,R,NVCAR HIRE LTD                
632,CS -Oth Operating Inc & Expend,T/A Vehicle Maintenance etc,Transport-Contract Hire,J01374,Transport Related Expenditure ,Contract Hire and Op Leasing  ,CC64,HIRING TRANSPORT SEN CABS               ,"1,320.00",26/05/2015,R,SILVERBURN FINANCE (UK) LTD   
633,CS -Oth Operating Inc & Expend,T/A Vehicle Maintenance etc,Transport-Contract Hire,J01374,Transport Related Expenditure ,Contract Hire and Op Leasing  ,CC64,HIRING TRANSPORT SEN CABS               ,"1,957.50",31/05/2015,R,SHERWOOD TRANSPORT GROUP      
634,CS -Oth Operating Inc & Expend,T/A Vehicle Maintenance etc,Transport-Contract Hire,J01374,Transport Related Expenditure ,Contract Hire and Op Leasing  ,CC64,HIRING TRANSPORT SEN CABS               ,"1,342.50",31/05/2015,R,SHERWOOD TRANSPORT GROUP      
635,CS -Oth Operating Inc & Expend,T/A Vehicle Maintenance etc,Transport-Contract Hire,J01374,Transport Related Expenditure ,Contract Hire and Op Leasing  ,CC64,HIRING TRANSPORT SEN CABS               ,"1,410.00",31/05/2015,R,CAPITAL CARS                  
636,CS -Oth Operating Inc & Expend,T/A Vehicle Maintenance etc,Transport-Contract Hire,J01374,Transport Related Expenditure ,Contract Hire and Op Leasing  ,CC64,HIRING TRANSPORT SEN CABS               ,"1,575.00",31/05/2015,R,SHERWOOD TRANSPORT GROUP      
637,CS -Oth Operating Inc & Expend,T/A Vehicle Maintenance etc,Transport-Contract Hire,J01374,Transport Related Expenditure ,Contract Hire and Op Leasing  ,CC64,HIRING TRANSPORT SEN CABS               ,798,31/05/2015,R,CAPITAL CARS                  
638,CS -Oth Operating Inc & Expend,T/A Vehicle Maintenance etc,Transport-Contract Hire,J01374,Transport Related Expenditure ,Contract Hire and Op Leasing  ,CC64,HIRING TRANSPORT SEN CABS               ,"1,410.00",31/05/2015,R,CAPITAL CARS                  
639,CS -Oth Operating Inc & Expend,T/A Vehicle Maintenance etc,Transport-Contract Hire,J01374,Transport Related Expenditure ,Contract Hire and Op Leasing  ,CC64,HIRING TRANSPORT SEN CABS               ,"2,040.00",31/05/2015,R,CAPITAL CARS                  
640,CS -Oth Operating Inc & Expend,T/A Vehicle Maintenance etc,Transport-Contract Hire,J01374,Transport Related Expenditure ,Contract Hire and Op Leasing  ,CC64,HIRING TRANSPORT SEN CABS               ,"3,325.00",31/01/2015,R,SHERWOOD TRANSPORT GROUP      
641,CS -Oth Operating Inc & Expend,T/A Vehicle Maintenance etc,Transport-Contract Hire,J01374,Transport Related Expenditure ,Contract Hire and Op Leasing  ,CC64,HIRING TRANSPORT SEN CABS               ,"1,950.00",31/05/2015,R,CAPITAL CARS                  
642,CS -Oth Operating Inc & Expend,T/A Vehicle Maintenance etc,Transport-Contract Hire,J01374,Transport Related Expenditure ,Contract Hire and Op Leasing  ,CC64,HIRING TRANSPORT SEN CABS               ,"1,260.00",31/05/2015,R,NVCAR HIRE LTD                
643,CS -Oth Operating Inc & Expend,T/A Vehicle Maintenance etc,Transport-Contract Hire,J01374,Transport Related Expenditure ,Contract Hire and Op Leasing  ,CC64,HIRING TRANSPORT SEN CABS               ,"1,320.00",02/06/2015,R,CAPITAL CARS                  
644,CS -Oth Operating Inc & Expend,T/A Vehicle Maintenance etc,Transport-Contract Hire,J01374,Transport Related Expenditure ,Contract Hire and Op Leasing  ,CC64,HIRING TRANSPORT SEN CABS               ,"1,950.00",31/05/2015,R,CAPITAL CARS                  
645,CS -Oth Operating Inc & Expend,T/A Vehicle Maintenance etc,Transport-Contract Hire,J01374,Transport Related Expenditure ,Contract Hire and Op Leasing  ,CC64,HIRING TRANSPORT SEN CABS               ,"1,568.70",31/05/2015,R,KINGSTON ACCESSIBILITY TRAN LT
646,CS -Oth Operating Inc & Expend,T/A Vehicle Maintenance etc,Transport-Contract Hire,J01374,Transport Related Expenditure ,Contract Hire and Op Leasing  ,CC64,HIRING TRANSPORT SEN CABS               ,"1,185.00",31/05/2015,R,SHERWOOD TRANSPORT GROUP      
647,CS -Oth Operating Inc & Expend,T/A Vehicle Maintenance etc,Transport-Contract Hire,J01374,Transport Related Expenditure ,Contract Hire and Op Leasing  ,CC64,HIRING TRANSPORT SEN CABS               ,"1,950.00",31/05/2015,R,NVCAR HIRE LTD                
648,CS -Oth Operating Inc & Expend,T/A Vehicle Maintenance etc,Transport-Contract Hire,J01374,Transport Related Expenditure ,Contract Hire and Op Leasing  ,CC64,HIRING TRANSPORT SEN CABS               ,738,31/05/2015,R,CAPITAL CARS                  
649,CS -Oth Operating Inc & Expend,T/A Vehicle Maintenance etc,Transport-Contract Hire,J01374,Transport Related Expenditure ,Contract Hire and Op Leasing  ,CC64,HIRING TRANSPORT SEN CABS               ,"2,730.00",31/05/2015,R,NVCAR HIRE LTD                
650,CS -Oth Operating Inc & Expend,T/A Vehicle Maintenance etc,Transport-Contract Hire,J01374,Transport Related Expenditure ,Contract Hire and Op Leasing  ,CC64,HIRING TRANSPORT SEN CABS               ,972,31/05/2015,R,KINGSTON ACCESSIBILITY TRAN LT
651,CS -Oth Operating Inc & Expend,T/A Vehicle Maintenance etc,Transport-Contract Hire,J01374,Transport Related Expenditure ,Contract Hire and Op Leasing  ,CC64,HIRING TRANSPORT SEN CABS               ,"1,421.70",31/05/2015,R,KINGSTON ACCESSIBILITY TRAN LT
652,CS -Oth Operating Inc & Expend,T/A Vehicle Maintenance etc,Transport-Contract Hire,J01374,Transport Related Expenditure ,Contract Hire and Op Leasing  ,CC64,HIRING TRANSPORT SEN CABS               ,"1,766.70",31/05/2015,R,KINGSTON ACCESSIBILITY TRAN LT
653,CS -Oth Operating Inc & Expend,T/A Vehicle Maintenance etc,Transport-Contract Hire,J01374,Transport Related Expenditure ,Contract Hire and Op Leasing  ,CC64,HIRING TRANSPORT SEN CABS               ,"1,950.00",31/05/2015,R,CAPITAL CARS                  
654,CS -Oth Operating Inc & Expend,T/A Vehicle Maintenance etc,Transport-Contract Hire,J01374,Transport Related Expenditure ,Contract Hire and Op Leasing  ,CC64,HIRING TRANSPORT SEN CABS               ,"1,186.50",26/05/2015,R,SILVERBURN FINANCE (UK) LTD   
655,CS -Oth Operating Inc & Expend,T/A Vehicle Maintenance etc,Transport-Contract Hire,J01374,Transport Related Expenditure ,Contract Hire and Op Leasing  ,CC64,HIRING TRANSPORT SEN CABS               ,858,31/05/2015,R,NVCAR HIRE LTD                
656,CS -Oth Operating Inc & Expend,T/A Vehicle Maintenance etc,Transport-Contract Hire,J01374,Transport Related Expenditure ,Contract Hire and Op Leasing  ,CC64,HIRING TRANSPORT SEN CABS               ,"1,932.00",30/05/2015,R,WALLINGTON CARS & COURIERS LTD
657,CS -Oth Operating Inc & Expend,T/A Vehicle Maintenance etc,Transport-Contract Hire,J01374,Transport Related Expenditure ,Contract Hire and Op Leasing  ,CC64,HIRING TRANSPORT SEN CABS               ,"3,750.00",31/05/2015,R,SHERWOOD TRANSPORT GROUP      
658,CS -Oth Operating Inc & Expend,T/A Vehicle Maintenance etc,Transport-Contract Hire,J01374,Transport Related Expenditure ,Contract Hire and Op Leasing  ,CC64,HIRING TRANSPORT SEN CABS               ,"1,170.00",31/05/2015,R,CAPITAL CARS                  
659,CS -Oth Operating Inc & Expend,T/A Vehicle Maintenance etc,Transport-Contract Hire,J01374,Transport Related Expenditure ,Contract Hire and Op Leasing  ,CC64,HIRING TRANSPORT SEN CABS               ,"1,499.70",31/05/2015,R,KINGSTON ACCESSIBILITY TRAN LT
660,CS -Oth Operating Inc & Expend,T/A Vehicle Maintenance etc,Transport-Contract Hire,J01374,Transport Related Expenditure ,Contract Hire and Op Leasing  ,CC64,HIRING TRANSPORT SEN CABS               ,"2,250.00",30/05/2015,R,WALLINGTON CARS & COURIERS LTD
661,CS -Oth Operating Inc & Expend,T/A Vehicle Maintenance etc,Transport-Contract Hire,J01374,Transport Related Expenditure ,Contract Hire and Op Leasing  ,CC64,HIRING TRANSPORT SEN CABS               ,"2,117.70",31/05/2015,R,KINGSTON ACCESSIBILITY TRAN LT
662,CS -Oth Operating Inc & Expend,T/A Vehicle Maintenance etc,Transport-Contract Hire,J01374,Transport Related Expenditure ,Contract Hire and Op Leasing  ,CC64,HIRING TRANSPORT SEN CABS               ,"1,350.00",31/05/2015,R,KINGSTON ACCESSIBILITY TRAN LT
663,CS -Oth Operating Inc & Expend,T/A Vehicle Maintenance etc,Transport-Contract Hire,J01374,Transport Related Expenditure ,Contract Hire and Op Leasing  ,CC64,HIRING TRANSPORT SEN CABS               ,"2,550.00",31/05/2015,R,BARCLAYS ASSET & SALES FINANCE
664,CS -Oth Operating Inc & Expend,T/A Vehicle Maintenance etc,Transport-Contract Hire,J01374,Transport Related Expenditure ,Contract Hire and Op Leasing  ,CC64,HIRING TRANSPORT SEN CABS               ,"1,040.00",02/06/2015,R,CHEAM STATION CARS            
665,CS -Oth Operating Inc & Expend,T/A Vehicle Maintenance etc,Transport-Contract Hire,J01374,Transport Related Expenditure ,Contract Hire and Op Leasing  ,CC64,HIRING TRANSPORT SEN CABS               ,665,31/05/2015,R,SHERWOOD TRANSPORT GROUP      
666,CS -Oth Operating Inc & Expend,T/A Vehicle Maintenance etc,Transport-Contract Hire,J01374,Transport Related Expenditure ,Contract Hire and Op Leasing  ,CC64,HIRING TRANSPORT SEN CABS               ,"2,660.00",31/05/2015,R,BARCLAYS ASSET & SALES FINANCE
667,CS -Oth Operating Inc & Expend,T/A Vehicle Maintenance etc,Transport-Contract Hire,J01374,Transport Related Expenditure ,Contract Hire and Op Leasing  ,CC64,HIRING TRANSPORT SEN CABS               ,"2,250.00",31/05/2015,R,BARCLAYS ASSET & SALES FINANCE
668,CS -Oth Operating Inc & Expend,T/A Vehicle Maintenance etc,Transport-Contract Hire,J01374,Transport Related Expenditure ,Contract Hire and Op Leasing  ,CC64,HIRING TRANSPORT SEN CABS               ,864,31/05/2015,R,CAPITAL CARS                  
669,CS -Oth Operating Inc & Expend,T/A Vehicle Maintenance etc,Transport-Contract Hire,J01374,Transport Related Expenditure ,Contract Hire and Op Leasing  ,CC64,HIRING TRANSPORT SEN CABS               ,"1,560.00",02/06/2015,R,CHEAM STATION CARS            
670,CS -Oth Operating Inc & Expend,T/A Vehicle Maintenance etc,Transport-Contract Hire,J01374,Transport Related Expenditure ,Contract Hire and Op Leasing  ,CC64,HIRING TRANSPORT SEN CABS               ,"2,160.00",31/05/2015,R,CAPITAL CARS                  
671,CS -Oth Operating Inc & Expend,T/A Vehicle Maintenance etc,Transport-Contract Hire,J01374,Transport Related Expenditure ,Contract Hire and Op Leasing  ,CC64,HIRING TRANSPORT SEN CABS               ,980,26/05/2015,R,SILVERBURN FINANCE (UK) LTD   
672,CS -Oth Operating Inc & Expend,T/A Vehicle Maintenance etc,Transport-Contract Hire,J01374,Transport Related Expenditure ,Contract Hire and Op Leasing  ,CC64,HIRING TRANSPORT SEN CABS               ,"1,344.00",31/05/2015,R,BARCLAYS ASSET & SALES FINANCE
673,CS -Oth Operating Inc & Expend,T/A Vehicle Maintenance etc,Transport-Contract Hire,J01374,Transport Related Expenditure ,Contract Hire and Op Leasing  ,CC64,HIRING TRANSPORT SEN CABS               ,"1,710.00",31/05/2015,R,CAPITAL CARS                  
674,CS -Oth Operating Inc & Expend,T/A Vehicle Maintenance etc,Transport-Contract Hire,J01374,Transport Related Expenditure ,Contract Hire and Op Leasing  ,CC64,HIRING TRANSPORT SEN CABS               ,810,31/05/2015,R,NVCAR HIRE LTD                
675,CS -Oth Operating Inc & Expend,T/A Vehicle Maintenance etc,Transport-Contract Hire,J01374,Transport Related Expenditure ,Contract Hire and Op Leasing  ,CC64,HIRING TRANSPORT SEN CABS               ,712.5,31/05/2015,R,NVCAR HIRE LTD                
676,CS -Oth Operating Inc & Expend,T/A Vehicle Maintenance etc,Transport-Contract Hire,J01374,Transport Related Expenditure ,Contract Hire and Op Leasing  ,CC64,HIRING TRANSPORT SEN CABS               ,980,30/04/2015,R,SHERWOOD TRANSPORT GROUP      
677,CS -Oth Operating Inc & Expend,T/A Vehicle Maintenance etc,Transport-Contract Hire,J01374,Transport Related Expenditure ,Contract Hire and Op Leasing  ,CC64,HIRING TRANSPORT SEN CABS               ,"1,104.00",02/06/2015,R,CHEAM STATION CARS            
678,CS -Oth Operating Inc & Expend,T/A Vehicle Maintenance etc,Transport-Contract Hire,J01374,Transport Related Expenditure ,Contract Hire and Op Leasing  ,CC64,HIRING TRANSPORT SEN CABS               ,"1,200.00",31/05/2015,R,NVCAR HIRE LTD                
679,CS -Oth Operating Inc & Expend,T/A Vehicle Maintenance etc,Transport-Contract Hire,J01374,Transport Related Expenditure ,Contract Hire and Op Leasing  ,CC64,HIRING TRANSPORT SEN CABS               ,"1,320.00",31/05/2015,R,CAPITAL CARS                  
680,CS -Oth Operating Inc & Expend,T/A Vehicle Maintenance etc,Transport-Contract Hire,J01374,Transport Related Expenditure ,Contract Hire and Op Leasing  ,CC64,HIRING TRANSPORT SEN CABS               ,780,31/05/2015,R,NVCAR HIRE LTD                
681,CS -Oth Operating Inc & Expend,T/A Vehicle Maintenance etc,Transport-Contract Hire,J01374,Transport Related Expenditure ,Contract Hire and Op Leasing  ,CC64,HIRING TRANSPORT SEN CABS               ,"1,050.00",31/05/2015,R,SHERWOOD TRANSPORT GROUP      
682,CS -Oth Operating Inc & Expend,T/A Vehicle Maintenance etc,Transport-Contract Hire,J01374,Transport Related Expenditure ,Contract Hire and Op Leasing  ,CC64,HIRING TRANSPORT SEN CABS               ,725,02/06/2015,R,CHEAM STATION CARS            
683,CS -Oth Operating Inc & Expend,T/A Vehicle Maintenance etc,Transport-Contract Hire,J01374,Transport Related Expenditure ,Contract Hire and Op Leasing  ,CC64,HIRING TRANSPORT SEN CABS               ,"1,485.00",31/05/2015,R,SHERWOOD TRANSPORT GROUP      
684,CS -Oth Operating Inc & Expend,T/A Vehicle Maintenance etc,Transport-Contract Hire,J01374,Transport Related Expenditure ,Contract Hire and Op Leasing  ,CC64,HIRING TRANSPORT SEN CABS               ,750,30/05/2015,R,WALLINGTON CARS & COURIERS LTD
685,CS -Oth Operating Inc & Expend,T/A Vehicle Maintenance etc,Transport-Contract Hire,J01374,Transport Related Expenditure ,Contract Hire and Op Leasing  ,CC64,HIRING TRANSPORT SEN CABS               ,"1,590.00",02/06/2015,R,CAPITAL CARS                  
686,CS -Oth Operating Inc & Expend,T/A Vehicle Maintenance etc,Transport-Contract Hire,J01374,Transport Related Expenditure ,Contract Hire and Op Leasing  ,CC64,HIRING TRANSPORT SEN CABS               ,855,31/05/2015,R,PREMIER CARS                  
687,CS -Oth Operating Inc & Expend,T/A Vehicle Maintenance etc,Transport-Contract Hire,J01374,Transport Related Expenditure ,Contract Hire and Op Leasing  ,CC64,HIRING TRANSPORT SEN CABS               ,500,31/05/2015,R,NVCAR HIRE LTD                
688,CS -Oth Operating Inc & Expend,T/A Vehicle Maintenance etc,Transport-Contract Hire,J01374,Transport Related Expenditure ,Contract Hire and Op Leasing  ,CC64,HIRING TRANSPORT SEN CABS               ,"2,385.00",31/05/2015,R,SHERWOOD TRANSPORT GROUP      
689,CS -Oth Operating Inc & Expend,T/A Vehicle Maintenance etc,Transport-Contract Hire,J01374,Transport Related Expenditure ,Contract Hire and Op Leasing  ,CC64,HIRING TRANSPORT SEN CABS               ,715,26/05/2015,R,SILVERBURN FINANCE (UK) LTD   
690,CS -Oth Operating Inc & Expend,T/A Vehicle Maintenance etc,Transport-Contract Hire,J01374,Transport Related Expenditure ,Contract Hire and Op Leasing  ,CC64,HIRING TRANSPORT SEN CABS               ,"1,440.00",31/05/2015,R,BARCLAYS ASSET & SALES FINANCE
691,CS -Oth Operating Inc & Expend,T/A Vehicle Maintenance etc,Transport-Contract Hire,J01374,Transport Related Expenditure ,Contract Hire and Op Leasing  ,CC64,HIRING TRANSPORT SEN CABS               ,"1,425.00",31/05/2015,R,SHERWOOD TRANSPORT GROUP      
692,CS -Oth Operating Inc & Expend,T/A Vehicle Maintenance etc,Transport-Contract Hire,J01374,Transport Related Expenditure ,Contract Hire and Op Leasing  ,CC64,HIRING TRANSPORT SEN CABS               ,"1,248.00",31/05/2015,R,CAPITAL CARS                  
693,CS -Oth Operating Inc & Expend,T/A Vehicle Maintenance etc,Transport-Contract Hire,J01374,Transport Related Expenditure ,Contract Hire and Op Leasing  ,CC64,HIRING TRANSPORT SEN CABS               ,772,31/05/2015,R,NVCAR HIRE LTD                
694,CS -Oth Operating Inc & Expend,T/A Vehicle Maintenance etc,Transport-Contract Hire,J01374,Transport Related Expenditure ,Contract Hire and Op Leasing  ,CC64,HIRING TRANSPORT SEN CABS               ,"1,350.00",31/05/2015,R,CAPITAL CARS                  
695,CS -Oth Operating Inc & Expend,T/A Vehicle Maintenance etc,Transport-Contract Hire,J01374,Transport Related Expenditure ,Contract Hire and Op Leasing  ,CC64,HIRING TRANSPORT SEN CABS               ,"1,344.00",26/05/2015,R,SILVERBURN FINANCE (UK) LTD   
696,CS -Oth Operating Inc & Expend,T/A Vehicle Maintenance etc,Transport-Contract Hire,J01374,Transport Related Expenditure ,Contract Hire and Op Leasing  ,CC64,HIRING TRANSPORT SEN CABS               ,"1,453.50",31/05/2015,R,SHERWOOD TRANSPORT GROUP      
697,CS -Oth Operating Inc & Expend,T/A Vehicle Maintenance etc,Transport-Contract Hire,J01374,Transport Related Expenditure ,Contract Hire and Op Leasing  ,CC64,HIRING TRANSPORT SEN CABS               ,"1,800.00",31/05/2015,R,NVCAR HIRE LTD                
698,CS -Oth Operating Inc & Expend,T/A Vehicle Maintenance etc,Transport-Contract Hire,J01374,Transport Related Expenditure ,Contract Hire and Op Leasing  ,CC64,HIRING TRANSPORT SEN CABS               ,"1,828.50",31/05/2015,R,KINGSTON ACCESSIBILITY TRAN LT
699,CS -Oth Operating Inc & Expend,T/A Vehicle Maintenance etc,Transport-Contract Hire,J01374,Transport Related Expenditure ,Contract Hire and Op Leasing  ,CC64,HIRING TRANSPORT SEN CABS               ,"1,440.00",31/05/2015,R,PREMIER CARS                  
700,CS -Oth Operating Inc & Expend,T/A Vehicle Maintenance etc,Transport-Contract Hire,J01374,Transport Related Expenditure ,Contract Hire and Op Leasing  ,CC64,HIRING TRANSPORT SEN CABS               ,"1,920.00",31/05/2015,R,A STAR TRANSPORT LIMITED      
701,CS -Oth Operating Inc & Expend,T/A Vehicle Maintenance etc,Transport-Contract Hire,J01374,Transport Related Expenditure ,Contract Hire and Op Leasing  ,CC64,HIRING TRANSPORT SEN CABS               ,"2,052.00",02/06/2015,R,CAPITAL CARS                  
702,CS -Oth Operating Inc & Expend,T/A Vehicle Maintenance etc,Transport-Contract Hire,J01374,Transport Related Expenditure ,Contract Hire and Op Leasing  ,CC64,HIRING TRANSPORT SEN CABS               ,"1,792.50",31/05/2015,R,KINGSTON ACCESSIBILITY TRAN LT
703,CS -Oth Operating Inc & Expend,T/A Vehicle Maintenance etc,Transport-Contract Hire,J01374,Transport Related Expenditure ,Contract Hire and Op Leasing  ,CC64,HIRING TRANSPORT SEN CABS               ,"1,060.00",26/05/2015,R,SILVERBURN FINANCE (UK) LTD   
704,CS -Oth Operating Inc & Expend,T/A Vehicle Maintenance etc,Transport-Contract Hire,J01374,Transport Related Expenditure ,Contract Hire and Op Leasing  ,CC64,HIRING TRANSPORT SEN CABS               ,"2,280.00",31/05/2015,R,BARCLAYS ASSET & SALES FINANCE
705,CS -Oth Operating Inc & Expend,T/A Vehicle Maintenance etc,Transport-Contract Hire,J01374,Transport Related Expenditure ,Contract Hire and Op Leasing  ,CC64,HIRING TRANSPORT SEN CABS               ,768,02/06/2015,R,CHEAM STATION CARS            
706,CS -Oth Operating Inc & Expend,T/A Vehicle Maintenance etc,Transport-Contract Hire,J01374,Transport Related Expenditure ,Contract Hire and Op Leasing  ,CC64,HIRING TRANSPORT SEN CABS               ,"2,400.00",30/05/2015,R,WALLINGTON CARS & COURIERS LTD
707,CS -Oth Operating Inc & Expend,T/A Vehicle Maintenance etc,Transport-Contract Hire,J01374,Transport Related Expenditure ,Contract Hire and Op Leasing  ,CC64,HIRING TRANSPORT SEN CABS               ,555,28/05/2015,R,KENDALL CARS                  
708,CS -Oth Operating Inc & Expend,T/A Vehicle Maintenance etc,Transport-Contract Hire,J01374,Transport Related Expenditure ,Contract Hire and Op Leasing  ,CC64,HIRING TRANSPORT SEN CABS               ,810,31/05/2015,R,NVCAR HIRE LTD                
709,CS -Oth Operating Inc & Expend,T/A Vehicle Maintenance etc,Transport-Contract Hire,J01374,Transport Related Expenditure ,Contract Hire and Op Leasing  ,CC64,HIRING TRANSPORT SEN CABS               ,"1,145.50",31/05/2015,R,SHERWOOD TRANSPORT GROUP      
710,CS -Oth Operating Inc & Expend,T/A Vehicle Maintenance etc,Transport-Contract Hire,J01374,Transport Related Expenditure ,Contract Hire and Op Leasing  ,CC64,HIRING TRANSPORT SEN CABS               ,840,02/06/2015,R,CHEAM STATION CARS            
711,CS -Oth Operating Inc & Expend,T/A Vehicle Maintenance etc,Transport-Contract Hire,J01374,Transport Related Expenditure ,Contract Hire and Op Leasing  ,CC64,HIRING TRANSPORT SEN CABS               ,972,31/05/2015,R,BRUNSWICK CARS LTD            
712,CS -Oth Operating Inc & Expend,T/A Vehicle Maintenance etc,Transport-Contract Hire,J01374,Transport Related Expenditure ,Contract Hire and Op Leasing  ,CC64,HIRING TRANSPORT SEN CABS               ,"1,440.00",31/05/2015,R,CAPITAL CARS                  
713,CS -Oth Operating Inc & Expend,T/A Vehicle Maintenance etc,Transport-Contract Hire,J01374,Transport Related Expenditure ,Contract Hire and Op Leasing  ,CC64,HIRING TRANSPORT SEN CABS               ,"1,260.00",31/05/2015,R,CAPITAL CARS                  
714,CS -Oth Operating Inc & Expend,T/A Vehicle Maintenance etc,Transport-Contract Hire,J01374,Transport Related Expenditure ,Contract Hire and Op Leasing  ,CC64,HIRING TRANSPORT SEN CABS               ,576,31/05/2015,R,CAPITAL CARS                  
715,CS -Oth Operating Inc & Expend,T/A Vehicle Maintenance etc,Transport-Contract Hire,J01374,Transport Related Expenditure ,Contract Hire and Op Leasing  ,CC64,HIRING TRANSPORT SEN CABS               ,"1,950.00",31/05/2015,R,BARCLAYS ASSET & SALES FINANCE
716,CS -Oth Operating Inc & Expend,T/A Vehicle Maintenance etc,Transport-Contract Hire,J01374,Transport Related Expenditure ,Contract Hire and Op Leasing  ,CC64,HIRING TRANSPORT SEN CABS               ,"1,169.70",31/05/2015,R,KINGSTON ACCESSIBILITY TRAN LT
717,CS -Oth Operating Inc & Expend,T/A Vehicle Maintenance etc,Transport-Contract Hire,J01374,Transport Related Expenditure ,Contract Hire and Op Leasing  ,CC64,HIRING TRANSPORT SEN CABS               ,"1,750.00",31/05/2015,R,NVCAR HIRE LTD                
718,CS -Oth Operating Inc & Expend,T/A Vehicle Maintenance etc,Transport-Contract Hire,J01374,Transport Related Expenditure ,Contract Hire and Op Leasing  ,CC64,HIRING TRANSPORT SEN CABS               ,"2,429.70",31/05/2015,R,KINGSTON ACCESSIBILITY TRAN LT
719,CS -Oth Operating Inc & Expend,T/A Vehicle Maintenance etc,Transport-Contract Hire,J01374,Transport Related Expenditure ,Contract Hire and Op Leasing  ,CC64,HIRING TRANSPORT SEN CABS               ,"1,008.00",31/05/2015,R,NVCAR HIRE LTD                
720,CS -Oth Operating Inc & Expend,T/A Vehicle Maintenance etc,Transport-Contract Hire,J01374,Transport Related Expenditure ,Contract Hire and Op Leasing  ,CC64,HIRING TRANSPORT SEN CABS               ,"1,560.00",31/05/2015,R,A STAR TRANSPORT LIMITED      
721,CS -Oth Operating Inc & Expend,T/A Vehicle Maintenance etc,Transport-Contract Hire,J01374,Transport Related Expenditure ,Contract Hire and Op Leasing  ,CC64,HIRING TRANSPORT SEN CABS               ,"1,404.00",31/05/2015,R,CAPITAL CARS                  
722,CS -Oth Operating Inc & Expend,T/A Vehicle Maintenance etc,Transport-Contract Hire,J01374,Transport Related Expenditure ,Contract Hire and Op Leasing  ,CC64,HIRING TRANSPORT SEN CABS               ,"1,200.00",31/05/2015,R,CAPITAL CARS                  
723,CS -Oth Operating Inc & Expend,T/A Vehicle Maintenance etc,Transport-Contract Hire,J01374,Transport Related Expenditure ,Contract Hire and Op Leasing  ,CC64,HIRING TRANSPORT SEN CABS               ,660,31/05/2015,R,NVCAR HIRE LTD                
724,CS -Oth Operating Inc & Expend,T/A Vehicle Maintenance etc,Transport-Contract Hire,J01374,Transport Related Expenditure ,Contract Hire and Op Leasing  ,CC64,HIRING TRANSPORT SEN CABS               ,"2,145.00",31/05/2015,R,BRUNSWICK CARS LTD            
725,CS -Oth Operating Inc & Expend,T/A Vehicle Maintenance etc,Transport-Contract Hire,J01374,Transport Related Expenditure ,Contract Hire and Op Leasing  ,CC64,HIRING TRANSPORT SEN CABS               ,"1,140.00",31/05/2015,R,CAPITAL CARS                  
726,CS -Oth Operating Inc & Expend,T/A Vehicle Maintenance etc,Transport-Contract Hire,J01374,Transport Related Expenditure ,Contract Hire and Op Leasing  ,CC64,HIRING TRANSPORT SEN CABS               ,"2,687.70",31/05/2015,R,KINGSTON ACCESSIBILITY TRAN LT
727,CS -Oth Operating Inc & Expend,T/A Vehicle Maintenance etc,Transport-Contract Hire,J01374,Transport Related Expenditure ,Contract Hire and Op Leasing  ,CC64,HIRING TRANSPORT SEN CABS               ,"1,575.00",31/05/2015,R,SHERWOOD TRANSPORT GROUP      
728,CS -Oth Operating Inc & Expend,T/A Vehicle Maintenance etc,Transport-Contract Hire,J01374,Transport Related Expenditure ,Contract Hire and Op Leasing  ,CC64,HIRING TRANSPORT SEN CABS               ,"1,440.00",31/05/2015,R,CAPITAL CARS                  
729,CS -Oth Operating Inc & Expend,T/A Vehicle Maintenance etc,Transport-Contract Hire,J01374,Transport Related Expenditure ,Contract Hire and Op Leasing  ,CC64,HIRING TRANSPORT SEN CABS               ,"2,520.00",26/05/2015,R,SILVERBURN FINANCE (UK) LTD   
730,CS -Oth Operating Inc & Expend,T/A Vehicle Maintenance etc,Transport-Contract Hire,J01374,Transport Related Expenditure ,Contract Hire and Op Leasing  ,CC64,HIRING TRANSPORT SEN CABS               ,"1,208.25",31/05/2015,R,SHERWOOD TRANSPORT GROUP      
731,CS -Oth Operating Inc & Expend,T/A Vehicle Maintenance etc,Transport-Contract Hire,J01374,Transport Related Expenditure ,Contract Hire and Op Leasing  ,CC64,HIRING TRANSPORT SEN CABS               ,"2,110.00",31/05/2015,R,NVCAR HIRE LTD                
732,CS -Oth Operating Inc & Expend,T/A Vehicle Maintenance etc,Transport-Contract Hire,J01374,Transport Related Expenditure ,Contract Hire and Op Leasing  ,CC64,HIRING TRANSPORT SEN CABS               ,"1,785.00",31/05/2015,R,BRUNSWICK CARS LTD            
733,CS -Oth Operating Inc & Expend,T/A Vehicle Maintenance etc,Transport-Contract Hire,J01374,Transport Related Expenditure ,Contract Hire and Op Leasing  ,CC64,HIRING TRANSPORT SEN CABS               ,935,31/05/2015,R,PREMIER CARS                  
734,CS -Oth Operating Inc & Expend,T/A Vehicle Maintenance etc,Transport-Contract Hire,J01374,Transport Related Expenditure ,Contract Hire and Op Leasing  ,CC64,HIRING TRANSPORT SEN CABS               ,"1,283.70",31/05/2015,R,KINGSTON ACCESSIBILITY TRAN LT
735,CS -Oth Operating Inc & Expend,T/A Vehicle Maintenance etc,Transport-Contract Hire,J01374,Transport Related Expenditure ,Contract Hire and Op Leasing  ,CC64,HIRING TRANSPORT SEN CABS               ,"2,377.50",31/05/2015,R,SHERWOOD TRANSPORT GROUP      
736,CS -Oth Operating Inc & Expend,T/A Vehicle Maintenance etc,Transport-Contract Hire,J01374,Transport Related Expenditure ,Contract Hire and Op Leasing  ,CC64,HIRING TRANSPORT SEN CABS               ,912,26/05/2015,R,SILVERBURN FINANCE (UK) LTD   
737,CS -Oth Operating Inc & Expend,T/A Vehicle Maintenance etc,Transport-Contract Hire,J01374,Transport Related Expenditure ,Contract Hire and Op Leasing  ,CC64,HIRING TRANSPORT SEN CABS               ,757.5,31/05/2015,R,NVCAR HIRE LTD                
738,CS -Oth Operating Inc & Expend,T/A Vehicle Maintenance etc,Transport-Contract Hire,J01374,Transport Related Expenditure ,Contract Hire and Op Leasing  ,CC64,HIRING TRANSPORT SEN CABS               ,"1,323.00",31/05/2015,R,A STAR TRANSPORT LIMITED      
739,CS -Oth Operating Inc & Expend,T/A Vehicle Maintenance etc,Transport-Contract Hire,J01374,Transport Related Expenditure ,Contract Hire and Op Leasing  ,CC64,HIRING TRANSPORT SEN CABS               ,"1,344.00",31/05/2015,R,BRUNSWICK CARS LTD            
740,CS -Oth Operating Inc & Expend,T/A Vehicle Maintenance etc,Transport-Contract Hire,J01374,Transport Related Expenditure ,Contract Hire and Op Leasing  ,CC64,HIRING TRANSPORT SEN CABS               ,"1,680.00",31/05/2015,R,NVCAR HIRE LTD                
741,CS -Oth Operating Inc & Expend,T/A Vehicle Maintenance etc,Transport-Contract Hire,J01374,Transport Related Expenditure ,Contract Hire and Op Leasing  ,CC64,HIRING TRANSPORT SEN CABS               ,"1,452.00",31/05/2015,R,SHERWOOD TRANSPORT GROUP      
742,CS -Oth Operating Inc & Expend,T/A Vehicle Maintenance etc,Transport-Contract Hire,J01374,Transport Related Expenditure ,Contract Hire and Op Leasing  ,CC64,HIRING TRANSPORT SEN CABS               ,"2,237.70",31/05/2015,R,KINGSTON ACCESSIBILITY TRAN LT
743,CS -Oth Operating Inc & Expend,T/A Vehicle Maintenance etc,Transport-Contract Hire,J01374,Transport Related Expenditure ,Contract Hire and Op Leasing  ,CC64,HIRING TRANSPORT SEN CABS               ,"1,650.00",31/05/2015,R,SHERWOOD TRANSPORT GROUP      
744,CS -Oth Operating Inc & Expend,T/A Vehicle Maintenance etc,Transport-Contract Hire,J01374,Transport Related Expenditure ,Contract Hire and Op Leasing  ,CC64,HIRING TRANSPORT SEN CABS               ,924,02/06/2015,R,CAPITAL CARS                  
745,CS -Oth Operating Inc & Expend,T/A Vehicle Maintenance etc,Transport-Contract Hire,J01374,Transport Related Expenditure ,Contract Hire and Op Leasing  ,CC64,HIRING TRANSPORT SEN CABS               ,"1,960.00",31/05/2015,R,BARCLAYS ASSET & SALES FINANCE
746,CS -Oth Operating Inc & Expend,T/A Vehicle Maintenance etc,Transport-Contract Hire,J01374,Transport Related Expenditure ,Contract Hire and Op Leasing  ,CC64,HIRING TRANSPORT SEN CABS               ,"1,770.00",31/05/2015,R,KINGSTON ACCESSIBILITY TRAN LT
747,CS -Oth Operating Inc & Expend,T/A Vehicle Maintenance etc,Transport-Contract Hire,J01374,Transport Related Expenditure ,Contract Hire and Op Leasing  ,CC64,HIRING TRANSPORT SEN CABS               ,"2,370.00",31/05/2015,R,BARCLAYS ASSET & SALES FINANCE
748,CS -Oth Operating Inc & Expend,T/A Vehicle Maintenance etc,Transport-Contract Hire,J01374,Transport Related Expenditure ,Contract Hire and Op Leasing  ,CC66,HIRING TRANSPORT H&SS CAB CHILDREN      ,862,02/06/2015,R,CHEAM STATION CARS            
749,CS -Oth Operating Inc & Expend,T/A Vehicle Maintenance etc,Transport-Contract Hire,J01374,Transport Related Expenditure ,Contract Hire and Op Leasing  ,CC67,HIRING TRANSPORT H&SS CAB ADULTS        ,660,31/05/2015,R,A STAR TRANSPORT LIMITED      
750,CS -Oth Operating Inc & Expend,T/A Vehicle Maintenance etc,Transport-Contract Hire,J01374,Transport Related Expenditure ,Contract Hire and Op Leasing  ,CC67,HIRING TRANSPORT H&SS CAB ADULTS        ,"1,380.00",31/05/2015,R,CAPITAL CARS                  
751,CS -Oth Operating Inc & Expend,T/A Vehicle Maintenance etc,Transport-Contract Hire,J01374,Transport Related Expenditure ,Contract Hire and Op Leasing  ,CC67,HIRING TRANSPORT H&SS CAB ADULTS        ,696,31/05/2015,R,NVCAR HIRE LTD                
752,CS -Oth Operating Inc & Expend,T/A Vehicle Maintenance etc,Transport-Contract Hire,J01374,Transport Related Expenditure ,Contract Hire and Op Leasing  ,CC67,HIRING TRANSPORT H&SS CAB ADULTS        ,588,31/05/2015,R,NVCAR HIRE LTD                
753,CS -Oth Operating Inc & Expend,T/A Vehicle Maintenance etc,Transport-Contract Hire,J01374,Transport Related Expenditure ,Contract Hire and Op Leasing  ,CC67,HIRING TRANSPORT H&SS CAB ADULTS        ,630,28/02/2015,R,CAPITAL CARS                  
754,CS -Oth Operating Inc & Expend,T/A Vehicle Maintenance etc,Transport-Contract Hire,J01374,Transport Related Expenditure ,Contract Hire and Op Leasing  ,CC67,HIRING TRANSPORT H&SS CAB ADULTS        ,"1,290.00",26/05/2015,R,SILVERBURN FINANCE (UK) LTD   
755,CS -Oth Operating Inc & Expend,T/A Vehicle Maintenance etc,Transport-Contract Hire,J01374,Transport Related Expenditure ,Contract Hire and Op Leasing  ,CC67,HIRING TRANSPORT H&SS CAB ADULTS        ,"1,058.00",31/05/2015,R,NVCAR HIRE LTD                
756,CS -Oth Operating Inc & Expend,T/A Vehicle Maintenance etc,Transport-Contract Hire,J01374,Transport Related Expenditure ,Contract Hire and Op Leasing  ,CC67,HIRING TRANSPORT H&SS CAB ADULTS        ,"1,702.00",26/05/2015,R,SILVERBURN FINANCE (UK) LTD   
757,CS -Oth Operating Inc & Expend,T/A Vehicle Maintenance etc,Transport-Contract Hire,J01374,Transport Related Expenditure ,Contract Hire and Op Leasing  ,CC67,HIRING TRANSPORT H&SS CAB ADULTS        ,"1,216.00",02/06/2015,R,CHEAM STATION CARS            
758,CS -Oth Operating Inc & Expend,T/A Vehicle Maintenance etc,Transport-Contract Hire,J01374,Transport Related Expenditure ,Contract Hire and Op Leasing  ,CC67,HIRING TRANSPORT H&SS CAB ADULTS        ,"1,145.00",31/05/2015,R,SHERWOOD TRANSPORT GROUP      
759,CS -Oth Operating Inc & Expend,T/A Vehicle Maintenance etc,Transport-Contract Hire,J01374,Transport Related Expenditure ,Contract Hire and Op Leasing  ,CC67,HIRING TRANSPORT H&SS CAB ADULTS        ,590,31/05/2015,R,CAPITAL CARS                  
760,CS -Oth Operating Inc & Expend,T/A Vehicle Maintenance etc,Transport-Contract Hire,J01374,Transport Related Expenditure ,Contract Hire and Op Leasing  ,CC67,HIRING TRANSPORT H&SS CAB ADULTS        ,870,31/05/2015,R,NVCAR HIRE LTD                
761,CS -Oth Operating Inc & Expend,T/A Vehicle Maintenance etc,Transport-Contract Hire,J01374,Transport Related Expenditure ,Contract Hire and Op Leasing  ,CC67,HIRING TRANSPORT H&SS CAB ADULTS        ,"1,080.00",31/05/2015,R,NVCAR HIRE LTD                
762,CS -Oth Operating Inc & Expend,T/A Vehicle Maintenance etc,Transport-Contract Hire,J01374,Transport Related Expenditure ,Contract Hire and Op Leasing  ,CC67,HIRING TRANSPORT H&SS CAB ADULTS        ,705,02/06/2015,R,CAPITAL CARS                  
763,CS -Oth Operating Inc & Expend,T/A Vehicle Maintenance etc,Transport-Contract Hire,J01374,Transport Related Expenditure ,Contract Hire and Op Leasing  ,CC67,HIRING TRANSPORT H&SS CAB ADULTS        ,608,31/05/2015,R,NVCAR HIRE LTD                
764,CS -Oth Operating Inc & Expend,T/A Vehicle Maintenance etc,Transport-Contract Hire,J01374,Transport Related Expenditure ,Contract Hire and Op Leasing  ,CC67,HIRING TRANSPORT H&SS CAB ADULTS        ,"1,069.68",31/05/2015,R,KINGSTON ACCESSIBILITY TRAN LT
765,CS -Oth Operating Inc & Expend,T/A Vehicle Maintenance etc,Transport-Contract Hire,J01374,Transport Related Expenditure ,Contract Hire and Op Leasing  ,CC67,HIRING TRANSPORT H&SS CAB ADULTS        ,"1,088.00",31/05/2015,R,A STAR TRANSPORT LIMITED      
766,CS -Oth Operating Inc & Expend,T/A Vehicle Maintenance etc,Transport-Contract Hire,J01374,Transport Related Expenditure ,Contract Hire and Op Leasing  ,CC68,HIRING TRANSPORT SEN COLLEGES CABS      ,550,31/05/2015,R,NVCAR HIRE LTD                
767,CS -Oth Operating Inc & Expend,T/A Vehicle Maintenance etc,Transport-Contract Hire,J01374,Transport Related Expenditure ,Contract Hire and Op Leasing  ,CC68,HIRING TRANSPORT SEN COLLEGES CABS      ,"1,396.00",31/05/2015,R,PREMIER CARS                  
768,CS -Oth Operating Inc & Expend,T/A Vehicle Maintenance etc,Transport-Contract Hire,J01374,Transport Related Expenditure ,Contract Hire and Op Leasing  ,CC68,HIRING TRANSPORT SEN COLLEGES CABS      ,520,31/05/2015,R,CAPITAL CARS                  
769,CS -Oth Operating Inc & Expend,T/A Vehicle Maintenance etc,Transport-Contract Hire,J01374,Transport Related Expenditure ,Contract Hire and Op Leasing  ,CC68,HIRING TRANSPORT SEN COLLEGES CABS      ,"2,250.00",31/05/2015,R,BARCLAYS ASSET & SALES FINANCE
770,CS -Oth Operating Inc & Expend,T/A Vehicle Maintenance etc,Transport-Contract Hire,J01374,Transport Related Expenditure ,Contract Hire and Op Leasing  ,CC68,HIRING TRANSPORT SEN COLLEGES CABS      ,"1,973.70",31/05/2015,R,KINGSTON ACCESSIBILITY TRAN LT
771,CS -Oth Operating Inc & Expend,T/A Vehicle Maintenance etc,Transport-Contract Hire,J01374,Transport Related Expenditure ,Contract Hire and Op Leasing  ,CC68,HIRING TRANSPORT SEN COLLEGES CABS      ,"1,038.00",26/05/2015,R,SILVERBURN FINANCE (UK) LTD   
772,CS -Oth Operating Inc & Expend,T/A Vehicle Maintenance etc,Transport-Contract Hire,J01374,Transport Related Expenditure ,Contract Hire and Op Leasing  ,CC68,HIRING TRANSPORT SEN COLLEGES CABS      ,"1,100.00",31/05/2015,R,PREMIER CARS                  
773,CS -Oth Operating Inc & Expend,T/A Vehicle Maintenance etc,Transport-Workshop,J01376,Employees                     ,Indirect Employee Expenses    ,AB02,Recruitment Adverts                     ,"1,151.74",29/05/2015,R,PENNA PLC                     
774,CS -Oth Operating Inc & Expend,T/A Vehicle Maintenance etc,Transport-Workshop,J01376,Transport Related Expenditure ,Contract Hire and Op Leasing  ,CC60,Vehicle Hire for LB Sutton              ,"2,280.00",31/05/2015,R,CAPITAL CARS                  
775,CS -Oth Operating Inc & Expend,T/A Vehicle Maintenance etc,Transport-Workshop,J01376,Transport Related Expenditure ,Contract Hire and Op Leasing  ,CC60,Vehicle Hire for LB Sutton              ,"1,596.00",21/05/2015,R,SCHOOL TRANSPORT LTD          
776,CS -Oth Operating Inc & Expend,T/A Vehicle Maintenance etc,Transport-Workshop,J01376,Transport Related Expenditure ,Contract Hire and Op Leasing  ,CC60,Vehicle Hire for LB Sutton              ,"4,464.00",31/05/2015,R,BARCLAYS ASSET & SALES FINANCE
777,CS -Oth Operating Inc & Expend,T/A Vehicle Maintenance etc,Transport-Workshop,J01376,Transport Related Expenditure ,Contract Hire and Op Leasing  ,CC60,Vehicle Hire for LB Sutton              ,"1,000.00",21/05/2015,R,SCHOOL TRANSPORT LTD          
778,CS -Oth Operating Inc & Expend,T/A Vehicle Maintenance etc,Transport-Workshop,J01376,Transport Related Expenditure ,Contract Hire and Op Leasing  ,CC60,Vehicle Hire for LB Sutton              ,756,31/05/2015,R,BARCLAYS ASSET & SALES FINANCE
779,CS -Oth Operating Inc & Expend,T/A Vehicle Maintenance etc,Transport-Workshop,J01376,Transport Related Expenditure ,Contract Hire and Op Leasing  ,CC65,Vehicle Hire for Education              ,590,09/06/2015,R,GOLDEN SOVEREIGN COACHES      
780,CS -Oth Operating Inc & Expend,T/A Vehicle Maintenance etc,Transport-Workshop,J01376,Transport Related Expenditure ,Contract Hire and Op Leasing  ,CC65,Vehicle Hire for Education              ,"1,568.00",31/05/2015,R,BARCLAYS ASSET & SALES FINANCE
781,CS -Oth Operating Inc & Expend,T/A Vehicle Maintenance etc,Transport-Workshop,J01376,Transport Related Expenditure ,Contract Hire and Op Leasing  ,CC65,Vehicle Hire for Education              ,"1,400.00",30/04/2015,R,BARCLAYS ASSET & SALES FINANCE
782,CS -Oth Operating Inc & Expend,T/A Vehicle Maintenance etc,Transport-Workshop,J01376,Supplies & Services           ,Equip Furniture/Materials     ,DA09,Equip-Purchases                         ,"8,436.80",12/05/2015,R,C.N. UNWIN LTD                
783,CS -Oth Operating Inc & Expend,T/A Vehicle Maintenance etc,Vehicle Workshops,J01378,Employees                     ,Direct Employee Expenses      ,AA17,Agency Staff & Casual Paymts            ,"1,015.00",03/06/2015,R,REDACTED     
784,CS -Oth Operating Inc & Expend,T/A Vehicle Maintenance etc,Vehicle Workshops,J01378,Employees                     ,Direct Employee Expenses      ,AA17,Agency Staff & Casual Paymts            ,700,27/05/2015,R,REDACTED     
785,CS -Oth Operating Inc & Expend,T/A Vehicle Maintenance etc,Vehicle Workshops,J01378,Employees                     ,Direct Employee Expenses      ,AA17,Agency Staff & Casual Paymts            ,560,10/06/2015,R,REDACTED     
786,CS -Oth Operating Inc & Expend,T/A Vehicle Maintenance etc,Vehicle Workshops,J01378,Employees                     ,Indirect Employee Expenses    ,AB57,External Training Costs                 ,895.5,27/05/2015,R,STONERIDGE ELECTRONICS        
787,CS -Oth Operating Inc & Expend,T/A Vehicle Maintenance etc,Vehicle Workshops,J01378,Employees                     ,Indirect Employee Expenses    ,AB57,External Training Costs                 ,895.5,27/05/2015,R,STONERIDGE ELECTRONICS        
788,CS -Oth Operating Inc & Expend,T/A Vehicle Maintenance etc,Vehicle Workshops,J01378,Employees                     ,Indirect Employee Expenses    ,AB57,External Training Costs                 ,895.5,27/05/2015,R,STONERIDGE ELECTRONICS        
789,CS -Oth Operating Inc & Expend,T/A Vehicle Maintenance etc,Vehicle Workshops,J01378,Employees                     ,Indirect Employee Expenses    ,AB57,External Training Costs                 ,895.5,27/05/2015,R,STONERIDGE ELECTRONICS        
790,CS -Oth Operating Inc & Expend,T/A Vehicle Maintenance etc,Vehicle Workshops,J01378,Transport Related Expenditure ,Direct Transport Costs        ,CA02,Tyres                                   ,"2,110.00",27/05/2015,R,MORDEN TYRE SERVICES LTD      
791,CS -Oth Operating Inc & Expend,T/A Vehicle Maintenance etc,Vehicle Workshops,J01378,Transport Related Expenditure ,Direct Transport Costs        ,CA02,Tyres                                   ,"1,700.00",17/06/2015,R,MORDEN TYRE SERVICES LTD      
792,CS -Oth Operating Inc & Expend,T/A Vehicle Maintenance etc,Vehicle Workshops,J01378,Transport Related Expenditure ,Direct Transport Costs        ,CA02,Tyres                                   ,"1,395.00",03/06/2015,R,MORDEN TYRE SERVICES LTD      
793,CS -Oth Operating Inc & Expend,T/A Vehicle Maintenance etc,Vehicle Workshops,J01378,Transport Related Expenditure ,Direct Transport Costs        ,CA55,Specialist Maint. (Off Site)            ,572.06,29/05/2015,R,KINGSLEY COMM COMPONENTS LTD  
794,CS -Oth Operating Inc & Expend,T/A Vehicle Maintenance etc,Vehicle Workshops,J01378,Transport Related Expenditure ,Direct Transport Costs        ,CA55,Specialist Maint. (Off Site)            ,577.06,29/05/2015,R,KINGSLEY COMM COMPONENTS LTD  
795,CS -Oth Operating Inc & Expend,T/A Vehicle Maintenance etc,Vehicle Workshops,J01378,Transport Related Expenditure ,Direct Transport Costs        ,CA55,Specialist Maint. (Off Site)            ,647.56,29/05/2015,R,KINGSLEY COMM COMPONENTS LTD  
796,CS -Oth Operating Inc & Expend,T/A Vehicle Maintenance etc,Vehicle Workshops,J01378,Transport Related Expenditure ,Direct Transport Costs        ,CA55,Specialist Maint. (Off Site)            ,612.16,29/05/2015,R,KINGSLEY COMM COMPONENTS LTD  
797,CS -Oth Operating Inc & Expend,T/A Vehicle Maintenance etc,Vehicle Workshops,J01378,Transport Related Expenditure ,Direct Transport Costs        ,CA55,Specialist Maint. (Off Site)            ,"2,087.09",05/06/2015,R,REDACTED     
798,CS -Oth Operating Inc & Expend,T/A Vehicle Maintenance etc,Vehicle Workshops,J01378,Transport Related Expenditure ,Direct Transport Costs        ,CA56,Specialist Maint. (On Site)             ,525.5,16/05/2015,R,REDACTED     
799,CS -Oth Operating Inc & Expend,T/A Vehicle Maintenance etc,Vehicle Workshops,J01378,Transport Related Expenditure ,Direct Transport Costs        ,CA56,Specialist Maint. (On Site)             ,"1,166.04",30/05/2015,R,R.J.H.WELDING                 
800,CS -Oth Operating Inc & Expend,T/A Vehicle Maintenance etc,Vehicle Workshops,J01378,Transport Related Expenditure ,Direct Transport Costs        ,CA56,Specialist Maint. (On Site)             ,519.75,11/02/2015,R,REDACTED     
801,CS -Oth Operating Inc & Expend,T/A Vehicle Maintenance etc,Vehicle Workshops,J01378,Transport Related Expenditure ,Direct Transport Costs        ,CA56,Specialist Maint. (On Site)             ,660.25,09/06/2015,R,REDACTED     
802,CS -Oth Operating Inc & Expend,T/A Vehicle Maintenance etc,Vehicle Workshops,J01378,Transport Related Expenditure ,Direct Transport Costs        ,CA56,Specialist Maint. (On Site)             ,839.5,30/05/2015,R,R.J.H.WELDING                 
803,CS -Oth Operating Inc & Expend,T/A Vehicle Maintenance etc,Vehicle Workshops,J01378,Transport Related Expenditure ,Direct Transport Costs        ,CA56,Specialist Maint. (On Site)             ,758.05,21/02/2015,R,REDACTED     
804,CS -Oth Operating Inc & Expend,T/A Vehicle Maintenance etc,Vehicle Workshops,J01378,Transport Related Expenditure ,Direct Transport Costs        ,CA56,Specialist Maint. (On Site)             ,510,30/05/2015,R,R.J.H.WELDING                 
805,CS -Oth Operating Inc & Expend,T/A Vehicle Maintenance etc,Vehicle Workshops,J01378,Transport Related Expenditure ,Direct Transport Costs        ,CA56,Specialist Maint. (On Site)             ,590.34,18/05/2015,R,REDACTED     
806,CS -Oth Operating Inc & Expend,T/A Vehicle Maintenance etc,Vehicle Workshops,J01378,Transport Related Expenditure ,Direct Transport Costs        ,CA56,Specialist Maint. (On Site)             ,596.25,30/05/2015,R,R.J.H.WELDING                 
807,CS -Oth Operating Inc & Expend,T/A Vehicle Maintenance etc,Vehicle Workshops,J01378,Transport Related Expenditure ,Direct Transport Costs        ,CA56,Specialist Maint. (On Site)             ,"1,183.26",27/05/2015,R,SCARAB SWEEPERS LTD           
808,CS -Oth Operating Inc & Expend,T/A Vehicle Maintenance etc,Vehicle Workshops,J01378,Transport Related Expenditure ,Direct Transport Costs        ,CA56,Specialist Maint. (On Site)             ,629,09/06/2015,R,REDACTED     
809,CS -Oth Operating Inc & Expend,T/A Vehicle Maintenance etc,Vehicle Workshops,J01378,Transport Related Expenditure ,Direct Transport Costs        ,CA72,Vehicle Parts                           ,"1,363.98",12/06/2015,R,ROSSETTS COMMERCIALS          
810,CS -Oth Operating Inc & Expend,T/A Vehicle Maintenance etc,Vehicle Workshops,J01378,Transport Related Expenditure ,Direct Transport Costs        ,CA72,Vehicle Parts                           ,"1,970.91",10/06/2015,R,ROSSETTS COMMERCIALS          
811,CS -Oth Operating Inc & Expend,T/A Vehicle Maintenance etc,Vehicle Workshops,J01378,Transport Related Expenditure ,Direct Transport Costs        ,CA72,Vehicle Parts                           ,"1,612.83",27/05/2015,R,ROSSETTS COMMERCIALS          
812,CS -Oth Operating Inc & Expend,T/A Vehicle Maintenance etc,Vehicle Workshops,J01378,Transport Related Expenditure ,Direct Transport Costs        ,CA72,Vehicle Parts                           ,500.47,09/06/2015,R,ROSSETTS COMMERCIALS          
813,CS -Oth Operating Inc & Expend,T/A Vehicle Maintenance etc,Vehicle Workshops,J01378,Transport Related Expenditure ,Direct Transport Costs        ,CA72,Vehicle Parts                           ,"2,562.39",02/06/2015,R,IVECO RETAIL LTD              
814,CS -Oth Operating Inc & Expend,T/A Vehicle Maintenance etc,Vehicle Workshops,J01378,Transport Related Expenditure ,Direct Transport Costs        ,CA72,Vehicle Parts                           ,"1,052.70",15/05/2015,R,WASTEPARTS UK LTD             
815,CS -Oth Operating Inc & Expend,T/A Vehicle Maintenance etc,Vehicle Workshops,J01378,Transport Related Expenditure ,Direct Transport Costs        ,CA72,Vehicle Parts                           ,"8,200.00",04/06/2015,R,ECLIPSE AUTOMOTIVE TECHNOLOGY 
816,CS -Oth Operating Inc & Expend,T/A Vehicle Maintenance etc,Vehicle Workshops,J01378,Transport Related Expenditure ,Direct Transport Costs        ,CA72,Vehicle Parts                           ,891.13,21/05/2015,R,DENNIS EAGLE LIMITED          
817,CS -Oth Operating Inc & Expend,T/A Vehicle Maintenance etc,Vehicle Workshops,J01378,Transport Related Expenditure ,Direct Transport Costs        ,CA72,Vehicle Parts                           ,"1,235.35",27/05/2015,R,MC TRUCK & BUS                
818,CS -Oth Operating Inc & Expend,T/A Vehicle Maintenance etc,Vehicle Workshops,J01378,Transport Related Expenditure ,Direct Transport Costs        ,CA72,Vehicle Parts                           ,"1,913.17",04/06/2015,R,DENNIS EAGLE LIMITED          
819,CS -Oth Operating Inc & Expend,T/A Vehicle Maintenance etc,Vehicle Workshops,J01378,Transport Related Expenditure ,Direct Transport Costs        ,CA72,Vehicle Parts                           ,622.8,05/06/2015,R,ROSSETTS COMMERCIALS          
820,CS -Oth Operating Inc & Expend,T/A Vehicle Maintenance etc,Vehicle Workshops,J01378,Transport Related Expenditure ,Direct Transport Costs        ,CA73,Vehicle Consumables                     ,700.57,01/06/2015,R,COMMERCIAL & PLANT LTD        
821,CS -Oth Operating Inc & Expend,T/A Vehicle Maintenance etc,Vehicle Workshops,J01378,Transport Related Expenditure ,Direct Transport Costs        ,CA73,Vehicle Consumables                     ,"3,120.00",29/05/2015,R,CBOC LUBRICANTS               
822,CS -Oth Operating Inc & Expend,T/A Vehicle Maintenance etc,Vehicle Workshops,J01378,Supplies & Services           ,Equip Furniture/Materials     ,DA01,Equipment - R & M                       ,650.68,23/05/2015,R,SUNLIGHT SERVICE GROUP LTD    
823,Cultural Env Reg&Plan Services,Mgt & Support (Env),Estates Mgt,J01420,Supplies & Services           ,Services                      ,DF03,CONSULTANTS                             ,"2,984.78",29/05/2015,R,VALUATION OFFICE AGENCY       
824,Cultural Env Reg&Plan Services,Mgt & Support (Env),Estates Mgt,J01420,Supplies & Services           ,Comms and Computing           ,DG07,Computer Software                       ,"1,170.00",02/06/2015,R,KEL COMPUTING LTD             
825,Cultural Env Reg&Plan Services,Mgt & Support (Env),Estates Mgt,J01420,Supplies & Services           ,Comms and Computing           ,DG07,Computer Software                       ,850,02/06/2015,R,KEL COMPUTING LTD             
826,Cultural Env Reg&Plan Services,Mgt & Support (Env),Estates Mgt,J01420,Supplies & Services           ,Grants and Subscriptions      ,DJ04,SUBSCRIPTION                            ,"3,441.00",30/04/2015,R,COSTAR UK LTD                 
827,Cultural Env Reg&Plan Services,Mgt & Support (Env),Estates Mgt,J01420,Supplies & Services           ,Grants and Subscriptions      ,DJ04,SUBSCRIPTION                            ,-741,01/04/2015,R,COSTAR UK LTD                 
828,CS -Oth Operating Inc & Expend,Extraordinary Items & PY Adj.,33 Greenwood Close,J03203,Premises Related Expenditure  ,RepairsAlterations&MtceOfBldgs,BA01,DDM - General Building                  ,"2,250.00",28/05/2015,R,SLOANE DEMOLITION LIMITED     
829,Childrens & Education Services,Statutory & Regulatory Duties,Senior Mngt & Support Services,K01005,Supplies & Services           ,Services                      ,DF11,Counsel's Fees                          ,"2,520.00",25/03/2015,R,REDACTED     
830,Childrens & Education Services,Statutory & Regulatory Duties,Senior Mngt & Support Services,K01005,Supplies & Services           ,Services                      ,DF11,Counsel's Fees                          ,510,13/05/2015,R,REDACTED     
831,Childrens & Education Services,Statutory & Regulatory Duties,Senior Mngt & Support Services,K01005,Supplies & Services           ,Services                      ,DF11,Counsel's Fees                          ,"1,850.00",13/05/2015,R,REDACTED     
832,Childrens & Education Services,Statutory & Regulatory Duties,Senior Mngt & Support Services,K01005,Supplies & Services           ,Services                      ,DF11,Counsel's Fees                          ,675,21/04/2015,R,REDACTED     
833,Childrens & Education Services,Statutory & Regulatory Duties,Senior Mngt & Support Services,K01005,Supplies & Services           ,Services                      ,DF14,Doctors and Other Fees                  ,"1,985.00",04/02/2015,R,GALAXY SOCIAL WORK CONSULTANCY
834,Childrens & Education Services,Statutory & Regulatory Duties,Senior Mngt & Support Services,K01005,Supplies & Services           ,Services                      ,DF14,Doctors and Other Fees                  ,795,01/05/2015,R,K N HAKIN LTD                 
835,Childrens & Education Services,Statutory & Regulatory Duties,Senior Mngt & Support Services,K01005,Supplies & Services           ,Services                      ,DF95,Services from Provider                  ,624.29,30/03/2015,R,UBIQUS UK LTD                 
836,Childrens & Education Services,Statutory & Regulatory Duties,Senior Mngt & Support Services,K01005,Supplies & Services           ,Services                      ,DF95,Services from Provider                  ,"1,000.00",09/06/2015,R,SMA LEGAL                     
837,Childrens & Education Services,Statutory & Regulatory Duties,Central Administration,K01008,Supplies & Services           ,Expenses                      ,DH02,Conferences                             ,780,09/06/2015,R,ADCS                          
838,Childrens & Education Services,Statutory & Regulatory Duties,Schools IT Support,K02008,Supplies & Services           ,Comms and Computing           ,DG50,Other IT Expenditure                    ,"3,315.00",15/05/2015,R,ATOMWIDE LTD                  
839,Childrens & Education Services,Statutory & Regulatory Duties,Schools IT Support,K02008,Supplies & Services           ,Comms and Computing           ,DG50,Other IT Expenditure                    ,"1,249.00",27/04/2015,R,ATOMWIDE LTD                  
840,Childrens & Education Services,Statutory & Regulatory Duties,Schools IT Support,K02008,Supplies & Services           ,Comms and Computing           ,DG50,Other IT Expenditure                    ,"1,399.00",24/04/2015,R,ATOMWIDE LTD                  
841,Childrens & Education Services,Statutory & Regulatory Duties,Schools IT Support,K02008,Supplies & Services           ,Comms and Computing           ,DG50,Other IT Expenditure                    ,625,27/05/2015,R,ATOMWIDE LTD                  
842,Childrens & Education Services,Statutory & Regulatory Duties,Schools IT Support,K02008,Supplies & Services           ,Comms and Computing           ,DG50,Other IT Expenditure                    ,"1,181.60",19/05/2015,R,STUFF-UK.NET                  
843,Childrens & Education Services,Statutory & Regulatory Duties,Schools IT Support,K02008,Supplies & Services           ,Comms and Computing           ,DG50,Other IT Expenditure                    ,"355,958.58",02/06/2015,R,LONDON GRID FOR LEARNING TRUST
844,Childrens & Education Services,Statutory & Regulatory Duties,Schools IT Support,K02008,Supplies & Services           ,Comms and Computing           ,DG50,Other IT Expenditure                    ,"1,249.00",24/04/2015,R,ATOMWIDE LTD                  
845,Childrens & Education Services,Statutory & Regulatory Duties,Schools IT Support,K02008,Supplies & Services           ,Comms and Computing           ,DG50,Other IT Expenditure                    ,950,10/06/2015,R,ATOMWIDE LTD                  
846,Childrens & Education Services,Asset Management,PFI Unitary Charges,K03023,Third Party Payments          ,Private Contractors           ,EH02,Miscellaneous Hired Services            ,"2,954.53",08/06/2015,R,NEWSCHOOLS (MERTON) LIMITED   
847,Childrens & Education Services,Asset Management,PFI Unitary Charges,K03023,Third Party Payments          ,Private Contractors           ,EH02,Miscellaneous Hired Services            ,"78,317.98",01/06/2015,R,NEWSCHOOLS (MERTON) LIMITED   
848,Childrens & Education Services,Asset Management,PFI Unitary Charges,K03023,Third Party Payments          ,Private Contractors           ,EH02,Miscellaneous Hired Services            ,500.17,14/04/2015,R,NEWSCHOOLS (MERTON) LIMITED   
849,Childrens & Education Services,Asset Management,PFI Unitary Charges,K03023,Third Party Payments          ,Private Contractors           ,EH02,Miscellaneous Hired Services            ,"1,551.75",09/04/2015,R,NEWSCHOOLS (MERTON) LIMITED   
850,Childrens & Education Services,Asset Management,PFI Unitary Charges,K03023,Third Party Payments          ,Private Contractors           ,EH02,Miscellaneous Hired Services            ,"8,841.36",08/06/2015,R,NEWSCHOOLS (MERTON) LIMITED   
851,Childrens & Education Services,Asset Management,PFI Unitary Charges,K03023,Third Party Payments          ,Private Contractors           ,EH02,Miscellaneous Hired Services            ,"1,322.15",09/04/2015,R,NEWSCHOOLS (MERTON) LIMITED   
852,Childrens & Education Services,Asset Management,PFI Unitary Charges,K03023,Third Party Payments          ,Private Contractors           ,EH02,Miscellaneous Hired Services            ,840.64,14/04/2015,R,NEWSCHOOLS (MERTON) LIMITED   
853,Childrens & Education Services,Asset Management,PFI Unitary Charges,K03023,Third Party Payments          ,Private Contractors           ,EH02,Miscellaneous Hired Services            ,"10,155.63",01/06/2015,R,NEWSCHOOLS (MERTON) LIMITED   
854,Childrens & Education Services,Asset Management,PFI Unitary Charges,K03023,Third Party Payments          ,Private Contractors           ,EH10,Contract Payments                       ,"365,284.38",01/06/2015,R,NEWSCHOOLS (MERTON) LIMITED   
855,Childrens & Education Services,Asset Management,PFI Unitary Charges,K03023,Third Party Payments          ,Private Contractors           ,EH10,Contract Payments                       ,"-8,754.28",27/05/2015,R,NEWSCHOOLS (MERTON) LIMITED   
856,Childrens & Education Services,Asset Management,PFI Unitary Charges,K03023,Third Party Payments          ,Private Contractors           ,EH10,Contract Payments                       ,"1,146,967.62",01/06/2015,R,NEWSCHOOLS (MERTON) LIMITED   
857,Childrens & Education Services,Education Psychology Service,Education Psychology.,K04018,Employees                     ,Direct Employee Expenses      ,AA17,Agency Staff & Casual Paymts            ,"1,000.00",23/06/2015,R,REDACTED
858,Childrens & Education Services,Education Psychology Service,Education Psychology.,K04018,Employees                     ,Direct Employee Expenses      ,AA17,Agency Staff & Casual Paymts            ,800,05/06/2015,R,REDACTED     
859,Childrens & Education Services,Education Psychology Service,Education Psychology.,K04018,Employees                     ,Direct Employee Expenses      ,AA17,Agency Staff & Casual Paymts            ,"48,000.00",05/05/2015,R,SOUTHAMPTON UNIVSERSITY       
860,Childrens & Education Services,Support for SEN Pupils,Statementing-Transport,K04023,Transport Related Expenditure ,Public Transport              ,CD50,Home Sch/Coll Trans(Trav Exps)          ,"1,040.00",27/05/2015,R,REDACTED     
861,Childrens & Education Services,Support for SEN Pupils,Statementing-Transport,K04023,Transport Related Expenditure ,Public Transport              ,CD50,Home Sch/Coll Trans(Trav Exps)          ,874.8,08/06/2015,R,REDACTED     
862,Childrens & Education Services,Support for SEN Pupils,Statementing-Transport,K04023,Transport Related Expenditure ,Public Transport              ,CD50,Home Sch/Coll Trans(Trav Exps)          ,616,18/06/2015,R,LONDON BOROUGH OF CROYDON     
863,Childrens & Education Services,Oth U5s Provn Not Prim or Spec,Provider Support,K05078,Supplies & Services           ,Comms and Computing           ,DG08,Computer Hardware                       ,"3,120.00",23/06/2015,R,CAPITA IT SERVICES            
864,Childrens & Education Services,Oth U5s Provn Not Prim or Spec,Provider Support,K05078,Supplies & Services           ,Comms and Computing           ,DG08,Computer Hardware                       ,"2,535.00",23/06/2015,R,CAPITA IT SERVICES            
865,Childrens & Education Services,Oth U5s Provn Not Prim or Spec,Provider Support,K05078,Supplies & Services           ,Comms and Computing           ,DG08,Computer Hardware                       ,"1,403.10",14/05/2015,R,SPECIALIST COMPUTER CENT. PLC 
866,Childrens & Education Services,Oth U5s Provn Not Prim or Spec,Provider Support,K05078,Supplies & Services           ,Comms and Computing           ,DG50,Other IT Expenditure                    ,"15,000.00",02/06/2015,R,CACI LIMITED                  
867,Childrens & Education Services,Pupil Referral Units,Expanded Pupil Referral Unit,K05099,Third Party Payments          ,Private Contractors           ,EH01,Miscellaneous Agency Services           ,"4,898.74",15/05/2015,R,SW LONDON ST GEORGES NHS TRUST
868,Childrens & Education Services,Oth U5s Provn Not Prim or Spec,GSSG Workforce Development,K05111,Employees                     ,Indirect Employee Expenses    ,AB56,Internal Training Costs                 ,600,08/06/2015,R,REDACTED     
869,Childrens & Education Services,GENERATED ACCOUNT,Children's centres,K05137,Supplies & Services           ,Comms and Computing           ,DG14,Telephones - Mobile                     ,"1,592.00",21/05/2015,R,EVERYTHING EVERYWHERE         
870,Childrens & Education Services,Nursery schools,GSSG Recruitment,K05401,Premises Related Expenditure  ,RepairsAlterations&MtceOfBldgs,BA06,Repairs & Maintenance General           ,748,28/05/2015,R,CRAYS PROPERTY LIMITED        
871,Childrens & Education Services,GENERATED ACCOUNT,Mitcham MAT (Premises),K05412,Premises Related Expenditure  ,RepairsAlterations&MtceOfBldgs,BA79,Security of Premises                    ,999.78,19/05/2015,R,CHUBB FIRE LIMITED            
872,Childrens & Education Services,GENERATED ACCOUNT,Mitcham MAT (Premises),K05412,Premises Related Expenditure  ,Energy Costs                  ,BB02,Electricity                             ,"2,200.00",08/05/2015,R,SCOTTISHPOWER                 
873,Childrens & Education Services,GENERATED ACCOUNT,Mitcham MAT (Premises),K05412,Premises Related Expenditure  ,Cleaning and Domestic Supplies,BH03,Cleaning Services                       ,"1,208.78",30/04/2015,R,BIRKIN CLEANING SERVICES LTD  
874,Childrens & Education Services,GENERATED ACCOUNT,Mitcham MAT (Premises),K05412,Premises Related Expenditure  ,Cleaning and Domestic Supplies,BH03,Cleaning Services                       ,"1,208.78",01/06/2015,R,BIRKIN CLEANING SERVICES LTD  
875,Childrens & Education Services,GENERATED ACCOUNT,Morden MAT,K05413,Premises Related Expenditure  ,Cleaning and Domestic Supplies,BH03,Cleaning Services                       ,"1,212.14",01/06/2015,R,BIRKIN CLEANING SERVICES LTD  
876,Childrens & Education Services,GENERATED ACCOUNT,Morden MAT,K05413,Premises Related Expenditure  ,Cleaning and Domestic Supplies,BH03,Cleaning Services                       ,"1,212.14",30/04/2015,R,BIRKIN CLEANING SERVICES LTD  
877,Childrens & Education Services,GENERATED ACCOUNT,Wimbledon MAT,K05414,Supplies & Services           ,Services                      ,DF30,Activities Programme                    ,960,10/12/2014,R,PRE SCHOOL LEARNING ALLIANCE  
878,Childrens & Education Services,Nursery schools,E.Years-Intergenerational Cntr,K05416,Premises Related Expenditure  ,Cleaning and Domestic Supplies,BH03,Cleaning Services                       ,811.96,30/04/2015,R,BIRKIN CLEANING SERVICES LTD  
879,Childrens & Education Services,Nursery schools,E.Years-Intergenerational Cntr,K05416,Premises Related Expenditure  ,Cleaning and Domestic Supplies,BH03,Cleaning Services                       ,811.96,03/06/2015,R,BIRKIN CLEANING SERVICES LTD  
880,Childrens & Education Services,Nursery schools,EY-Support Separating Parents,K05417,Supplies & Services           ,Services                      ,DF03,Consultants                             ,"2,532.32",31/05/2015,R,REDACTED     
881,Childrens & Education Services,Nursery schools,EY-Support Separating Parents,K05417,Supplies & Services           ,Services                      ,DF30,Activities Programme                    ,"1,500.00",03/03/2015,R,PRE SCHOOL LEARNING ALLIANCE  
882,Childrens & Education Services,Nursery schools,EY-Support Separating Parents,K05417,Supplies & Services           ,Services                      ,DF30,Activities Programme                    ,875,16/06/2015,R,THE JAYNE STEWART SCH OF DANCE
883,Childrens & Education Services,Nursery schools,EY-Support Separating Parents,K05417,Supplies & Services           ,Expenses                      ,DH02,Conferences                             ,600,21/05/2015,R,ACTUAL FIRST AID LTD          
884,Childrens & Education Services,Vocational - Adult Education,AE-Neighbourhood Learning,K06043,Supplies & Services           ,Catering                      ,DB01,Contract Catering                       ,706.55,31/05/2015,R,COFFEE AT WORK LTD            
885,Childrens & Education Services,Vocational - Adult Education,AE-additional learner SF,K06046,Supplies & Services           ,Services                      ,DF07,Bought in Teaching Services             ,981.76,27/05/2015,R,REDACTED     
886,Childrens & Education Services,Vocational - Adult Education,AE-Adult Education Main,K06049,Premises Related Expenditure  ,Energy Costs                  ,BB02,Electricity                             ,"1,270.50",01/06/2015,R,SCOTTISHPOWER                 
887,Childrens & Education Services,Vocational - Adult Education,AE-Adult Education Main,K06049,Premises Related Expenditure  ,Energy Costs                  ,BB03,Gas (incl. Butane)                      ,"1,022.83",14/05/2015,R,GAZPROM MARKETING&TRADING LTD 
888,Childrens & Education Services,Vocational - Adult Education,AE-Adult Education Main,K06049,Premises Related Expenditure  ,Energy Costs                  ,BB03,Gas (incl. Butane)                      ,"2,057.58",04/06/2015,R,GAZPROM MARKETING&TRADING LTD 
889,Childrens & Education Services,Vocational - Adult Education,AE-Adult Education Main,K06049,Premises Related Expenditure  ,Energy Costs                  ,BB03,Gas (incl. Butane)                      ,547.79,04/06/2015,R,GAZPROM MARKETING&TRADING LTD 
890,Childrens & Education Services,Vocational - Adult Education,AE-Adult Education Main,K06049,Premises Related Expenditure  ,Cleaning and Domestic Supplies,BH03,Cleaning Services                       ,"3,324.53",30/05/2015,R,JULIUS RUTHERFOORD & CO LTD   
891,Childrens & Education Services,Vocational - Adult Education,AE-Adult Education Main,K06049,Supplies & Services           ,Equip Furniture/Materials     ,DA02,Op. Leasing Equipment                   ,"1,787.72",19/05/2015,R,CHUBB FIRE LIMITED            
892,Childrens & Education Services,Vocational - Adult Education,AE-Adult Education Main,K06049,Supplies & Services           ,Services                      ,DF02,Misc Advertising/Publicity              ,"5,897.00",26/05/2015,R,STUDIO ELEVEN LTD             
893,Childrens & Education Services,Vocational - Adult Education,AE-Adult Education Main,K06049,Supplies & Services           ,Services                      ,DF02,Misc Advertising/Publicity              ,"5,555.00",26/05/2015,R,STUDIO ELEVEN LTD             
894,Childrens & Education Services,Vocational - Adult Education,AE-Adult Education Main,K06049,Supplies & Services           ,Services                      ,DF27,Examination Fees                        ,"2,835.00",29/05/2015,R,UCLES                         
895,Childrens & Education Services,Vocational - Adult Education,AE-Adult Education Main,K06049,Supplies & Services           ,Services                      ,DF27,Examination Fees                        ,"1,680.00",12/05/2015,R,ASCENTIS                      
896,Childrens & Education Services,Vocational - Adult Education,AE-Adult Education Main,K06049,Supplies & Services           ,Services                      ,DF27,Examination Fees                        ,648,12/05/2015,R,ASCENTIS                      
897,Childrens & Education Services,Vocational - Adult Education,AE-Adult Education Main,K06049,Supplies & Services           ,Services                      ,DF30,Activities Programme                    ,"1,800.00",19/05/2015,R,PRE SCHOOL LEARNING ALLIANCE  
898,Childrens & Education Services,Vocational - Adult Education,AE-Learner Support Fund-Access,K06050,Supplies & Services           ,Services                      ,DF09,Miscellaneous Fees                      ,628,15/04/2015,R,BABY ROOM                     
899,Childrens & Education Services,Vocational - Adult Education,AE-Learner Support Fund-Access,K06050,Supplies & Services           ,Services                      ,DF09,Miscellaneous Fees                      ,656,15/04/2015,R,BABY ROOM                     
900,Childrens & Education Services,Vocational - Adult Education,AE-Learner Support Fund-Access,K06050,Supplies & Services           ,Services                      ,DF09,Miscellaneous Fees                      ,628,15/04/2015,R,BABY ROOM                     
901,Childrens & Education Services,Vocational - Adult Education,AE-Learner Support Fund-Access,K06050,Supplies & Services           ,Services                      ,DF09,Miscellaneous Fees                      ,600.2,01/05/2015,R,BRIGHT HORIZONS               
902,Childrens & Education Services,Vocational - Adult Education,AE-Learner Support Fund-Access,K06050,Supplies & Services           ,Services                      ,DF09,Miscellaneous Fees                      ,656,15/04/2015,R,BABY ROOM                     
903,Childrens & Education Services,Vocational - Adult Education,AE-Learner Support Fund-Access,K06050,Supplies & Services           ,Services                      ,DF09,Miscellaneous Fees                      ,"1,050.00",28/05/2015,R,REDACTED     
904,Childrens & Education Services,Vocational - Adult Education,AE-Learner Support Fund-Access,K06050,Supplies & Services           ,Expenses                      ,DH05,Subsistence-Creditors                   ,656.38,05/06/2015,R,DEE'S DAYS NURSERY            
905,Childrens & Education Services,Youth Centres (Residential),Youth Service,K06053,Premises Related Expenditure  ,Energy Costs                  ,BB02,Electricity                             ,"1,615.91",05/06/2015,R,SCOTTISHPOWER                 
906,Childrens & Education Services,Youth Centres (Residential),Youth Service,K06053,Premises Related Expenditure  ,Cleaning and Domestic Supplies,BH03,Cleaning Services                       ,506.69,01/05/2015,R,BIRKIN CLEANING SERVICES LTD  
907,Childrens & Education Services,Youth Centres (Residential),Youth Service,K06053,Premises Related Expenditure  ,Cleaning and Domestic Supplies,BH03,Cleaning Services                       ,506.69,30/04/2015,R,BIRKIN CLEANING SERVICES LTD  
908,Childrens & Education Services,Youth Centres (Residential),Duke of Edinburgh Awrds,K06055,Supplies & Services           ,Expenses                      ,DH12,Young Peoples Expenses                  ,"3,410.00",10/06/2015,R,THE AWARD SCHEME LTD          
909,Childrens & Education Services,Youth Centres (Residential),Youth Office Premises Cost,K06073,Premises Related Expenditure  ,RepairsAlterations&MtceOfBldgs,BA06,Repairs & Maintenance General           ,617,01/06/2015,R,MIKE AYRES DESIGN LTD         
910,Childrens & Education Services,Youth Centres (Residential),PAYP Moving Forward in Life,K06092,Employees                     ,Direct Employee Expenses      ,AA17,Agency Staff & Casual Payments          ,675,28/05/2015,R,REDACTED     
911,Childrens & Education Services,Youth Centres (Residential),PAYP Moving Forward in Life,K06092,Premises Related Expenditure  ,Energy Costs                  ,BB02,Electricity                             ,-766.77,06/02/2015,R,SCOTTISHPOWER                 
912,Childrens & Education Services,Youth Centres (Residential),PAYP Moving Forward in Life,K06092,Premises Related Expenditure  ,Energy Costs                  ,BB02,Electricity                             ,-598.89,27/10/2014,R,SCOTTISHPOWER                 
913,Childrens & Education Services,Youth Centres (Residential),PAYP Moving Forward in Life,K06092,Premises Related Expenditure  ,Energy Costs                  ,BB02,Electricity                             ,"1,351.86",20/05/2015,R,SCOTTISHPOWER                 
914,Childrens & Education Services,Pupil Support,Young Person Substance Misuse,K06114,Third Party Payments          ,Private Contractors           ,EH01,Miscellaneous Agency Services           ,"57,743.00",30/04/2015,R,CATCH 22                      
915,Childrens & Education Services,Asset Management,S106 Bid,K08077,Premises Related Expenditure  ,Ground Maintenance Costs      ,BL50,Nature Conservation                     ,"2,800.00",15/03/2015,R,GODDARDS LANDSCAPE CONTRACTORS
916,Childrens & Education Services,Asset Management,S106 Bid,K08077,Supplies & Services           ,Prntng Stnry Gen Off Exp      ,DE52,Office Removal Expenses                 ,660,30/04/2015,R,EDE'S (U.K.) LTD              
917,Childrens & Education Services,Asset Management,S106 Bid,K08077,Supplies & Services           ,Services                      ,DF09,Miscellaneous Fees                      ,"12,074.50",30/04/2015,R,ATKINS LIMITED                
918,Childrens & Education Services,Asset Management,S106 Bid,K08077,Supplies & Services           ,Services                      ,DF09,Miscellaneous Fees                      ,750,03/06/2015,R,STACE LLP                     
919,Childrens & Education Services,Asset Management,Centre Commissioned Servs,K08078,Supplies & Services           ,Grants and Subscriptions      ,DJ01,Grants                                  ,"7,321.50",15/06/2015,R,JIGSAW4U                      
920,Childrens & Education Services,Asset Management,Centre Commissioned Servs,K08078,Supplies & Services           ,Grants and Subscriptions      ,DJ01,Grants                                  ,"7,151.25",18/06/2015,R,YMCA LONDON SOUTH WEST        
921,Childrens & Education Services,Asset Management,Centre Commissioned Servs,K08078,Supplies & Services           ,Grants and Subscriptions      ,DJ01,Grants                                  ,"6,101.00",15/06/2015,R,JIGSAW4U                      
922,Childrens & Education Services,Asset Management,Centre Commissioned Servs,K08078,Supplies & Services           ,Grants and Subscriptions      ,DJ01,Grants                                  ,"12,202.50",16/06/2015,R,JIGSAW4U                      
923,Childrens & Education Services,Asset Management,Centre Commissioned Servs,K08078,Supplies & Services           ,Grants and Subscriptions      ,DJ01,Grants                                  ,"7,875.00",29/05/2015,R,ENDEAVOUR CLUB                
924,Childrens & Education Services,Asset Management,Centre Commissioned Servs,K08078,Supplies & Services           ,Grants and Subscriptions      ,DJ01,Grants                                  ,"18,281.25",04/06/2015,R,ST MARKS FAMILY CENTRE        
925,Childrens & Education Services,Asset Management,Centre Commissioned Servs,K08078,Supplies & Services           ,Grants and Subscriptions      ,DJ01,Grants                                  ,"7,556.25",02/06/2015,R,MERTON VOLUNTARY SERV COUNCIL 
926,Childrens & Education Services,Facilitating School Improvemnt,SSQ,K09077,Supplies & Services           ,Services                      ,DF03,Consultants                             ,"2,800.00",19/05/2015,R,REDACTED     
927,Childrens & Education Services,Facilitating School Improvemnt,SSQ,K09077,Supplies & Services           ,Services                      ,DF03,Consultants                             ,900,19/05/2015,R,REDACTED     
928,Childrens & Education Services,Asset Management,Stouthall,K09082,Premises Related Expenditure  ,Rents                         ,BC01,Miscellaneous Rents                     ,"4,125.00",09/06/2015,R,ROBERT MORGAN & SONS LTD      
929,Childrens & Education Services,Asset Management,Stouthall,K09082,Premises Related Expenditure  ,Ground Maintenance Costs      ,BL03,Maintenance of Grounds                  ,"1,000.00",29/05/2015,R,A Y LANDSCAPES LTD            
930,Childrens & Education Services,Sch Meals & Milk-Not Delegated,Free School Meals,K90002,Supplies & Services           ,Grants and Subscriptions      ,DJ80,Free School Meals                       ,"2,452.92",15/05/2015,R,ISS COLLECTIONS LTD           
931,Childrens & Education Services,Sch Meals & Milk-Not Delegated,Free School Meals,K90002,Supplies & Services           ,Grants and Subscriptions      ,DJ80,Free School Meals                       ,"13,774.44",15/05/2015,R,ISS COLLECTIONS LTD           
932,Childrens & Education Services,Sch Meals & Milk-Not Delegated,Free School Meals,K90002,Supplies & Services           ,Grants and Subscriptions      ,DJ80,Free School Meals                       ,"19,830.71",15/05/2015,R,ISS COLLECTIONS LTD           
933,Childrens & Education Services,Sch Meals & Milk-Not Delegated,Free School Meals,K90002,Supplies & Services           ,Grants and Subscriptions      ,DJ80,Free School Meals                       ,"18,399.63",15/05/2015,R,ISS COLLECTIONS LTD           
934,Childrens & Education Services,Sch Meals & Milk-Not Delegated,Free School Meals,K90002,Supplies & Services           ,Grants and Subscriptions      ,DJ80,Free School Meals                       ,"7,338.33",28/05/2015,R,PARENTPAY LTD                 
935,Childrens & Education Services,Sch Meals & Milk-Not Delegated,Free School Meals,K90002,Supplies & Services           ,Grants and Subscriptions      ,DJ80,Free School Meals                       ,"21,778.11",15/05/2015,R,ISS COLLECTIONS LTD           
936,Childrens & Education Services,Pupil Referral Units,Hospital Tuition,K90008,Third Party Payments          ,Other Local Authorities       ,EB54,Hospital Tuition                        ,"1,400.00",21/05/2015,R,OAKVIEW SCHOOL                
937,Childrens & Education Services,Facilitating School Improvemnt,Virtual Schools - PEA's,K90016,Supplies & Services           ,Grants and Subscriptions      ,DJ01,Grants                                  ,600,29/06/2015,R,FURZEDOWN PRIMARY SCHOOL      
938,Childrens & Education Services,Facilitating School Improvemnt,Virtual Schools - PEA's,K90016,Supplies & Services           ,Grants and Subscriptions      ,DJ01,Grants                                  ,600,29/06/2015,R,HAMPSHIRE COUNTY COUNCIL      
939,Childrens & Education Services,Facilitating School Improvemnt,Virtual Schools - PEA's,K90016,Supplies & Services           ,Grants and Subscriptions      ,DJ01,Grants                                  ,600,29/06/2015,R,BECKMEAD SCHOOL               
940,Childrens & Education Services,Facilitating School Improvemnt,Virtual Schools - PEA's,K90016,Supplies & Services           ,Grants and Subscriptions      ,DJ01,Grants                                  ,600,29/06/2015,R,THE LINK SECONDARY SCHOOL     
941,Childrens & Education Services,Facilitating School Improvemnt,Virtual Schools - PEA's,K90016,Supplies & Services           ,Grants and Subscriptions      ,DJ01,Grants                                  ,600,29/06/2015,R,THE NORTH SCHOOL              
942,Childrens & Education Services,Facilitating School Improvemnt,Virtual Schools - PEA's,K90016,Supplies & Services           ,Grants and Subscriptions      ,DJ01,Grants                                  ,600,29/06/2015,R,FAIRWAY SCHL & CHILDREN'S CTR 
